Organisation name,Organisation Code,Effective date,,Service Category label,Service category URI,Supplier (Beneficiary) name,Local supplier (beneficiary) internal reference,Supplier,Supplier registered charity number,VCSE grant,Payment date - G/L Date,Transaction number,Net Amount,Irrecoverable VAT,purpose_of_spend,Procurement classification / merchant category: Council�s procurement category name,Procurement classification / merchant category: CPV label,Procurement classification / merchant category: CPV code,Procurement classification / merchant category: Proclass label,Procurement classification / merchant category: Proclass code
The Royal Borough of Kensington and Chelsea,RBKC,,Adult Social Care,Assistive Equipment,,Medequip Assistive Technology Ltd ,1234994,,,,14/07/2021,2200182408,"119,910.44",,Hired and Contracted Services,,,,,
The Royal Borough of Kensington and Chelsea,RBKC,,Adult Social Care,Assistive Equipment,,Medequip Assistive Technology Ltd ,1234994,,,,14/07/2021,2200182409,"10,500.00",,Hired and Contracted Services,,,,,
The Royal Borough of Kensington and Chelsea,RBKC,,Adult Social Care,Assistive Equipment,,Medequip Assistive Technology Ltd ,1234994,,,,14/07/2021,2200182411,"2,418.00",,Hired and Contracted Services,,,,,
The Royal Borough of Kensington and Chelsea,RBKC,,Adult Social Care,Assistive Equipment,,Medequip Assistive Technology Ltd ,1234994,,,,25/08/2021,2200191073,"1,104.00",,Hired and Contracted Services,,,,,
The Royal Borough of Kensington and Chelsea,RBKC,,Adult Social Care,Assistive Equipment,,Medequip Assistive Technology Ltd ,1234994,,,,25/08/2021,2200191081,"151,477.58",,Hired and Contracted Services,,,,,
The Royal Borough of Kensington and Chelsea,RBKC,,Adult Social Care,Equipment,,Doro AB,1274450,,,,02/09/2021,2200192378,"4,490.00",,Payments to Voluntary bodies,,,,,
The Royal Borough of Kensington and Chelsea,RBKC,,Adult Social Care,Equipment,,Red Alert Ltd ,1231238,,,,03/08/2021,2200186430,"1,750.00",,Payments to Voluntary bodies,,,,,
The Royal Borough of Kensington and Chelsea,RBKC,,Adult Social Care,Equipment,,Red Alert Ltd ,1231238,,,,11/08/2021,2200188350,700,,Payments to Voluntary bodies,,,,,
The Royal Borough of Kensington and Chelsea,RBKC,,Adult Social Care,Equipment,,Red Alert Ltd ,1231238,,,,06/09/2021,2200193196,700,,Payments to Voluntary bodies,,,,,
The Royal Borough of Kensington and Chelsea,RBKC,,Adult Social Care,Equipment,,Red Alert Ltd ,1231238,,,,07/09/2021,2200193467,700,,Payments to Voluntary bodies,,,,,
The Royal Borough of Kensington and Chelsea,RBKC,,Adult Social Care,Equipment,,Red Alert Ltd ,1231238,,,,07/09/2021,2200193468,700,,Payments to Voluntary bodies,,,,,
The Royal Borough of Kensington and Chelsea,RBKC,,Adult Social Care,Equipment,,Tunstall Healthcare (UK) Ltd (Use 3012996),1235586,,,,01/07/2021,2200179763,"7,500.00",,Payments to Voluntary bodies,,,,,
The Royal Borough of Kensington and Chelsea,RBKC,,Adult Social Care,Equipment,,Tunstall Healthcare (UK) Ltd (Use 3012996),1235586,,,,12/07/2021,2200181916,"1,232.15",,Payments to Voluntary bodies,,,,,
The Royal Borough of Kensington and Chelsea,RBKC,,Adult Social Care,Equipment,,Tunstall Healthcare (UK) Ltd (Use 3012996),1235586,,,,02/09/2021,2200192562,722.76,,Payments to Voluntary bodies,,,,,
The Royal Borough of Kensington and Chelsea,RBKC,,Adult Social Care,Equipment,,Tunstall Healthcare (UK) Ltd (Use 3012996),1235586,,,,08/09/2021,2200193787,"2,997.60",,Payments to Voluntary bodies,,,,,
The Royal Borough of Kensington and Chelsea,RBKC,,Environment & Communities,Building Control,,LABC ,1234875,,,,09/09/2021,2200193884,995,,Training related expenditure,,,,,
The Royal Borough of Kensington and Chelsea,RBKC,,Environment & Communities,Parks and Open Spaces,,C J Jordan & Son Ltd ,1233031,,,,26/07/2021,2200184706,581.77,,Creditors Control : AP GRIR,,,,,
The Royal Borough of Kensington and Chelsea,RBKC,,Environment & Communities,Parks and Open Spaces,,C J Jordan & Son Ltd ,1233031,,,,27/07/2021,2200185154,982.3,,Creditors Control : AP GRIR,,,,,
The Royal Borough of Kensington and Chelsea,RBKC,,Environment & Communities,Parks and Open Spaces,,C J Jordan & Son Ltd ,1233031,,,,27/07/2021,2200185155,906.2,,Creditors Control : AP GRIR,,,,,
The Royal Borough of Kensington and Chelsea,RBKC,,Environment & Communities,Parks and Open Spaces,,C J Jordan & Son Ltd ,1233031,,,,20/08/2021,2200190340,514.68,,Creditors Control : AP GRIR,,,,,
The Royal Borough of Kensington and Chelsea,RBKC,,Environment & Communities,Parks and Open Spaces,,C J Jordan & Son Ltd ,1233031,,,,20/08/2021,2200190356,"1,631.16",,Creditors Control : AP GRIR,,,,,
The Royal Borough of Kensington and Chelsea,RBKC,,Environment & Communities,Parks and Open Spaces,,C J Jordan & Son Ltd ,1233031,,,,20/08/2021,2200190378,"1,678.22",,Creditors Control : AP GRIR,,,,,
The Royal Borough of Kensington and Chelsea,RBKC,,Environment & Communities,Parks and Open Spaces,,C J Jordan & Son Ltd ,1233031,,,,23/08/2021,2200190548,"1,678.22",,Creditors Control : AP GRIR,,,,,
The Royal Borough of Kensington and Chelsea,RBKC,,Environment & Communities,Parks and Open Spaces,,C J Jordan & Son Ltd ,1233031,,,,31/08/2021,2200191933,543.72,,Creditors Control : AP GRIR,,,,,
The Royal Borough of Kensington and Chelsea,RBKC,,Environment & Communities,Parks and Open Spaces,,C J Jordan & Son Ltd ,1233031,,,,20/09/2021,2200195682,"2,886.01",,Creditors Control : AP GRIR,,,,,
The Royal Borough of Kensington and Chelsea,RBKC,,Environment & Communities,Parks and Open Spaces,,C J Jordan & Son Ltd ,1233031,,,,20/09/2021,2200195684,"1,029.36",,Creditors Control : AP GRIR,,,,,
The Royal Borough of Kensington and Chelsea,RBKC,,Environment & Communities,Parks and Open Spaces,,C J Jordan & Son Ltd ,1233031,,,,20/09/2021,2200195694,724.96,,Creditors Control : AP GRIR,,,,,
The Royal Borough of Kensington and Chelsea,RBKC,,Environment & Communities,Parks and Open Spaces,,C J Jordan & Son Ltd ,1233031,,,,20/09/2021,2200195716,"1,573.08",,Creditors Control : AP GRIR,,,,,
The Royal Borough of Kensington and Chelsea,RBKC,,Environment & Communities,Parks and Open Spaces,,C J Jordan & Son Ltd ,1233031,,,,28/09/2021,2200197151,"1,134.50",,Creditors Control : AP GRIR,,,,,
The Royal Borough of Kensington and Chelsea,RBKC,,Environment & Communities,Parks and Open Spaces,,Clear Skies Software Ltd,1233403,,,,20/09/2021,2200195717,"2,050.00",,Creditors Control : AP GRIR,,,,,
The Royal Borough of Kensington and Chelsea,RBKC,,Environment & Communities,Parks and Open Spaces,,Redact Details,1234806,,,,12/07/2021,2200181917,"1,114.00",,Creditors Control : AP GRIR,,,,,
The Royal Borough of Kensington and Chelsea,RBKC,,Environment & Communities,Parks and Open Spaces,,Redact Details,1234806,,,,14/07/2021,2200182568,935,,Creditors Control : AP GRIR,,,,,
The Royal Borough of Kensington and Chelsea,RBKC,,Environment & Communities,Parks and Open Spaces,,Redact Details,1234806,,,,15/09/2021,2200194926,"1,229.00",,Creditors Control : AP GRIR,,,,,
The Royal Borough of Kensington and Chelsea,RBKC,,Environment & Communities,Parks and Open Spaces,,T/A Idverde ,1231423,,,,08/07/2021,2200181106,"54,458.26",,Creditors Control : AP GRIR,,,,,
The Royal Borough of Kensington and Chelsea,RBKC,,Environment & Communities,Parks and Open Spaces,,T/A Idverde ,1231423,,,,08/07/2021,2200181106,"1,239.36",,Creditors Control : AP GRIR,,,,,
The Royal Borough of Kensington and Chelsea,RBKC,,Environment & Communities,Parks and Open Spaces,,T/A Idverde ,1231423,,,,05/08/2021,2200187023,"1,239.36",,Creditors Control : AP GRIR,,,,,
The Royal Borough of Kensington and Chelsea,RBKC,,Environment & Communities,Parks and Open Spaces,,T/A Idverde ,1231423,,,,05/08/2021,2200187023,"54,458.26",,Creditors Control : AP GRIR,,,,,
The Royal Borough of Kensington and Chelsea,RBKC,,Environment & Communities,Parks and Open Spaces,,T/A Idverde ,1231423,,,,03/09/2021,2200192763,"54,458.67",,Creditors Control : AP GRIR,,,,,
The Royal Borough of Kensington and Chelsea,RBKC,,Environment & Communities,Parks and Open Spaces,,T/A Idverde ,1231423,,,,03/09/2021,2200192763,"1,239.36",,Creditors Control : AP GRIR,,,,,
The Royal Borough of Kensington and Chelsea,RBKC,,Environment & Communities,Parks and Open Spaces,,T/A Idverde ,1231423,,,,29/09/2021,2200197465,"1,246.32",,Creditors Control : AP GRIR,,,,,
The Royal Borough of Kensington and Chelsea,RBKC,,Environment & Communities,Community Safety,,City Of Westminster ,1231771,,,,10/08/2021,2200188095,"62,380.00",,Hired and Contracted Services,,,,,
The Royal Borough of Kensington and Chelsea,RBKC,,Statutory and Corporate Items,Statutory Year End Accounting,,2CQR Ltd ,1253540,,,,02/09/2021,2200192484,"1,938.00",,Computer Equipment,,,,,
The Royal Borough of Kensington and Chelsea,RBKC,,Statutory and Corporate Items,Statutory Year End Accounting,,3Bm Ltd,1232075,,,,14/07/2021,2200182514,"2,850.00",,Payments to main contractor,,,,,
The Royal Borough of Kensington and Chelsea,RBKC,,Statutory and Corporate Items,Statutory Year End Accounting,,3Bm Ltd,1232075,,,,14/07/2021,2200182515,"4,950.00",,Payments to main contractor,,,,,
The Royal Borough of Kensington and Chelsea,RBKC,,Statutory and Corporate Items,Statutory Year End Accounting,,3Bm Ltd,1232075,,,,14/07/2021,2200182516,"2,500.00",,Payments to main contractor,,,,,
The Royal Borough of Kensington and Chelsea,RBKC,,Statutory and Corporate Items,Statutory Year End Accounting,,3Bm Ltd,1232075,,,,14/07/2021,2200182529,"8,250.00",,Payments to main contractor,,,,,
The Royal Borough of Kensington and Chelsea,RBKC,,Statutory and Corporate Items,Statutory Year End Accounting,,3Bm Ltd,1232075,,,,14/07/2021,2200182533,"2,000.00",,Payments to main contractor,,,,,
The Royal Borough of Kensington and Chelsea,RBKC,,Statutory and Corporate Items,Statutory Year End Accounting,,3Bm Ltd,1232075,,,,15/07/2021,2200182870,"41,660.00",,Creditors Control : AP GRIR,,,,,
The Royal Borough of Kensington and Chelsea,RBKC,,Statutory and Corporate Items,Statutory Year End Accounting,,3Bm Ltd,1232075,,,,15/07/2021,2200182870,"4,166.00",,Creditors Control : AP GRIR,,,,,
The Royal Borough of Kensington and Chelsea,RBKC,,Statutory and Corporate Items,Statutory Year End Accounting,,3Bm Ltd,1232075,,,,15/07/2021,2200182904,"1,035.00",,Creditors Control : AP GRIR,,,,,
The Royal Borough of Kensington and Chelsea,RBKC,,Statutory and Corporate Items,Statutory Year End Accounting,,3Bm Ltd,1232075,,,,15/07/2021,2200182909,"1,262.00",,Creditors Control : AP GRIR,,,,,
The Royal Borough of Kensington and Chelsea,RBKC,,Statutory and Corporate Items,Statutory Year End Accounting,,3Bm Ltd,1232075,,,,15/07/2021,2200182909,"12,619.00",,Creditors Control : AP GRIR,,,,,
The Royal Borough of Kensington and Chelsea,RBKC,,Statutory and Corporate Items,Statutory Year End Accounting,,3Bm Ltd,1232075,,,,28/07/2021,2200185274,"4,950.00",,Payments to main contractor,,,,,
The Royal Borough of Kensington and Chelsea,RBKC,,Statutory and Corporate Items,Statutory Year End Accounting,,3Bm Ltd,1232075,,,,28/07/2021,2200185288,"5,000.00",,Payments to main contractor,,,,,
The Royal Borough of Kensington and Chelsea,RBKC,,Statutory and Corporate Items,Statutory Year End Accounting,,3Bm Ltd,1232075,,,,28/07/2021,2200185290,"2,500.00",,Payments to main contractor,,,,,
The Royal Borough of Kensington and Chelsea,RBKC,,Statutory and Corporate Items,Statutory Year End Accounting,,3Bm Ltd,1232075,,,,28/07/2021,2200185293,"4,500.00",,Payments to main contractor,,,,,
The Royal Borough of Kensington and Chelsea,RBKC,,Statutory and Corporate Items,Statutory Year End Accounting,,3Bm Ltd,1232075,,,,28/07/2021,2200185294,"4,250.00",,Payments to main contractor,,,,,
The Royal Borough of Kensington and Chelsea,RBKC,,Statutory and Corporate Items,Statutory Year End Accounting,,3Bm Ltd,1232075,,,,28/07/2021,2200185295,"7,500.00",,Payments to main contractor,,,,,
The Royal Borough of Kensington and Chelsea,RBKC,,Statutory and Corporate Items,Statutory Year End Accounting,,3Bm Ltd,1232075,,,,10/08/2021,2200187963,"2,970.00",,Quantity Surveyors,,,,,
The Royal Borough of Kensington and Chelsea,RBKC,,Statutory and Corporate Items,Statutory Year End Accounting,,3Bm Ltd,1232075,,,,10/08/2021,2200187966,"1,100.00",,Other Consultants,,,,,
The Royal Borough of Kensington and Chelsea,RBKC,,Statutory and Corporate Items,Statutory Year End Accounting,,3Bm Ltd,1232075,,,,10/08/2021,2200187967,"1,100.00",,Other Consultants,,,,,
The Royal Borough of Kensington and Chelsea,RBKC,,Statutory and Corporate Items,Statutory Year End Accounting,,3Bm Ltd,1232075,,,,10/08/2021,2200187969,"2,970.00",,Quantity Surveyors,,,,,
The Royal Borough of Kensington and Chelsea,RBKC,,Statutory and Corporate Items,Statutory Year End Accounting,,3Bm Ltd,1232075,,,,10/08/2021,2200187970,"2,970.00",,Quantity Surveyors,,,,,
The Royal Borough of Kensington and Chelsea,RBKC,,Statutory and Corporate Items,Statutory Year End Accounting,,3Bm Ltd,1232075,,,,11/08/2021,2200188241,588,,Creditors Control : AP GRIR,,,,,
The Royal Borough of Kensington and Chelsea,RBKC,,Statutory and Corporate Items,Statutory Year End Accounting,,3Bm Ltd,1232075,,,,11/08/2021,2200188241,"5,873.00",,Creditors Control : AP GRIR,,,,,
The Royal Borough of Kensington and Chelsea,RBKC,,Statutory and Corporate Items,Statutory Year End Accounting,,3Bm Ltd,1232075,,,,11/08/2021,2200188326,"1,659.00",,Creditors Control : AP GRIR,,,,,
The Royal Borough of Kensington and Chelsea,RBKC,,Statutory and Corporate Items,Statutory Year End Accounting,,3Bm Ltd,1232075,,,,12/08/2021,2200188775,"4,000.00",,Architects,,,,,
The Royal Borough of Kensington and Chelsea,RBKC,,Statutory and Corporate Items,Statutory Year End Accounting,,3Bm Ltd,1232075,,,,12/08/2021,2200188776,"5,000.00",,Professional Fees : Non Legal,,,,,
The Royal Borough of Kensington and Chelsea,RBKC,,Statutory and Corporate Items,Statutory Year End Accounting,,3Bm Ltd,1232075,,,,25/08/2021,2200190987,"2,750.00",,Quantity Surveyors,,,,,
The Royal Borough of Kensington and Chelsea,RBKC,,Statutory and Corporate Items,Statutory Year End Accounting,,3Bm Ltd,1232075,,,,25/08/2021,2200190989,"1,100.00",,Architects,,,,,
The Royal Borough of Kensington and Chelsea,RBKC,,Statutory and Corporate Items,Statutory Year End Accounting,,3Bm Ltd,1232075,,,,26/08/2021,2200191198,"2,150.00",,Creditors Control : AP GRIR,,,,,
The Royal Borough of Kensington and Chelsea,RBKC,,Statutory and Corporate Items,Statutory Year End Accounting,,3Bm Ltd,1232075,,,,09/09/2021,2200193904,"2,750.00",,Professional Fees : Non Legal,,,,,
The Royal Borough of Kensington and Chelsea,RBKC,,Statutory and Corporate Items,Statutory Year End Accounting,,3Bm Ltd,1232075,,,,13/09/2021,2200194412,550,,Quantity Surveyors,,,,,
The Royal Borough of Kensington and Chelsea,RBKC,,Statutory and Corporate Items,Statutory Year End Accounting,,A N Contract Service Ltd,1232095,,,,09/09/2021,2200193988,"6,710.00",,Planned Maintenance (CM),,,,,
The Royal Borough of Kensington and Chelsea,RBKC,,Statutory and Corporate Items,Statutory Year End Accounting,,A N Contract Service Ltd,1232095,,,,17/09/2021,2200195223,"4,127.00",,Creditors Control : AP GRIR,,,,,
The Royal Borough of Kensington and Chelsea,RBKC,,Statutory and Corporate Items,Statutory Year End Accounting,,A N Contract Service Ltd,1232095,,,,17/09/2021,2200195278,"9,034.55",,Creditors Control : AP GRIR,,,,,
The Royal Borough of Kensington and Chelsea,RBKC,,Statutory and Corporate Items,Statutory Year End Accounting,,A N Contract Service Ltd,1232095,,,,20/09/2021,2200195709,"2,337.50",,Creditors Control : AP GRIR,,,,,
The Royal Borough of Kensington and Chelsea,RBKC,,Statutory and Corporate Items,Statutory Year End Accounting,,A N Contract Service Ltd,1232095,,,,20/09/2021,2200195710,"1,887.00",,Creditors Control : AP GRIR,,,,,
The Royal Borough of Kensington and Chelsea,RBKC,,Statutory and Corporate Items,Statutory Year End Accounting,,ABCA Systems LTD,1252858,,,,16/07/2021,2200183088,"12,383.70",,Payments to main contractor,,,,,
The Royal Borough of Kensington and Chelsea,RBKC,,Statutory and Corporate Items,Statutory Year End Accounting,,ACS PROFESSIONALS IN CONSTRUCTION LTD,1277658,,,,12/07/2021,2200181813,"306,925.00",,Payments to main contractor,,,,,
The Royal Borough of Kensington and Chelsea,RBKC,,Statutory and Corporate Items,Statutory Year End Accounting,,ACS PROFESSIONALS IN CONSTRUCTION LTD,1277658,,,,02/08/2021,2200186203,"204,200.00",,Payments to main contractor,,,,,
The Royal Borough of Kensington and Chelsea,RBKC,,Statutory and Corporate Items,Statutory Year End Accounting,,ACS PROFESSIONALS IN CONSTRUCTION LTD,1277658,,,,26/08/2021,2200191183,"551,150.00",,Payments to main contractor,,,,,
The Royal Borough of Kensington and Chelsea,RBKC,,Statutory and Corporate Items,Statutory Year End Accounting,,AKSWard Ltd,1279780,,,,07/07/2021,2200180958,500,,Professional Fees : Non Legal,,,,,
The Royal Borough of Kensington and Chelsea,RBKC,,Statutory and Corporate Items,Statutory Year End Accounting,,AKSWard Ltd,1279780,,,,07/07/2021,2200180965,500,,Professional Fees : Non Legal,,,,,
The Royal Borough of Kensington and Chelsea,RBKC,,Statutory and Corporate Items,Statutory Year End Accounting,,AKSWard Ltd,1279780,,,,07/07/2021,2200180966,500,,Professional Fees : Non Legal,,,,,
The Royal Borough of Kensington and Chelsea,RBKC,,Statutory and Corporate Items,Statutory Year End Accounting,,AKSWard Ltd,1279780,,,,06/08/2021,2200187219,500,,Professional Fees : Non Legal,,,,,
The Royal Borough of Kensington and Chelsea,RBKC,,Statutory and Corporate Items,Statutory Year End Accounting,,Ans Group Ltd,1265384,,,,01/07/2021,2200179789,"7,500.00",,Computer Software,,,,,
The Royal Borough of Kensington and Chelsea,RBKC,,Statutory and Corporate Items,Statutory Year End Accounting,,Ans Group Ltd,1265384,,,,23/07/2021,2200184413,"7,500.00",,Computer Software,,,,,
The Royal Borough of Kensington and Chelsea,RBKC,,Statutory and Corporate Items,Statutory Year End Accounting,,Ans Group Ltd,1265384,,,,26/08/2021,2200191193,"7,500.00",,Computer Software,,,,,
The Royal Borough of Kensington and Chelsea,RBKC,,Statutory and Corporate Items,Statutory Year End Accounting,,Ans Group Ltd,1265384,,,,21/09/2021,2200196086,"7,500.00",,Computer Software,,,,,
The Royal Borough of Kensington and Chelsea,RBKC,,Statutory and Corporate Items,Statutory Year End Accounting,,AO Business,1232416,,,,24/09/2021,2200196679,"3,579.00",,Special Maintenance,,,,,
The Royal Borough of Kensington and Chelsea,RBKC,,Statutory and Corporate Items,Statutory Year End Accounting,,Abbey Builders Ltd ,1232102,,,,22/07/2021,2200184341,"7,435.22",,Payments to main contractor,,,,,
The Royal Borough of Kensington and Chelsea,RBKC,,Statutory and Corporate Items,Statutory Year End Accounting,,Abc Building & Maintenance Contractors,1231156,,,,07/07/2021,2200180996,"9,641.00",,Payments to main contractor,,,,,
The Royal Borough of Kensington and Chelsea,RBKC,,Statutory and Corporate Items,Statutory Year End Accounting,,Abc Building & Maintenance Contractors,1231156,,,,11/08/2021,2200188331,"7,486.00",,Payments to main contractor,,,,,
The Royal Borough of Kensington and Chelsea,RBKC,,Statutory and Corporate Items,Statutory Year End Accounting,,Academy Consulting Solutions Ltd ,1232117,,,,06/07/2021,2200180668,"2,000.00",,Payments to main contractor,,,,,
The Royal Borough of Kensington and Chelsea,RBKC,,Statutory and Corporate Items,Statutory Year End Accounting,,Academy Consulting Solutions Ltd ,1232117,,,,06/07/2021,2200180669,"4,500.00",,Payments to main contractor,,,,,
The Royal Borough of Kensington and Chelsea,RBKC,,Statutory and Corporate Items,Statutory Year End Accounting,,Academy Consulting Solutions Ltd ,1232117,,,,04/08/2021,2200186601,"6,500.00",,Payments to main contractor,,,,,
The Royal Borough of Kensington and Chelsea,RBKC,,Statutory and Corporate Items,Statutory Year End Accounting,,Academy Consulting Solutions Ltd ,1232117,,,,04/08/2021,2200186602,"3,000.00",,Other Consultants,,,,,
The Royal Borough of Kensington and Chelsea,RBKC,,Statutory and Corporate Items,Statutory Year End Accounting,,Academy Consulting Solutions Ltd ,1232117,,,,04/08/2021,2200186781,"2,000.00",,Payments to main contractor,,,,,
The Royal Borough of Kensington and Chelsea,RBKC,,Statutory and Corporate Items,Statutory Year End Accounting,,Academy Consulting Solutions Ltd ,1232117,,,,10/08/2021,2200187956,"5,000.00",,Other Consultants,,,,,
The Royal Borough of Kensington and Chelsea,RBKC,,Statutory and Corporate Items,Statutory Year End Accounting,,Academy Consulting Solutions Ltd ,1232117,,,,01/09/2021,2200192224,"6,500.00",,Payments to main contractor,,,,,
The Royal Borough of Kensington and Chelsea,RBKC,,Statutory and Corporate Items,Statutory Year End Accounting,,Academy Consulting Solutions Ltd ,1232117,,,,01/09/2021,2200192225,"2,100.00",,Other Consultants,,,,,
The Royal Borough of Kensington and Chelsea,RBKC,,Statutory and Corporate Items,Statutory Year End Accounting,,Academy Consulting Solutions Ltd ,1232117,,,,01/09/2021,2200192227,"2,000.00",,Payments to main contractor,,,,,
The Royal Borough of Kensington and Chelsea,RBKC,,Statutory and Corporate Items,Statutory Year End Accounting,,Access Displays Ltd ,1232119,,,,08/09/2021,2200193735,"1,176.00",,Other In house Fees / Charges,,,,,
The Royal Borough of Kensington and Chelsea,RBKC,,Statutory and Corporate Items,Statutory Year End Accounting,,AD ESSE CONSULTING LTD,1280011,,,,06/07/2021,2200180608,"4,310.00",,Design Consultant,,,,,
The Royal Borough of Kensington and Chelsea,RBKC,,Statutory and Corporate Items,Statutory Year End Accounting,,AD ESSE CONSULTING LTD,1280011,,,,11/08/2021,2200188375,"4,661.21",,Design Consultant,,,,,
The Royal Borough of Kensington and Chelsea,RBKC,,Statutory and Corporate Items,Statutory Year End Accounting,,AD ESSE CONSULTING LTD,1280011,,,,08/09/2021,2200193734,"3,166.73",,Design Consultant,,,,,
The Royal Borough of Kensington and Chelsea,RBKC,,Statutory and Corporate Items,Statutory Year End Accounting,,Adaptations MW Ltd,1272466,,,,30/09/2021,2200197789,"6,054.00",,Payments to main contractor,,,,,
The Royal Borough of Kensington and Chelsea,RBKC,,Statutory and Corporate Items,Statutory Year End Accounting,,Alasdair Cameron Ltd,1232356,,,,29/07/2021,2200185597,"6,567.91",,Arboriculture/landscaping,,,,,
The Royal Borough of Kensington and Chelsea,RBKC,,Statutory and Corporate Items,Statutory Year End Accounting,,Alasdair Cameron Ltd,1232356,,,,20/09/2021,2200195729,"2,189.30",,Arboriculture/landscaping,,,,,
The Royal Borough of Kensington and Chelsea,RBKC,,Statutory and Corporate Items,Statutory Year End Accounting,,Allies & Morrison LLP ,1232371,,,,01/07/2021,2200179893,"6,000.00",,Payments to main contractor,,,,,
The Royal Borough of Kensington and Chelsea,RBKC,,Statutory and Corporate Items,Statutory Year End Accounting,,Allies & Morrison LLP ,1232371,,,,02/08/2021,2200186161,"1,575.00",,Payments to main contractor,,,,,
The Royal Borough of Kensington and Chelsea,RBKC,,Statutory and Corporate Items,Statutory Year End Accounting,,Allies & Morrison LLP ,1232371,,,,02/08/2021,2200186163,"10,253.63",,Payments to main contractor,,,,,
The Royal Borough of Kensington and Chelsea,RBKC,,Statutory and Corporate Items,Statutory Year End Accounting,,Allies & Morrison LLP ,1232371,,,,06/08/2021,2200187315,"10,526.58",,Construction : enhancements,,,,,
The Royal Borough of Kensington and Chelsea,RBKC,,Statutory and Corporate Items,Statutory Year End Accounting,,Allies & Morrison LLP ,1232371,,,,08/09/2021,2200193736,"3,947.42",,Construction : enhancements,,,,,
The Royal Borough of Kensington and Chelsea,RBKC,,Statutory and Corporate Items,Statutory Year End Accounting,,AMIMOS LTD,1280127,,,,14/07/2021,2200182441,"4,303.20",,Payments to sub contractor,,,,,
The Royal Borough of Kensington and Chelsea,RBKC,,Statutory and Corporate Items,Statutory Year End Accounting,,AMIMOS LTD,1280127,,,,28/09/2021,2200197162,"2,413.82",,Creditors Control : AP GRIR,,,,,
The Royal Borough of Kensington and Chelsea,RBKC,,Statutory and Corporate Items,Statutory Year End Accounting,,Amwell Construction Ltd ,1231169,,,,13/07/2021,2200182295,"10,137.00",,Payments to main contractor,,,,,
The Royal Borough of Kensington and Chelsea,RBKC,,Statutory and Corporate Items,Statutory Year End Accounting,,Amwell Construction Ltd ,1231169,,,,24/08/2021,2200190690,"5,994.00",,Payments to main contractor,,,,,
The Royal Borough of Kensington and Chelsea,RBKC,,Statutory and Corporate Items,Statutory Year End Accounting,,Amwell Construction Ltd ,1231169,,,,24/08/2021,2200190691,"5,473.00",,Payments to main contractor,,,,,
The Royal Borough of Kensington and Chelsea,RBKC,,Statutory and Corporate Items,Statutory Year End Accounting,,Amwell Construction Ltd ,1231169,,,,09/09/2021,2200193998,"5,377.00",,Payments to main contractor,,,,,
The Royal Borough of Kensington and Chelsea,RBKC,,Statutory and Corporate Items,Statutory Year End Accounting,,Amwell Construction Ltd ,1231169,,,,14/09/2021,2200194630,"7,286.00",,Payments to main contractor,,,,,
The Royal Borough of Kensington and Chelsea,RBKC,,Statutory and Corporate Items,Statutory Year End Accounting,,Amwell Construction Ltd ,1231169,,,,24/09/2021,2200196504,"11,105.55",,Payments to main contractor,,,,,
The Royal Borough of Kensington and Chelsea,RBKC,,Statutory and Corporate Items,Statutory Year End Accounting,,Anderson Acoustics Ltd,1280054,,,,08/09/2021,2200193791,500,,Other Consultants,,,,,
The Royal Borough of Kensington and Chelsea,RBKC,,Statutory and Corporate Items,Statutory Year End Accounting,,Aquaneed Ltd,1260944,,,,21/07/2021,2200184004,"7,025.42",,Payments to main contractor,,,,,
The Royal Borough of Kensington and Chelsea,RBKC,,Statutory and Corporate Items,Statutory Year End Accounting,,Aquaneed Ltd,1260944,,,,26/08/2021,2200191227,"11,357.85",,Payments to main contractor,,,,,
The Royal Borough of Kensington and Chelsea,RBKC,,Statutory and Corporate Items,Statutory Year End Accounting,,Aquaneed Ltd,1260944,,,,27/08/2021,2200191568,"7,161.93",,Payments to main contractor,,,,,
The Royal Borough of Kensington and Chelsea,RBKC,,Statutory and Corporate Items,Statutory Year End Accounting,,Aquaneed Ltd,1260944,,,,27/08/2021,2200191569,"7,965.30",,Payments to main contractor,,,,,
The Royal Borough of Kensington and Chelsea,RBKC,,Statutory and Corporate Items,Statutory Year End Accounting,,Aquaneed Ltd,1260944,,,,27/08/2021,2200191570,"5,047.17",,Payments to main contractor,,,,,
The Royal Borough of Kensington and Chelsea,RBKC,,Statutory and Corporate Items,Statutory Year End Accounting,,Arcadis Llp ,1232430,,,,01/07/2021,2200179767,"5,000.00",,Professional Fees : Non Legal,,,,,
The Royal Borough of Kensington and Chelsea,RBKC,,Statutory and Corporate Items,Statutory Year End Accounting,,Arcadis Llp ,1232430,,,,20/07/2021,2200183736,"30,000.00",,Payments to main contractor,,,,,
The Royal Borough of Kensington and Chelsea,RBKC,,Statutory and Corporate Items,Statutory Year End Accounting,,Arcadis Llp ,1232430,,,,22/07/2021,2200184208,"5,000.00",,Construction : enhancements,,,,,
The Royal Borough of Kensington and Chelsea,RBKC,,Statutory and Corporate Items,Statutory Year End Accounting,,Arcadis Llp ,1232430,,,,02/08/2021,2200186211,"2,500.00",,Professional Fees : Non Legal,,,,,
The Royal Borough of Kensington and Chelsea,RBKC,,Statutory and Corporate Items,Statutory Year End Accounting,,Arcadis Llp ,1232430,,,,02/08/2021,2200186219,"8,781.00",,Payments to main contractor,,,,,
The Royal Borough of Kensington and Chelsea,RBKC,,Statutory and Corporate Items,Statutory Year End Accounting,,Arcadis Llp ,1232430,,,,08/09/2021,2200193740,"2,500.00",,Professional Fees : Non Legal,,,,,
The Royal Borough of Kensington and Chelsea,RBKC,,Statutory and Corporate Items,Statutory Year End Accounting,,Architecture PLB ,1232434,,,,17/08/2021,2200189527,"3,112.50",,Construction : enhancements,,,,,
The Royal Borough of Kensington and Chelsea,RBKC,,Statutory and Corporate Items,Statutory Year End Accounting,,Arcus Consulting Llp,1265536,,,,09/07/2021,2200181482,"8,415.00",,Payments to main contractor,,,,,
The Royal Borough of Kensington and Chelsea,RBKC,,Statutory and Corporate Items,Statutory Year End Accounting,,Arcus Consulting Llp,1265536,,,,12/07/2021,2200181971,"9,685.21",,Site Works,,,,,
The Royal Borough of Kensington and Chelsea,RBKC,,Statutory and Corporate Items,Statutory Year End Accounting,,Arcus Consulting Llp,1265536,,,,22/07/2021,2200184220,"2,747.06",,Payments to main contractor,,,,,
The Royal Borough of Kensington and Chelsea,RBKC,,Statutory and Corporate Items,Statutory Year End Accounting,,Arcus Consulting Llp,1265536,,,,08/09/2021,2200193737,"4,747.42",,Site Works,,,,,
The Royal Borough of Kensington and Chelsea,RBKC,,Statutory and Corporate Items,Statutory Year End Accounting,,Arcus Consulting Llp,1265536,,,,08/09/2021,2200193738,"5,494.12",,Payments to main contractor,,,,,
The Royal Borough of Kensington and Chelsea,RBKC,,Statutory and Corporate Items,Statutory Year End Accounting,,Arcus Consulting Llp,1265536,,,,10/09/2021,2200194060,"6,645.29",,Site Works,,,,,
The Royal Borough of Kensington and Chelsea,RBKC,,Statutory and Corporate Items,Statutory Year End Accounting,,Ark Build Plc ,1231173,,,,01/07/2021,2200179812,"2,472.50",,Professional Fees : Non Legal,,,,,
The Royal Borough of Kensington and Chelsea,RBKC,,Statutory and Corporate Items,Statutory Year End Accounting,,Ark Build Plc ,1231173,,,,09/07/2021,2200181650,"7,554.00",,Payments to main contractor,,,,,
The Royal Borough of Kensington and Chelsea,RBKC,,Statutory and Corporate Items,Statutory Year End Accounting,,Ark Build Plc ,1231173,,,,23/07/2021,2200184411,"74,897.05",,Payments to main contractor,,,,,
The Royal Borough of Kensington and Chelsea,RBKC,,Statutory and Corporate Items,Statutory Year End Accounting,,Ark Build Plc ,1231173,,,,10/08/2021,2200187954,"37,000.00",,Site Works,,,,,
The Royal Borough of Kensington and Chelsea,RBKC,,Statutory and Corporate Items,Statutory Year End Accounting,,Ark Build Plc ,1231173,,,,11/08/2021,2200188384,"62,082.54",,Construction : enhancements,,,,,
The Royal Borough of Kensington and Chelsea,RBKC,,Statutory and Corporate Items,Statutory Year End Accounting,,T/A Artelia UK,1232443,,,,02/07/2021,2200180080,"2,000.00",,Site Works,,,,,
The Royal Borough of Kensington and Chelsea,RBKC,,Statutory and Corporate Items,Statutory Year End Accounting,,T/A Artelia UK,1232443,,,,02/09/2021,2200192476,650,,Site Works,,,,,
The Royal Borough of Kensington and Chelsea,RBKC,,Statutory and Corporate Items,Statutory Year End Accounting,,Ashburnham Community School ,1236058,,,,05/07/2021,3110323026,"6,074.00",,Computer Equipment,,,,,
The Royal Borough of Kensington and Chelsea,RBKC,,Statutory and Corporate Items,Statutory Year End Accounting,,Ashfords Llp ,1232627,,,,01/07/2021,2200179842,"6,717.60",,Professional Fees : Non Legal,,,,,
The Royal Borough of Kensington and Chelsea,RBKC,,Statutory and Corporate Items,Statutory Year End Accounting,,Ashfords Llp ,1232627,,,,02/07/2021,2200180078,576,,Other Consultants,,,,,
The Royal Borough of Kensington and Chelsea,RBKC,,Statutory and Corporate Items,Statutory Year End Accounting,,Ashfords Llp ,1232627,,,,13/07/2021,2200182162,"3,706.00",,Professional Fees : Non Legal,,,,,
The Royal Borough of Kensington and Chelsea,RBKC,,Statutory and Corporate Items,Statutory Year End Accounting,,Ashfords Llp ,1232627,,,,13/07/2021,2200182163,"2,244.00",,Professional Fees : Non Legal,,,,,
The Royal Borough of Kensington and Chelsea,RBKC,,Statutory and Corporate Items,Statutory Year End Accounting,,Ashfords Llp ,1232627,,,,03/09/2021,2200192746,709.5,,Professional Fees : Non Legal,,,,,
The Royal Borough of Kensington and Chelsea,RBKC,,Statutory and Corporate Items,Statutory Year End Accounting,,Ashfords Llp ,1232627,,,,03/09/2021,2200192786,"5,310.00",,Professional Fees : Non Legal,,,,,
The Royal Borough of Kensington and Chelsea,RBKC,,Statutory and Corporate Items,Statutory Year End Accounting,,ATELIERWEST LTD,1275695,,,,01/07/2021,2200179799,"1,190.00",,Payments to main contractor,,,,,
The Royal Borough of Kensington and Chelsea,RBKC,,Statutory and Corporate Items,Statutory Year End Accounting,,ATELIERWEST LTD,1275695,,,,14/09/2021,2200194641,"1,275.00",,Payments to main contractor,,,,,
The Royal Borough of Kensington and Chelsea,RBKC,,Statutory and Corporate Items,Statutory Year End Accounting,,ATELIERWEST LTD,1275695,,,,27/09/2021,2200196904,"3,431.65",,Payments to main contractor,,,,,
The Royal Borough of Kensington and Chelsea,RBKC,,Statutory and Corporate Items,Statutory Year End Accounting,,Avondale Park Primary School ,1236060,,,,16/07/2021,2200183083,"22,220.66",,Payments to main contractor,,,,,
The Royal Borough of Kensington and Chelsea,RBKC,,Statutory and Corporate Items,Statutory Year End Accounting,,Avondale Park Primary School ,1236060,,,,16/07/2021,2200183084,"30,697.00",,Payments to main contractor,,,,,
The Royal Borough of Kensington and Chelsea,RBKC,,Statutory and Corporate Items,Statutory Year End Accounting,,BT Global Services ,1233001,,,,01/07/2021,2200179811,"3,227.58",,Creditors Control : AP GRIR,,,,,
The Royal Borough of Kensington and Chelsea,RBKC,,Statutory and Corporate Items,Statutory Year End Accounting,,BT Global Services ,1233001,,,,01/07/2021,2200179811,"2,952.24",,Creditors Control : AP GRIR,,,,,
The Royal Borough of Kensington and Chelsea,RBKC,,Statutory and Corporate Items,Statutory Year End Accounting,,BT Global Services ,1233001,,,,21/07/2021,2200184006,"1,311.76",,Creditors Control : AP GRIR,,,,,
The Royal Borough of Kensington and Chelsea,RBKC,,Statutory and Corporate Items,Statutory Year End Accounting,,BT Global Services ,1233001,,,,21/07/2021,2200184006,"22,268.76",,Creditors Control : AP GRIR,,,,,
The Royal Borough of Kensington and Chelsea,RBKC,,Statutory and Corporate Items,Statutory Year End Accounting,,BT Global Services ,1233001,,,,21/07/2021,2200184006,"2,758.80",,Creditors Control : AP GRIR,,,,,
The Royal Borough of Kensington and Chelsea,RBKC,,Statutory and Corporate Items,Statutory Year End Accounting,,BT Global Services ,1233001,,,,21/07/2021,2200184006,"48,441.14",,Creditors Control : AP GRIR,,,,,
The Royal Borough of Kensington and Chelsea,RBKC,,Statutory and Corporate Items,Statutory Year End Accounting,,BT Global Services ,1233001,,,,13/08/2021,2200188986,586.02,,Creditors Control : AP GRIR,,,,,
The Royal Borough of Kensington and Chelsea,RBKC,,Statutory and Corporate Items,Statutory Year End Accounting,,BT Global Services ,1233001,,,,24/08/2021,2200190719,"3,307.20",,Creditors Control : AP GRIR,,,,,
The Royal Borough of Kensington and Chelsea,RBKC,,Statutory and Corporate Items,Statutory Year End Accounting,,BT Global Services ,1233001,,,,26/08/2021,2200191197,645.5,,Creditors Control : AP GRIR,,,,,
The Royal Borough of Kensington and Chelsea,RBKC,,Statutory and Corporate Items,Statutory Year End Accounting,,Bell Decorating & Building Ltd ,1232723,,,,01/07/2021,2200179846,"94,985.00",,Payments to main contractor,,,,,
The Royal Borough of Kensington and Chelsea,RBKC,,Statutory and Corporate Items,Statutory Year End Accounting,,Bell Decorating & Building Ltd ,1232723,,,,15/07/2021,2200182875,550,,Payments to sub contractor,,,,,
The Royal Borough of Kensington and Chelsea,RBKC,,Statutory and Corporate Items,Statutory Year End Accounting,,Bell Decorating & Building Ltd ,1232723,,,,19/07/2021,2200183532,"2,600.00",,Construction : enhancements,,,,,
The Royal Borough of Kensington and Chelsea,RBKC,,Statutory and Corporate Items,Statutory Year End Accounting,,Bell Decorating & Building Ltd ,1232723,,,,19/07/2021,2200183535,"2,500.00",,Construction : enhancements,,,,,
The Royal Borough of Kensington and Chelsea,RBKC,,Statutory and Corporate Items,Statutory Year End Accounting,,Bell Decorating & Building Ltd ,1232723,,,,19/07/2021,2200183536,"4,600.00",,Construction : enhancements,,,,,
The Royal Borough of Kensington and Chelsea,RBKC,,Statutory and Corporate Items,Statutory Year End Accounting,,Bell Decorating & Building Ltd ,1232723,,,,26/07/2021,2200184781,"3,420.00",,Construction : enhancements,,,,,
The Royal Borough of Kensington and Chelsea,RBKC,,Statutory and Corporate Items,Statutory Year End Accounting,,Bell Decorating & Building Ltd ,1232723,,,,26/07/2021,2200184782,560,,Construction : enhancements,,,,,
The Royal Borough of Kensington and Chelsea,RBKC,,Statutory and Corporate Items,Statutory Year End Accounting,,Bell Decorating & Building Ltd ,1232723,,,,26/07/2021,2200184783,525,,Construction : enhancements,,,,,
The Royal Borough of Kensington and Chelsea,RBKC,,Statutory and Corporate Items,Statutory Year End Accounting,,Bell Decorating & Building Ltd ,1232723,,,,26/07/2021,2200184785,"3,000.00",,Construction : enhancements,,,,,
The Royal Borough of Kensington and Chelsea,RBKC,,Statutory and Corporate Items,Statutory Year End Accounting,,Bell Decorating & Building Ltd ,1232723,,,,26/07/2021,2200184786,"2,532.00",,Construction : enhancements,,,,,
The Royal Borough of Kensington and Chelsea,RBKC,,Statutory and Corporate Items,Statutory Year End Accounting,,Bell Decorating & Building Ltd ,1232723,,,,26/07/2021,2200184789,"5,670.00",,Construction : enhancements,,,,,
The Royal Borough of Kensington and Chelsea,RBKC,,Statutory and Corporate Items,Statutory Year End Accounting,,Bell Decorating & Building Ltd ,1232723,,,,04/08/2021,2200186746,"2,030.00",,Special Maintenance,,,,,
The Royal Borough of Kensington and Chelsea,RBKC,,Statutory and Corporate Items,Statutory Year End Accounting,,Bell Decorating & Building Ltd ,1232723,,,,04/08/2021,2200186749,"5,400.00",,Creditors Control : AP GRIR,,,,,
The Royal Borough of Kensington and Chelsea,RBKC,,Statutory and Corporate Items,Statutory Year End Accounting,,Bell Decorating & Building Ltd ,1232723,,,,04/08/2021,2200186779,"57,522.00",,Construction : enhancements,,,,,
The Royal Borough of Kensington and Chelsea,RBKC,,Statutory and Corporate Items,Statutory Year End Accounting,,Bell Decorating & Building Ltd ,1232723,,,,05/08/2021,2200186905,560,,Creditors Control : AP GRIR,,,,,
The Royal Borough of Kensington and Chelsea,RBKC,,Statutory and Corporate Items,Statutory Year End Accounting,,Bell Decorating & Building Ltd ,1232723,,,,10/08/2021,2200187959,"5,680.00",,Site Works,,,,,
The Royal Borough of Kensington and Chelsea,RBKC,,Statutory and Corporate Items,Statutory Year End Accounting,,Bell Decorating & Building Ltd ,1232723,,,,23/08/2021,2200190554,"64,500.00",,Construction : enhancements,,,,,
The Royal Borough of Kensington and Chelsea,RBKC,,Statutory and Corporate Items,Statutory Year End Accounting,,Bell Decorating & Building Ltd ,1232723,,,,31/08/2021,2200191987,"8,385.00",,Construction : enhancements,,,,,
The Royal Borough of Kensington and Chelsea,RBKC,,Statutory and Corporate Items,Statutory Year End Accounting,,Bell Decorating & Building Ltd ,1232723,,,,31/08/2021,2200191991,"2,648.00",,Construction : enhancements,,,,,
The Royal Borough of Kensington and Chelsea,RBKC,,Statutory and Corporate Items,Statutory Year End Accounting,,Bell Decorating & Building Ltd ,1232723,,,,31/08/2021,2200191992,"11,604.00",,Construction : enhancements,,,,,
The Royal Borough of Kensington and Chelsea,RBKC,,Statutory and Corporate Items,Statutory Year End Accounting,,Bell Decorating & Building Ltd ,1232723,,,,01/09/2021,2200192248,"6,879.00",,Construction : enhancements,,,,,
The Royal Borough of Kensington and Chelsea,RBKC,,Statutory and Corporate Items,Statutory Year End Accounting,,Bell Decorating & Building Ltd ,1232723,,,,02/09/2021,2200192481,"9,385.00",,Construction : enhancements,,,,,
The Royal Borough of Kensington and Chelsea,RBKC,,Statutory and Corporate Items,Statutory Year End Accounting,,Bell Decorating & Building Ltd ,1232723,,,,02/09/2021,2200192485,"4,585.00",,Construction : enhancements,,,,,
The Royal Borough of Kensington and Chelsea,RBKC,,Statutory and Corporate Items,Statutory Year End Accounting,,Bell Decorating & Building Ltd ,1232723,,,,29/09/2021,2200197544,"40,026.40",,Payments to sub contractor,,,,,
The Royal Borough of Kensington and Chelsea,RBKC,,Statutory and Corporate Items,Statutory Year End Accounting,,Bellrock Property & Facilities Man ,1255450,,,,22/07/2021,2200184247,"8,409.50",,Creditors Control : AP GRIR,,,,,
The Royal Borough of Kensington and Chelsea,RBKC,,Statutory and Corporate Items,Statutory Year End Accounting,,Bellrock Property & Facilities Man ,1255450,,,,17/09/2021,2200195525,"37,978.60",,Planned Maintenance (CM),,,,,
The Royal Borough of Kensington and Chelsea,RBKC,,Statutory and Corporate Items,Statutory Year End Accounting,,Bellrock Property & Facilities Man ,1255450,,,,20/09/2021,2200195786,"47,520.00",,Planned Maintenance (CM),,,,,
The Royal Borough of Kensington and Chelsea,RBKC,,Statutory and Corporate Items,Statutory Year End Accounting,,Bellrock Property & Facilities Man ,1255450,,,,20/09/2021,2200195787,"8,298.40",,Planned Maintenance (CM),,,,,
The Royal Borough of Kensington and Chelsea,RBKC,,Statutory and Corporate Items,Statutory Year End Accounting,,Bestoutcome Limited,1273135,,,,25/08/2021,2200190992,"13,936.00",,Computer Software,,,,,
The Royal Borough of Kensington and Chelsea,RBKC,,Statutory and Corporate Items,Statutory Year End Accounting,,Beta Distribution (South) Ltd,1234938,,,,01/07/2021,2200179815,"1,083.92",,Estates Development,,,,,
The Royal Borough of Kensington and Chelsea,RBKC,,Statutory and Corporate Items,Statutory Year End Accounting,,Beta Distribution (South) Ltd,1234938,,,,14/07/2021,2200182486,895.58,,Other Consultants,,,,,
The Royal Borough of Kensington and Chelsea,RBKC,,Statutory and Corporate Items,Statutory Year End Accounting,,Beta Distribution (South) Ltd,1234938,,,,28/07/2021,2200185321,"1,021.67",,Site Works,,,,,
The Royal Borough of Kensington and Chelsea,RBKC,,Statutory and Corporate Items,Statutory Year End Accounting,,Beta Distribution (South) Ltd,1234938,,,,29/07/2021,2200185551,"1,244.30",,Construction : enhancements,,,,,
The Royal Borough of Kensington and Chelsea,RBKC,,Statutory and Corporate Items,Statutory Year End Accounting,,Beta Distribution (South) Ltd,1234938,,,,14/09/2021,2200194585,"1,121.62",,Creditors Control : AP GRIR,,,,,
The Royal Borough of Kensington and Chelsea,RBKC,,Statutory and Corporate Items,Statutory Year End Accounting,,Beta Distribution (South) Ltd,1234938,,,,20/09/2021,2200195707,801.95,,Site Works,,,,,
The Royal Borough of Kensington and Chelsea,RBKC,,Statutory and Corporate Items,Statutory Year End Accounting,,Beta Distribution (South) Ltd,1234938,,,,20/09/2021,2200195737,"1,111.62",,Other Consultants,,,,,
The Royal Borough of Kensington and Chelsea,RBKC,,Statutory and Corporate Items,Statutory Year End Accounting,,Beta Distribution (South) Ltd,1234938,,,,20/09/2021,2200195738,761.94,,Other Consultants,,,,,
The Royal Borough of Kensington and Chelsea,RBKC,,Statutory and Corporate Items,Statutory Year End Accounting,,Beta Distribution (South) Ltd,1234938,,,,30/09/2021,2200197783,615.99,,Construction : enhancements,,,,,
The Royal Borough of Kensington and Chelsea,RBKC,,Statutory and Corporate Items,Statutory Year End Accounting,,Bishop Creighton House Care & Repair Clients Account,1232751,,,,12/07/2021,2200181810,"5,794.00",,Payments to main contractor,,,,,
The Royal Borough of Kensington and Chelsea,RBKC,,Statutory and Corporate Items,Statutory Year End Accounting,,Bishop Creighton House Care & Repair Clients Account,1232751,,,,12/07/2021,2200181811,869.1,,Payments to main contractor,,,,,
The Royal Borough of Kensington and Chelsea,RBKC,,Statutory and Corporate Items,Statutory Year End Accounting,,Bishop Creighton House Care & Repair Clients Account,1232751,,,,27/07/2021,2200184995,"11,386.00",,Payments to main contractor,,,,,
The Royal Borough of Kensington and Chelsea,RBKC,,Statutory and Corporate Items,Statutory Year End Accounting,,Bishop Creighton House Care & Repair Clients Account,1232751,,,,12/08/2021,2200188743,"1,600.00",,Creditors Control : AP GRIR,,,,,
The Royal Borough of Kensington and Chelsea,RBKC,,Statutory and Corporate Items,Statutory Year End Accounting,,Bishop Creighton House Care & Repair Clients Account,1232751,,,,12/08/2021,2200188778,"1,894.80",,Payments to main contractor,,,,,
The Royal Borough of Kensington and Chelsea,RBKC,,Statutory and Corporate Items,Statutory Year End Accounting,,Bishop Creighton House Care & Repair Clients Account,1232751,,,,12/08/2021,2200188779,"1,707.90",,Payments to main contractor,,,,,
The Royal Borough of Kensington and Chelsea,RBKC,,Statutory and Corporate Items,Statutory Year End Accounting,,Bishop Creighton House Care & Repair Clients Account,1232751,,,,12/08/2021,2200188780,"5,956.50",,Payments to main contractor,,,,,
The Royal Borough of Kensington and Chelsea,RBKC,,Statutory and Corporate Items,Statutory Year End Accounting,,Bishop Creighton House Care & Repair Clients Account,1232751,,,,12/08/2021,2200188781,"18,355.00",,Payments to main contractor,,,,,
The Royal Borough of Kensington and Chelsea,RBKC,,Statutory and Corporate Items,Statutory Year End Accounting,,Bishop Creighton House Care & Repair Clients Account,1232751,,,,13/08/2021,2200188920,"2,753.25",,Payments to main contractor,,,,,
The Royal Borough of Kensington and Chelsea,RBKC,,Statutory and Corporate Items,Statutory Year End Accounting,,Bishop Creighton House Care & Repair Clients Account,1232751,,,,23/08/2021,2200190520,776.25,,Payments to main contractor,,,,,
The Royal Borough of Kensington and Chelsea,RBKC,,Statutory and Corporate Items,Statutory Year End Accounting,,Bishop Creighton House Care & Repair Clients Account,1232751,,,,23/08/2021,2200190521,"5,175.00",,Payments to main contractor,,,,,
The Royal Borough of Kensington and Chelsea,RBKC,,Statutory and Corporate Items,Statutory Year End Accounting,,Bishop Creighton House Care & Repair Clients Account,1232751,,,,30/09/2021,2200197771,"4,800.00",,Payments to main contractor,,,,,
The Royal Borough of Kensington and Chelsea,RBKC,,Statutory and Corporate Items,Statutory Year End Accounting,,Bishop Creighton House Care & Repair Clients Account,1232751,,,,30/09/2021,2200197772,720,,Payments to main contractor,,,,,
The Royal Borough of Kensington and Chelsea,RBKC,,Statutory and Corporate Items,Statutory Year End Accounting,,Black Box Network Services ,1231180,,,,13/08/2021,2200188911,"7,700.00",,Payments to sub contractor,,,,,
The Royal Borough of Kensington and Chelsea,RBKC,,Statutory and Corporate Items,Statutory Year End Accounting,,Black Box Network Services ,1231180,,,,27/09/2021,2200196859,"1,311.00",,Site Works,,,,,
The Royal Borough of Kensington and Chelsea,RBKC,,Statutory and Corporate Items,Statutory Year End Accounting,,Blackwall Hire Ltd ,1232756,,,,01/07/2021,2200179797,700,,Payments to sub contractor,,,,,
The Royal Borough of Kensington and Chelsea,RBKC,,Statutory and Corporate Items,Statutory Year End Accounting,,Blackwall Hire Ltd ,1232756,,,,01/07/2021,2200179798,700,,Payments to sub contractor,,,,,
The Royal Borough of Kensington and Chelsea,RBKC,,Statutory and Corporate Items,Statutory Year End Accounting,,Blackwall Hire Ltd ,1232756,,,,20/07/2021,2200183620,585,,Other Consultants,,,,,
The Royal Borough of Kensington and Chelsea,RBKC,,Statutory and Corporate Items,Statutory Year End Accounting,,Blackwall Hire Ltd ,1232756,,,,27/07/2021,2200184889,585,,Other Consultants,,,,,
The Royal Borough of Kensington and Chelsea,RBKC,,Statutory and Corporate Items,Statutory Year End Accounting,,Blackwall Hire Ltd ,1232756,,,,23/09/2021,2200196362,700,,Payments to sub contractor,,,,,
The Royal Borough of Kensington and Chelsea,RBKC,,Statutory and Corporate Items,Statutory Year End Accounting,,Blackwall Hire Ltd ,1232756,,,,28/09/2021,2200197146,555,,Other Consultants,,,,,
The Royal Borough of Kensington and Chelsea,RBKC,,Statutory and Corporate Items,Statutory Year End Accounting,,Bloom Procurement Services Ltd,1269893,,,,21/07/2021,2200184133,"14,960.00",,Professional Fees : Non Legal,,,,,
The Royal Borough of Kensington and Chelsea,RBKC,,Statutory and Corporate Items,Statutory Year End Accounting,,Bloom Procurement Services Ltd,1269893,,,,28/07/2021,2200185356,"4,200.00",,Other Consultants,,,,,
The Royal Borough of Kensington and Chelsea,RBKC,,Statutory and Corporate Items,Statutory Year End Accounting,,Bloom Procurement Services Ltd,1269893,,,,30/07/2021,2200185809,"12,600.00",,Other Consultants,,,,,
The Royal Borough of Kensington and Chelsea,RBKC,,Statutory and Corporate Items,Statutory Year End Accounting,,Bloom Procurement Services Ltd,1269893,,,,31/08/2021,2200191829,"14,960.00",,Professional Fees : Non Legal,,,,,
The Royal Borough of Kensington and Chelsea,RBKC,,Statutory and Corporate Items,Statutory Year End Accounting,,Bloom Procurement Services Ltd,1269893,,,,31/08/2021,2200191997,"7,621.05",,Other Consultants,,,,,
The Royal Borough of Kensington and Chelsea,RBKC,,Statutory and Corporate Items,Statutory Year End Accounting,,Bloom Procurement Services Ltd,1269893,,,,22/09/2021,2200196292,"21,726.25",,Construction : enhancements,,,,,
The Royal Borough of Kensington and Chelsea,RBKC,,Statutory and Corporate Items,Statutory Year End Accounting,,Borras Construction Ltd,1275543,,,,27/07/2021,2200185159,"80,827.80",,Payments to main contractor,,,,,
The Royal Borough of Kensington and Chelsea,RBKC,,Statutory and Corporate Items,Statutory Year End Accounting,,British Telecom (Openreach) ,1231183,,,,17/08/2021,2200189480,"117,289.65",,Telecommunications,,,,,
The Royal Borough of Kensington and Chelsea,RBKC,,Statutory and Corporate Items,Statutory Year End Accounting,,Redact Details,1260368,,,,18/08/2021,2200189986,"10,615.00",,Planned Maintenance (CM),,,,,
The Royal Borough of Kensington and Chelsea,RBKC,,Statutory and Corporate Items,Statutory Year End Accounting,,Building Design Partnership Ltd ,1233009,,,,09/07/2021,2200181484,"6,000.00",,Payments to main contractor,,,,,
The Royal Borough of Kensington and Chelsea,RBKC,,Statutory and Corporate Items,Statutory Year End Accounting,,Building Design Partnership Ltd ,1233009,,,,09/07/2021,2200181485,"44,750.00",,Payments to main contractor,,,,,
The Royal Borough of Kensington and Chelsea,RBKC,,Statutory and Corporate Items,Statutory Year End Accounting,,Building Design Partnership Ltd ,1233009,,,,02/08/2021,2200186190,"6,000.00",,Payments to main contractor,,,,,
The Royal Borough of Kensington and Chelsea,RBKC,,Statutory and Corporate Items,Statutory Year End Accounting,,Building Design Partnership Ltd ,1233009,,,,31/08/2021,2200191844,"6,000.00",,Payments to main contractor,,,,,
The Royal Borough of Kensington and Chelsea,RBKC,,Statutory and Corporate Items,Statutory Year End Accounting,,Building Design Partnership Ltd ,1233009,,,,30/09/2021,2200197704,"6,000.00",,Architects,,,,,
The Royal Borough of Kensington and Chelsea,RBKC,,Statutory and Corporate Items,Statutory Year End Accounting,,Butler & Young Services Ltd,1272888,,,,20/07/2021,2200183733,"2,070.00",,Professional Fees : Non Legal,,,,,
The Royal Borough of Kensington and Chelsea,RBKC,,Statutory and Corporate Items,Statutory Year End Accounting,,Butler & Young Services Ltd,1272888,,,,31/08/2021,2200191886,"5,175.00",,Professional Fees : Non Legal,,,,,
The Royal Borough of Kensington and Chelsea,RBKC,,Statutory and Corporate Items,Statutory Year End Accounting,,C&C Builders Ltd,1274385,,,,09/09/2021,2200193997,"5,340.00",,Payments to main contractor,,,,,
The Royal Borough of Kensington and Chelsea,RBKC,,Statutory and Corporate Items,Statutory Year End Accounting,,CBRE Ltd(CBRE Client Account - EA,1233315,,,,01/07/2021,2200179816,"16,000.00",,Other Consultants,,,,,
The Royal Borough of Kensington and Chelsea,RBKC,,Statutory and Corporate Items,Statutory Year End Accounting,,CBRE Ltd(CBRE Client Account - EA,1233315,,,,08/09/2021,2200193754,"6,000.00",,Other Consultants,,,,,
The Royal Borough of Kensington and Chelsea,RBKC,,Statutory and Corporate Items,Statutory Year End Accounting,,Clm Fireproofing Limited,1268719,,,,10/08/2021,2200188021,"9,631.25",,Payments to main contractor,,,,,
The Royal Borough of Kensington and Chelsea,RBKC,,Statutory and Corporate Items,Statutory Year End Accounting,,Clm Fireproofing Limited,1268719,,,,13/08/2021,2200189004,"8,084.42",,Payments to main contractor,,,,,
The Royal Borough of Kensington and Chelsea,RBKC,,Statutory and Corporate Items,Statutory Year End Accounting,,Cablesheer (Asbestos) Limited,1273893,,,,16/09/2021,2200195042,"5,889.25",,Payments to main contractor,,,,,
The Royal Borough of Kensington and Chelsea,RBKC,,Statutory and Corporate Items,Statutory Year End Accounting,,Calford Seadon (Health & Safety) Ltd,1233044,,,,07/07/2021,2200180889,"2,125.00",,Professional Fees : Non Legal,,,,,
The Royal Borough of Kensington and Chelsea,RBKC,,Statutory and Corporate Items,Statutory Year End Accounting,,Calford Seadon (Health & Safety) Ltd,1233044,,,,23/07/2021,2200184564,"1,007.94",,Professional Fees : Non Legal,,,,,
The Royal Borough of Kensington and Chelsea,RBKC,,Statutory and Corporate Items,Statutory Year End Accounting,,Calford Seadon (Health & Safety) Ltd,1233044,,,,29/09/2021,2200197324,"1,085.05",,Professional Fees : Non Legal,,,,,
The Royal Borough of Kensington and Chelsea,RBKC,,Statutory and Corporate Items,Statutory Year End Accounting,,Calford Seadon (Health & Safety) Ltd,1233044,,,,29/09/2021,2200197329,"1,183.41",,Professional Fees : Non Legal,,,,,
The Royal Borough of Kensington and Chelsea,RBKC,,Statutory and Corporate Items,Statutory Year End Accounting,,Campbell Tickell Ltd ,1233060,,,,21/07/2021,2200184114,"1,500.00",,Other Consultants,,,,,
The Royal Borough of Kensington and Chelsea,RBKC,,Statutory and Corporate Items,Statutory Year End Accounting,,Capita Business Services Ltd ,1233075,,,,24/09/2021,2200196680,"32,069.80",,Capitalised salaries,,,,,
The Royal Borough of Kensington and Chelsea,RBKC,,Statutory and Corporate Items,Statutory Year End Accounting,,Capital Property & Construction ,1256857,,,,16/07/2021,2200183114,"5,510.00",,Professional Fees : Non Legal,,,,,
The Royal Borough of Kensington and Chelsea,RBKC,,Statutory and Corporate Items,Statutory Year End Accounting,,Capital Property & Construction ,1256857,,,,19/07/2021,2200183478,"2,973.60",,Surveyors,,,,,
The Royal Borough of Kensington and Chelsea,RBKC,,Statutory and Corporate Items,Statutory Year End Accounting,,Capital Property & Construction ,1256857,,,,23/07/2021,2200184408,"1,236.59",,Payments to main contractor,,,,,
The Royal Borough of Kensington and Chelsea,RBKC,,Statutory and Corporate Items,Statutory Year End Accounting,,Cast Consult Ltd,1281165,,,,30/07/2021,2200185805,"5,000.00",,Other Consultants,,,,,
The Royal Borough of Kensington and Chelsea,RBKC,,Statutory and Corporate Items,Statutory Year End Accounting,,Cavendish Construction LTD,1267193,,,,05/08/2021,2200186949,"21,043.43",,Special Maintenance,,,,,
The Royal Borough of Kensington and Chelsea,RBKC,,Statutory and Corporate Items,Statutory Year End Accounting,,Cavendish Construction LTD,1267193,,,,05/08/2021,2200186974,"31,426.96",,Special Maintenance,,,,,
The Royal Borough of Kensington and Chelsea,RBKC,,Statutory and Corporate Items,Statutory Year End Accounting,,Cavendish Construction LTD,1267193,,,,12/08/2021,2200188735,"17,822.26",,Special Maintenance,,,,,
The Royal Borough of Kensington and Chelsea,RBKC,,Statutory and Corporate Items,Statutory Year End Accounting,,Cavendish Construction LTD,1267193,,,,01/09/2021,2200192197,"38,571.49",,Special Maintenance,,,,,
The Royal Borough of Kensington and Chelsea,RBKC,,Statutory and Corporate Items,Statutory Year End Accounting,,Cavendish Construction LTD,1267193,,,,01/09/2021,2200192199,"17,995.58",,Special Maintenance,,,,,
The Royal Borough of Kensington and Chelsea,RBKC,,Statutory and Corporate Items,Statutory Year End Accounting,,Cavendish Construction LTD,1267193,,,,01/09/2021,2200192201,"21,777.22",,Special Maintenance,,,,,
The Royal Borough of Kensington and Chelsea,RBKC,,Statutory and Corporate Items,Statutory Year End Accounting,,Cavendish Construction LTD,1267193,,,,21/09/2021,2200196075,"30,098.64",,Special Maintenance,,,,,
The Royal Borough of Kensington and Chelsea,RBKC,,Statutory and Corporate Items,Statutory Year End Accounting,,Chapmanbdsp Limited,1270766,,,,08/07/2021,2200181136,700,,Payments to main contractor,,,,,
The Royal Borough of Kensington and Chelsea,RBKC,,Statutory and Corporate Items,Statutory Year End Accounting,,Chapmanbdsp Limited,1270766,,,,08/07/2021,2200181137,500,,Payments to main contractor,,,,,
The Royal Borough of Kensington and Chelsea,RBKC,,Statutory and Corporate Items,Statutory Year End Accounting,,Chapmanbdsp Limited,1270766,,,,17/08/2021,2200189495,500,,Payments to main contractor,,,,,
The Royal Borough of Kensington and Chelsea,RBKC,,Statutory and Corporate Items,Statutory Year End Accounting,,Chapmanbdsp Limited,1270766,,,,17/08/2021,2200189496,900,,Payments to main contractor,,,,,
The Royal Borough of Kensington and Chelsea,RBKC,,Statutory and Corporate Items,Statutory Year End Accounting,,Checkmate Fire Solutions Ltd ,1231187,,,,06/09/2021,2200193096,"5,629.71",,Creditors Control : AP GRIR,,,,,
The Royal Borough of Kensington and Chelsea,RBKC,,Statutory and Corporate Items,Statutory Year End Accounting,,Checkmate Fire Solutions Ltd ,1231187,,,,27/09/2021,2200196846,"2,416.30",,Planned Maintenance (CM),,,,,
The Royal Borough of Kensington and Chelsea,RBKC,,Statutory and Corporate Items,Statutory Year End Accounting,,Checkmate Fire Solutions Ltd ,1231187,,,,27/09/2021,2200196846,"15,618.02",,Creditors Control : AP GRIR,,,,,
The Royal Borough of Kensington and Chelsea,RBKC,,Statutory and Corporate Items,Statutory Year End Accounting,,Chelsea Academy ,1232792,,,,07/07/2021,3110325253,"26,998.50",,Computer Equipment,,,,,
The Royal Borough of Kensington and Chelsea,RBKC,,Statutory and Corporate Items,Statutory Year End Accounting,,Chris Edge Tree Care Ltd ,1233369,,,,01/07/2021,2200179878,"6,885.00",,Payments to main contractor,,,,,
The Royal Borough of Kensington and Chelsea,RBKC,,Statutory and Corporate Items,Statutory Year End Accounting,,Chris Edge Tree Care Ltd ,1233369,,,,28/07/2021,2200185445,"6,055.00",,Creditors Control : AP GRIR,,,,,
The Royal Borough of Kensington and Chelsea,RBKC,,Statutory and Corporate Items,Statutory Year End Accounting,,Chris Edge Tree Care Ltd ,1233369,,,,10/08/2021,2200187931,"2,530.00",,Payments to main contractor,,,,,
The Royal Borough of Kensington and Chelsea,RBKC,,Statutory and Corporate Items,Statutory Year End Accounting,,City Electrical Factors,1263373,,,,27/07/2021,2200185140,"1,498.22",,Special Maintenance,,,,,
The Royal Borough of Kensington and Chelsea,RBKC,,Statutory and Corporate Items,Statutory Year End Accounting,,City Electrical Factors,1263373,,,,27/07/2021,2200185143,793.2,,Special Maintenance,,,,,
The Royal Borough of Kensington and Chelsea,RBKC,,Statutory and Corporate Items,Statutory Year End Accounting,,City Electrical Factors,1263373,,,,05/08/2021,2200186983,"3,863.88",,Special Maintenance,,,,,
The Royal Borough of Kensington and Chelsea,RBKC,,Statutory and Corporate Items,Statutory Year End Accounting,,City Electrical Factors,1263373,,,,27/08/2021,2200191581,"1,404.99",,Special Maintenance,,,,,
The Royal Borough of Kensington and Chelsea,RBKC,,Statutory and Corporate Items,Statutory Year End Accounting,,City Electrical Factors,1263373,,,,01/09/2021,2200192215,"1,719.49",,Special Maintenance,,,,,
The Royal Borough of Kensington and Chelsea,RBKC,,Statutory and Corporate Items,Statutory Year End Accounting,,City Electrical Factors,1263373,,,,21/09/2021,2200196049,"1,880.70",,Special Maintenance,,,,,
The Royal Borough of Kensington and Chelsea,RBKC,,Statutory and Corporate Items,Statutory Year End Accounting,,Clockwork Removals ,1233410,,,,17/08/2021,2200189490,"12,802.94",,Payments to sub contractor,,,,,
The Royal Borough of Kensington and Chelsea,RBKC,,Statutory and Corporate Items,Statutory Year End Accounting,,Clockwork Removals ,1233410,,,,23/08/2021,2200190507,"1,169.75",,Creditors Control : AP GRIR,,,,,
The Royal Borough of Kensington and Chelsea,RBKC,,Statutory and Corporate Items,Statutory Year End Accounting,,Cluttons LLP(Firms Account -  For Fee invoices),1233422,,,,29/07/2021,3110331184,"2,640.00",,Professional Fees : Non Legal,,,,,
The Royal Borough of Kensington and Chelsea,RBKC,,Statutory and Corporate Items,Statutory Year End Accounting,,Connected Response Limite,1265273,,,,04/08/2021,2200186628,"1,627.50",,Payments to main contractor,,,,,
The Royal Borough of Kensington and Chelsea,RBKC,,Statutory and Corporate Items,Statutory Year End Accounting,,Constellia Public Limited,1279396,,,,12/08/2021,2200188559,"15,560.77",,Legal Fees & expenses,,,,,
The Royal Borough of Kensington and Chelsea,RBKC,,Statutory and Corporate Items,Statutory Year End Accounting,,Constellia Public Limited,1279396,,,,16/09/2021,2200195043,"4,367.78",,Legal Fees & expenses,,,,,
The Royal Borough of Kensington and Chelsea,RBKC,,Statutory and Corporate Items,Statutory Year End Accounting,,Contour Direct Ltd ,1257919,,,,29/09/2021,2200197415,564,,Other capital equipment,,,,,
The Royal Borough of Kensington and Chelsea,RBKC,,Statutory and Corporate Items,Statutory Year End Accounting,,Core Networx Ltd ,1233681,,,,22/07/2021,2200184321,"2,294.00",,Computer Equipment,,,,,
The Royal Borough of Kensington and Chelsea,RBKC,,Statutory and Corporate Items,Statutory Year End Accounting,,Core Networx Ltd ,1233681,,,,20/09/2021,2200195742,"6,234.40",,Telecommunications,,,,,
The Royal Borough of Kensington and Chelsea,RBKC,,Statutory and Corporate Items,Statutory Year End Accounting,,Core Networx Ltd ,1233681,,,,20/09/2021,2200195743,"4,969.20",,Telecommunications,,,,,
The Royal Borough of Kensington and Chelsea,RBKC,,Statutory and Corporate Items,Statutory Year End Accounting,,Core Projects Ltd ,1233682,,,,07/09/2021,2200193579,"4,742.00",,Site Works,,,,,
The Royal Borough of Kensington and Chelsea,RBKC,,Statutory and Corporate Items,Statutory Year End Accounting,,Cupaz ,1233737,,,,13/09/2021,2200194522,"19,359.15",,Payments to main contractor,,,,,
The Royal Borough of Kensington and Chelsea,RBKC,,Statutory and Corporate Items,Statutory Year End Accounting,,Currie & Brown UK Ltd ,1233738,,,,08/07/2021,2200181194,607.5,,Payments to main contractor,,,,,
The Royal Borough of Kensington and Chelsea,RBKC,,Statutory and Corporate Items,Statutory Year End Accounting,,Currie & Brown UK Ltd ,1233738,,,,22/07/2021,2200184202,"1,465.00",,Payments to main contractor,,,,,
The Royal Borough of Kensington and Chelsea,RBKC,,Statutory and Corporate Items,Statutory Year End Accounting,,Currie & Brown UK Ltd ,1233738,,,,22/07/2021,2200184204,979,,Site Works,,,,,
The Royal Borough of Kensington and Chelsea,RBKC,,Statutory and Corporate Items,Statutory Year End Accounting,,Currie & Brown UK Ltd ,1233738,,,,27/08/2021,2200191566,"1,465.00",,Payments to main contractor,,,,,
The Royal Borough of Kensington and Chelsea,RBKC,,Statutory and Corporate Items,Statutory Year End Accounting,,Currie & Brown UK Ltd ,1233738,,,,27/08/2021,2200191567,979,,Site Works,,,,,
The Royal Borough of Kensington and Chelsea,RBKC,,Statutory and Corporate Items,Statutory Year End Accounting,,Currie & Brown UK Ltd ,1233738,,,,24/09/2021,2200196506,979,,Site Works,,,,,
The Royal Borough of Kensington and Chelsea,RBKC,,Statutory and Corporate Items,Statutory Year End Accounting,,Currie & Brown UK Ltd ,1233738,,,,24/09/2021,2200196508,"1,465.00",,Payments to main contractor,,,,,
The Royal Borough of Kensington and Chelsea,RBKC,,Statutory and Corporate Items,Statutory Year End Accounting,,Cyclehoop Ltd ,1233744,,,,11/08/2021,2200188292,"1,095.00",,Payments to main contractor,,,,,
The Royal Borough of Kensington and Chelsea,RBKC,,Statutory and Corporate Items,Statutory Year End Accounting,,DCM Surfaces,1273556,,,,09/07/2021,2200181483,"16,076.00",,Payments to main contractor,,,,,
The Royal Borough of Kensington and Chelsea,RBKC,,Statutory and Corporate Items,Statutory Year End Accounting,,DCM Surfaces,1273556,,,,13/07/2021,2200182095,"1,924.00",,Payments to main contractor,,,,,
The Royal Borough of Kensington and Chelsea,RBKC,,Statutory and Corporate Items,Statutory Year End Accounting,,Dale Studios Ltd,1281460,,,,13/08/2021,2200188979,"14,642.00",,Other Consultants,,,,,
The Royal Borough of Kensington and Chelsea,RBKC,,Statutory and Corporate Items,Statutory Year End Accounting,,Decontaminate UK Limited,1280985,,,,04/08/2021,2200186752,870,,Payments to main contractor,,,,,
The Royal Borough of Kensington and Chelsea,RBKC,,Statutory and Corporate Items,Statutory Year End Accounting,,Decontaminate UK Limited,1280985,,,,04/08/2021,2200186754,672,,Payments to main contractor,,,,,
The Royal Borough of Kensington and Chelsea,RBKC,,Statutory and Corporate Items,Statutory Year End Accounting,,Decontaminate UK Limited,1280985,,,,04/08/2021,2200186757,820,,Payments to main contractor,,,,,
The Royal Borough of Kensington and Chelsea,RBKC,,Statutory and Corporate Items,Statutory Year End Accounting,,Derisk (UK) Limited ,1233980,,,,08/07/2021,2200181128,"2,300.00",,Payments to main contractor,,,,,
The Royal Borough of Kensington and Chelsea,RBKC,,Statutory and Corporate Items,Statutory Year End Accounting,,Derisk (UK) Limited ,1233980,,,,08/07/2021,2200181130,558.73,,Payments to main contractor,,,,,
The Royal Borough of Kensington and Chelsea,RBKC,,Statutory and Corporate Items,Statutory Year End Accounting,,Derisk (UK) Limited ,1233980,,,,08/07/2021,2200181131,876.19,,Payments to main contractor,,,,,
The Royal Borough of Kensington and Chelsea,RBKC,,Statutory and Corporate Items,Statutory Year End Accounting,,Derisk (UK) Limited ,1233980,,,,27/07/2021,2200185052,720,,Professional Fees : Non Legal,,,,,
The Royal Borough of Kensington and Chelsea,RBKC,,Statutory and Corporate Items,Statutory Year End Accounting,,Derisk (UK) Limited ,1233980,,,,27/07/2021,2200185053,720,,Professional Fees : Non Legal,,,,,
The Royal Borough of Kensington and Chelsea,RBKC,,Statutory and Corporate Items,Statutory Year End Accounting,,Derisk (UK) Limited ,1233980,,,,03/08/2021,2200186448,"4,290.00",,Professional Fees : Non Legal,,,,,
The Royal Borough of Kensington and Chelsea,RBKC,,Statutory and Corporate Items,Statutory Year End Accounting,,Derisk (UK) Limited ,1233980,,,,17/08/2021,2200189642,876.19,,Payments to main contractor,,,,,
The Royal Borough of Kensington and Chelsea,RBKC,,Statutory and Corporate Items,Statutory Year End Accounting,,Derisk (UK) Limited ,1233980,,,,17/08/2021,2200189645,"2,300.00",,Payments to main contractor,,,,,
The Royal Borough of Kensington and Chelsea,RBKC,,Statutory and Corporate Items,Statutory Year End Accounting,,Derisk (UK) Limited ,1233980,,,,17/08/2021,2200189646,558.73,,Payments to main contractor,,,,,
The Royal Borough of Kensington and Chelsea,RBKC,,Statutory and Corporate Items,Statutory Year End Accounting,,Derisk (UK) Limited ,1233980,,,,01/09/2021,2200192190,"2,136.93",,Professional Fees : Non Legal,,,,,
The Royal Borough of Kensington and Chelsea,RBKC,,Statutory and Corporate Items,Statutory Year End Accounting,,Derisk (UK) Limited ,1233980,,,,03/09/2021,2200192971,"12,870.00",,Professional Fees : Non Legal,,,,,
The Royal Borough of Kensington and Chelsea,RBKC,,Statutory and Corporate Items,Statutory Year End Accounting,,Derisk (UK) Limited ,1233980,,,,23/09/2021,2200196363,520,,Payments to main contractor,,,,,
The Royal Borough of Kensington and Chelsea,RBKC,,Statutory and Corporate Items,Statutory Year End Accounting,,Derisk (UK) Limited ,1233980,,,,30/09/2021,2200197721,558.73,,Payments to main contractor,,,,,
The Royal Borough of Kensington and Chelsea,RBKC,,Statutory and Corporate Items,Statutory Year End Accounting,,Derisk (UK) Limited ,1233980,,,,30/09/2021,2200197724,"2,300.00",,Payments to main contractor,,,,,
The Royal Borough of Kensington and Chelsea,RBKC,,Statutory and Corporate Items,Statutory Year End Accounting,,District Energy Development Ltd,1275886,,,,20/07/2021,2200183928,"2,000.00",,Design Consultant,,,,,
The Royal Borough of Kensington and Chelsea,RBKC,,Statutory and Corporate Items,Statutory Year End Accounting,,District Energy Development Ltd,1275886,,,,13/08/2021,2200188933,"1,600.00",,Design Consultant,,,,,
The Royal Borough of Kensington and Chelsea,RBKC,,Statutory and Corporate Items,Statutory Year End Accounting,,District Energy Development Ltd,1275886,,,,16/09/2021,2200195046,"1,200.00",,Design Consultant,,,,,
The Royal Borough of Kensington and Chelsea,RBKC,,Statutory and Corporate Items,Statutory Year End Accounting,,Dma Signs Ltd ,1234013,,,,13/07/2021,2200182276,"5,303.85",,Site Works,,,,,
The Royal Borough of Kensington and Chelsea,RBKC,,Statutory and Corporate Items,Statutory Year End Accounting,,Dma Signs Ltd ,1234013,,,,13/07/2021,2200182281,"1,680.00",,Site Works,,,,,
The Royal Borough of Kensington and Chelsea,RBKC,,Statutory and Corporate Items,Statutory Year End Accounting,,Dma Signs Ltd ,1234013,,,,14/07/2021,2200182456,"39,836.99",,Site Works,,,,,
The Royal Borough of Kensington and Chelsea,RBKC,,Statutory and Corporate Items,Statutory Year End Accounting,,Dma Signs Ltd ,1234013,,,,31/08/2021,2200191964,"1,295.00",,Site Works,,,,,
The Royal Borough of Kensington and Chelsea,RBKC,,Statutory and Corporate Items,Statutory Year End Accounting,,Dolphin Mobility Ltd,1280897,,,,21/07/2021,2200184002,"8,690.00",,Payments to main contractor,,,,,
The Royal Borough of Kensington and Chelsea,RBKC,,Statutory and Corporate Items,Statutory Year End Accounting,,Door Plus Ltd,1265703,,,,21/07/2021,2200184003,"13,598.62",,Payments to main contractor,,,,,
The Royal Borough of Kensington and Chelsea,RBKC,,Statutory and Corporate Items,Statutory Year End Accounting,,Door Plus Ltd,1265703,,,,26/08/2021,2200191448,"12,706.20",,Payments to main contractor,,,,,
The Royal Borough of Kensington and Chelsea,RBKC,,Statutory and Corporate Items,Statutory Year End Accounting,,Door Plus Ltd,1265703,,,,26/08/2021,2200191449,"12,706.20",,Payments to main contractor,,,,,
The Royal Borough of Kensington and Chelsea,RBKC,,Statutory and Corporate Items,Statutory Year End Accounting,,Duncan & Grove,1261381,,,,06/07/2021,2200180726,"11,158.23",,Site Works,,,,,
The Royal Borough of Kensington and Chelsea,RBKC,,Statutory and Corporate Items,Statutory Year End Accounting,,Duncan & Grove,1261381,,,,19/07/2021,2200183325,"33,436.39",,Site Works,,,,,
The Royal Borough of Kensington and Chelsea,RBKC,,Statutory and Corporate Items,Statutory Year End Accounting,,Duncan & Grove,1261381,,,,09/08/2021,2200187701,"7,447.88",,Site Works,,,,,
The Royal Borough of Kensington and Chelsea,RBKC,,Statutory and Corporate Items,Statutory Year End Accounting,,ECD Architects Ltd,1234067,,,,07/07/2021,2200180930,"2,400.66",,Payments to main contractor,,,,,
The Royal Borough of Kensington and Chelsea,RBKC,,Statutory and Corporate Items,Statutory Year End Accounting,,ECD Architects Ltd,1234067,,,,07/07/2021,2200180945,"19,699.11",,Payments to main contractor,,,,,
The Royal Borough of Kensington and Chelsea,RBKC,,Statutory and Corporate Items,Statutory Year End Accounting,,ECD Architects Ltd,1234067,,,,07/07/2021,2200180946,"7,397.50",,Payments to main contractor,,,,,
The Royal Borough of Kensington and Chelsea,RBKC,,Statutory and Corporate Items,Statutory Year End Accounting,,ECD Architects Ltd,1234067,,,,07/07/2021,2200180947,"6,490.00",,Payments to main contractor,,,,,
The Royal Borough of Kensington and Chelsea,RBKC,,Statutory and Corporate Items,Statutory Year End Accounting,,ECD Architects Ltd,1234067,,,,07/07/2021,2200180986,997.2,,Payments to main contractor,,,,,
The Royal Borough of Kensington and Chelsea,RBKC,,Statutory and Corporate Items,Statutory Year End Accounting,,ECD Architects Ltd,1234067,,,,07/07/2021,2200180987,"7,476.00",,Payments to main contractor,,,,,
The Royal Borough of Kensington and Chelsea,RBKC,,Statutory and Corporate Items,Statutory Year End Accounting,,ECD Architects Ltd,1234067,,,,07/07/2021,2200180989,"4,438.50",,Payments to main contractor,,,,,
The Royal Borough of Kensington and Chelsea,RBKC,,Statutory and Corporate Items,Statutory Year End Accounting,,ECD Architects Ltd,1234067,,,,07/07/2021,2200180990,"3,894.00",,Payments to main contractor,,,,,
The Royal Borough of Kensington and Chelsea,RBKC,,Statutory and Corporate Items,Statutory Year End Accounting,,ECD Architects Ltd,1234067,,,,12/08/2021,2200188748,"93,702.74",,Professional Fees : Non Legal,,,,,
The Royal Borough of Kensington and Chelsea,RBKC,,Statutory and Corporate Items,Statutory Year End Accounting,,ECD Architects Ltd,1234067,,,,17/08/2021,2200189488,"3,000.00",,Other Consultants,,,,,
The Royal Borough of Kensington and Chelsea,RBKC,,Statutory and Corporate Items,Statutory Year End Accounting,,ECD Architects Ltd,1234067,,,,17/08/2021,2200189489,"9,849.55",,Payments to main contractor,,,,,
The Royal Borough of Kensington and Chelsea,RBKC,,Statutory and Corporate Items,Statutory Year End Accounting,,ECD Architects Ltd,1234067,,,,17/08/2021,2200189492,"15,965.02",,Payments to main contractor,,,,,
The Royal Borough of Kensington and Chelsea,RBKC,,Statutory and Corporate Items,Statutory Year End Accounting,,ECD Architects Ltd,1234067,,,,17/08/2021,2200189494,"18,193.14",,Payments to main contractor,,,,,
The Royal Borough of Kensington and Chelsea,RBKC,,Statutory and Corporate Items,Statutory Year End Accounting,,ECD Architects Ltd,1234067,,,,17/08/2021,2200189497,"73,939.00",,Payments to main contractor,,,,,
The Royal Borough of Kensington and Chelsea,RBKC,,Statutory and Corporate Items,Statutory Year End Accounting,,ECD Architects Ltd,1234067,,,,17/08/2021,2200189649,"3,000.00",,Other Consultants,,,,,
The Royal Borough of Kensington and Chelsea,RBKC,,Statutory and Corporate Items,Statutory Year End Accounting,,ECD Architects Ltd,1234067,,,,18/08/2021,2200189924,"8,000.00",,Payments to main contractor,,,,,
The Royal Borough of Kensington and Chelsea,RBKC,,Statutory and Corporate Items,Statutory Year End Accounting,,ECD Architects Ltd,1234067,,,,26/08/2021,2200191215,"7,599.65",,Payments to main contractor,,,,,
The Royal Borough of Kensington and Chelsea,RBKC,,Statutory and Corporate Items,Statutory Year End Accounting,,ECD Architects Ltd,1234067,,,,17/09/2021,2200195514,"53,317.65",,Professional Fees : Non Legal,,,,,
The Royal Borough of Kensington and Chelsea,RBKC,,Statutory and Corporate Items,Statutory Year End Accounting,,ECD Architects Ltd,1234067,,,,17/09/2021,2200195515,"58,905.10",,Professional Fees : Non Legal,,,,,
The Royal Borough of Kensington and Chelsea,RBKC,,Statutory and Corporate Items,Statutory Year End Accounting,,ECD Architects Ltd,1234067,,,,30/09/2021,2200197708,"7,599.65",,Payments to main contractor,,,,,
The Royal Borough of Kensington and Chelsea,RBKC,,Statutory and Corporate Items,Statutory Year End Accounting,,ECD Architects Ltd,1234067,,,,30/09/2021,2200197709,"7,982.51",,Payments to main contractor,,,,,
The Royal Borough of Kensington and Chelsea,RBKC,,Statutory and Corporate Items,Statutory Year End Accounting,,ECD Architects Ltd,1234067,,,,30/09/2021,2200197710,"7,310.39",,Payments to main contractor,,,,,
The Royal Borough of Kensington and Chelsea,RBKC,,Statutory and Corporate Items,Statutory Year End Accounting,,ETEC Associates LTD,1269170,,,,01/07/2021,2200179776,750,,Payments to main contractor,,,,,
The Royal Borough of Kensington and Chelsea,RBKC,,Statutory and Corporate Items,Statutory Year End Accounting,,ETEC Associates LTD,1269170,,,,01/07/2021,2200179778,"1,750.00",,Payments to main contractor,,,,,
The Royal Borough of Kensington and Chelsea,RBKC,,Statutory and Corporate Items,Statutory Year End Accounting,,ETEC Associates LTD,1269170,,,,01/07/2021,2200179780,"1,125.00",,Payments to main contractor,,,,,
The Royal Borough of Kensington and Chelsea,RBKC,,Statutory and Corporate Items,Statutory Year End Accounting,,ETEC Associates LTD,1269170,,,,01/07/2021,2200179782,750,,Payments to main contractor,,,,,
The Royal Borough of Kensington and Chelsea,RBKC,,Statutory and Corporate Items,Statutory Year End Accounting,,ETEC Associates LTD,1269170,,,,01/07/2021,2200179784,750,,Payments to main contractor,,,,,
The Royal Borough of Kensington and Chelsea,RBKC,,Statutory and Corporate Items,Statutory Year End Accounting,,Emisphere Ltd ,1231200,,,,30/07/2021,2200185885,"9,950.00",,Payments to main contractor,,,,,
The Royal Borough of Kensington and Chelsea,RBKC,,Statutory and Corporate Items,Statutory Year End Accounting,,Emisphere Ltd ,1231200,,,,13/09/2021,2200194406,"1,350.00",,Payments to main contractor,,,,,
The Royal Borough of Kensington and Chelsea,RBKC,,Statutory and Corporate Items,Statutory Year End Accounting,,Emisphere Ltd ,1231200,,,,14/09/2021,2200194628,"1,210.00",,Payments to main contractor,,,,,
The Royal Borough of Kensington and Chelsea,RBKC,,Statutory and Corporate Items,Statutory Year End Accounting,,Energiesprong UK Ltd,1276664,,,,12/07/2021,2200181812,"50,000.00",,Design Consultant,,,,,
The Royal Borough of Kensington and Chelsea,RBKC,,Statutory and Corporate Items,Statutory Year End Accounting,,Energiesprong UK Ltd,1276664,,,,20/08/2021,2200190399,"8,856.64",,Design Consultant,,,,,
The Royal Borough of Kensington and Chelsea,RBKC,,Statutory and Corporate Items,Statutory Year End Accounting,,Enviro Technology Services Plc,1234322,,,,04/08/2021,2200186613,"10,776.25",,Creditors Control : AP GRIR,,,,,
The Royal Borough of Kensington and Chelsea,RBKC,,Statutory and Corporate Items,Statutory Year End Accounting,,F.M Conway Ltd ,1231208,,,,12/07/2021,2200181990,"35,446.10",,Other capital equipment,,,,,
The Royal Borough of Kensington and Chelsea,RBKC,,Statutory and Corporate Items,Statutory Year End Accounting,,F.M Conway Ltd ,1231208,,,,19/07/2021,2200183435,"14,965.99",,Payments to main contractor,,,,,
The Royal Borough of Kensington and Chelsea,RBKC,,Statutory and Corporate Items,Statutory Year End Accounting,,F.M Conway Ltd ,1231208,,,,20/07/2021,2200183731,"20,000.00",,Construction : enhancements,,,,,
The Royal Borough of Kensington and Chelsea,RBKC,,Statutory and Corporate Items,Statutory Year End Accounting,,F.M Conway Ltd ,1231208,,,,22/07/2021,2200184314,"6,962.00",,Footway Repairs,,,,,
The Royal Borough of Kensington and Chelsea,RBKC,,Statutory and Corporate Items,Statutory Year End Accounting,,F.M Conway Ltd ,1231208,,,,23/07/2021,2200184479,"55,000.00",,Construction : enhancements,,,,,
The Royal Borough of Kensington and Chelsea,RBKC,,Statutory and Corporate Items,Statutory Year End Accounting,,F.M Conway Ltd ,1231208,,,,02/08/2021,2200186128,"1,342.25",,Construction : enhancements,,,,,
The Royal Borough of Kensington and Chelsea,RBKC,,Statutory and Corporate Items,Statutory Year End Accounting,,F.M Conway Ltd ,1231208,,,,02/08/2021,2200186129,"23,967.67",,Construction : enhancements,,,,,
The Royal Borough of Kensington and Chelsea,RBKC,,Statutory and Corporate Items,Statutory Year End Accounting,,F.M Conway Ltd ,1231208,,,,02/08/2021,2200186141,"17,559.97",,Construction : enhancements,,,,,
The Royal Borough of Kensington and Chelsea,RBKC,,Statutory and Corporate Items,Statutory Year End Accounting,,F.M Conway Ltd ,1231208,,,,20/08/2021,2200190395,"2,379.30",,Payments to main contractor,,,,,
The Royal Borough of Kensington and Chelsea,RBKC,,Statutory and Corporate Items,Statutory Year End Accounting,,F.M Conway Ltd ,1231208,,,,25/08/2021,2200191107,"1,456.35",,Payments to main contractor,,,,,
The Royal Borough of Kensington and Chelsea,RBKC,,Statutory and Corporate Items,Statutory Year End Accounting,,F.M Conway Ltd ,1231208,,,,02/09/2021,2200192397,"31,164.70",,Construction : enhancements,,,,,
The Royal Borough of Kensington and Chelsea,RBKC,,Statutory and Corporate Items,Statutory Year End Accounting,,F.M Conway Ltd ,1231208,,,,03/09/2021,2200192768,"14,293.48",,Construction : enhancements,,,,,
The Royal Borough of Kensington and Chelsea,RBKC,,Statutory and Corporate Items,Statutory Year End Accounting,,F.M Conway Ltd ,1231208,,,,14/09/2021,2200194707,"1,902.00",,Site Works,,,,,
The Royal Borough of Kensington and Chelsea,RBKC,,Statutory and Corporate Items,Statutory Year End Accounting,,F.M Conway Ltd ,1231208,,,,17/09/2021,2200195312,"11,156.28",,Payments to main contractor,,,,,
The Royal Borough of Kensington and Chelsea,RBKC,,Statutory and Corporate Items,Statutory Year End Accounting,,F.M Conway Ltd ,1231208,,,,24/09/2021,2200196637,"4,753.25",,Payments to main contractor,,,,,
The Royal Borough of Kensington and Chelsea,RBKC,,Statutory and Corporate Items,Statutory Year End Accounting,,F.M Conway Ltd ,1231208,,,,28/09/2021,2200197160,"2,952.37",,Creditors Control : AP GRIR,,,,,
The Royal Borough of Kensington and Chelsea,RBKC,,Statutory and Corporate Items,Statutory Year End Accounting,,F.M Conway Ltd ,1231208,,,,30/09/2021,2200197696,"5,662.07",,Construction : enhancements,,,,,
The Royal Borough of Kensington and Chelsea,RBKC,,Statutory and Corporate Items,Statutory Year End Accounting,,Faithful and Gould Limited,1234387,,,,10/08/2021,2200188099,"37,140.00",,Professional Fees : Non Legal,,,,,
The Royal Borough of Kensington and Chelsea,RBKC,,Statutory and Corporate Items,Statutory Year End Accounting,,Faithful and Gould Limited,1234387,,,,01/09/2021,2200192188,"29,880.00",,Professional Fees : Non Legal,,,,,
The Royal Borough of Kensington and Chelsea,RBKC,,Statutory and Corporate Items,Statutory Year End Accounting,,Frankham Consultancy Group Ltd ,1234583,,,,24/09/2021,2200196600,"9,850.00",,Planned Maintenance (CM),,,,,
The Royal Borough of Kensington and Chelsea,RBKC,,Statutory and Corporate Items,Statutory Year End Accounting,,Fusion Project Management Ltd,1268369,,,,01/07/2021,2200179825,"1,500.00",,Payments to main contractor,,,,,
The Royal Borough of Kensington and Chelsea,RBKC,,Statutory and Corporate Items,Statutory Year End Accounting,,Fusion Project Management Ltd,1268369,,,,01/07/2021,2200179831,"1,000.00",,Payments to main contractor,,,,,
The Royal Borough of Kensington and Chelsea,RBKC,,Statutory and Corporate Items,Statutory Year End Accounting,,Fusion Project Management Ltd,1268369,,,,05/07/2021,2200180359,"2,000.00",,Payments to main contractor,,,,,
The Royal Borough of Kensington and Chelsea,RBKC,,Statutory and Corporate Items,Statutory Year End Accounting,,Fusion Project Management Ltd,1268369,,,,12/07/2021,2200181814,"8,500.00",,Other Consultants,,,,,
The Royal Borough of Kensington and Chelsea,RBKC,,Statutory and Corporate Items,Statutory Year End Accounting,,Fusion Project Management Ltd,1268369,,,,19/07/2021,2200183326,"1,500.00",,Payments to main contractor,,,,,
The Royal Borough of Kensington and Chelsea,RBKC,,Statutory and Corporate Items,Statutory Year End Accounting,,Fusion Project Management Ltd,1268369,,,,19/07/2021,2200183328,"3,300.00",,Payments to main contractor,,,,,
The Royal Borough of Kensington and Chelsea,RBKC,,Statutory and Corporate Items,Statutory Year End Accounting,,Fusion Project Management Ltd,1268369,,,,19/07/2021,2200183329,"3,300.00",,Payments to main contractor,,,,,
The Royal Borough of Kensington and Chelsea,RBKC,,Statutory and Corporate Items,Statutory Year End Accounting,,Fusion Project Management Ltd,1268369,,,,19/07/2021,2200183330,"1,039.31",,Payments to main contractor,,,,,
The Royal Borough of Kensington and Chelsea,RBKC,,Statutory and Corporate Items,Statutory Year End Accounting,,Fusion Project Management Ltd,1268369,,,,19/07/2021,2200183331,"2,000.00",,Payments to main contractor,,,,,
The Royal Borough of Kensington and Chelsea,RBKC,,Statutory and Corporate Items,Statutory Year End Accounting,,Fusion Project Management Ltd,1268369,,,,19/07/2021,2200183333,"1,534.50",,Payments to main contractor,,,,,
The Royal Borough of Kensington and Chelsea,RBKC,,Statutory and Corporate Items,Statutory Year End Accounting,,Fusion Project Management Ltd,1268369,,,,19/07/2021,2200183334,"7,700.00",,Payments to main contractor,,,,,
The Royal Borough of Kensington and Chelsea,RBKC,,Statutory and Corporate Items,Statutory Year End Accounting,,Fusion Project Management Ltd,1268369,,,,22/07/2021,2200184339,"5,400.00",,Other Consultants,,,,,
The Royal Borough of Kensington and Chelsea,RBKC,,Statutory and Corporate Items,Statutory Year End Accounting,,Fusion Project Management Ltd,1268369,,,,22/07/2021,2200184340,"3,100.00",,Other Consultants,,,,,
The Royal Borough of Kensington and Chelsea,RBKC,,Statutory and Corporate Items,Statutory Year End Accounting,,Fusion Project Management Ltd,1268369,,,,28/07/2021,2200185296,"1,800.00",,Payments to main contractor,,,,,
The Royal Borough of Kensington and Chelsea,RBKC,,Statutory and Corporate Items,Statutory Year End Accounting,,Fusion Project Management Ltd,1268369,,,,04/08/2021,2200186741,"8,500.00",,Other Consultants,,,,,
The Royal Borough of Kensington and Chelsea,RBKC,,Statutory and Corporate Items,Statutory Year End Accounting,,Fusion Project Management Ltd,1268369,,,,07/09/2021,2200193582,"8,500.00",,Other Consultants,,,,,
The Royal Borough of Kensington and Chelsea,RBKC,,Statutory and Corporate Items,Statutory Year End Accounting,,Huntsman Eldridge Surveyors Ltd,D000000023,,,,05/07/2021,3110323175,"1,620.00",,Payments to main contractor,,,,,
The Royal Borough of Kensington and Chelsea,RBKC,,Statutory and Corporate Items,Statutory Year End Accounting,,Julian Wild Ltd,D000000023,,,,15/07/2021,3110327101,"2,500.00",,Design Consultant,,,,,
The Royal Borough of Kensington and Chelsea,RBKC,,Statutory and Corporate Items,Statutory Year End Accounting,,Winckworth Sherwood LLP',D000000023,,,,20/07/2021,3110329367,"1,200.00",,Legal Fees & expenses,,,,,
The Royal Borough of Kensington and Chelsea,RBKC,,Statutory and Corporate Items,Statutory Year End Accounting,,MBNH Ltd,D000000023,,,,23/07/2021,3110329998,"2,500.00",,Design Consultant,,,,,
The Royal Borough of Kensington and Chelsea,RBKC,,Statutory and Corporate Items,Statutory Year End Accounting,,Schroeders Begg (UK) LLP,D000000023,,,,28/07/2021,3110331053,"1,950.00",,Surveyors,,,,,
The Royal Borough of Kensington and Chelsea,RBKC,,Statutory and Corporate Items,Statutory Year End Accounting,,Huntsman Eldridge Surveyors Ltd,D000000023,,,,09/08/2021,3110334540,880,,Payments to main contractor,,,,,
The Royal Borough of Kensington and Chelsea,RBKC,,Statutory and Corporate Items,Statutory Year End Accounting,,Behan Partnership LLP,D000000023,,,,10/08/2021,3110335277,"2,149.90",,Professional Fees : Non Legal,,,,,
The Royal Borough of Kensington and Chelsea,RBKC,,Statutory and Corporate Items,Statutory Year End Accounting,,Curate Films Limited,D000000023,,,,12/08/2021,3110335468,"9,750.00",,Professional Fees : Non Legal,,,,,
The Royal Borough of Kensington and Chelsea,RBKC,,Statutory and Corporate Items,Statutory Year End Accounting,,Fareed Fetto & Co,D000000023,,,,17/08/2021,3110337573,"1,800.00",,Engineering Consultancy Fees,,,,,
The Royal Borough of Kensington and Chelsea,RBKC,,Statutory and Corporate Items,Statutory Year End Accounting,,Euro Car Parks,D000000023,,,,23/08/2021,3110338538,"3,277.30",,Payments to main contractor,,,,,
The Royal Borough of Kensington and Chelsea,RBKC,,Statutory and Corporate Items,Statutory Year End Accounting,,Flint Bishop LLP,D000000023,,,,26/08/2021,3110339249,"5,089.53",,Payments to main contractor,,,,,
The Royal Borough of Kensington and Chelsea,RBKC,,Statutory and Corporate Items,Statutory Year End Accounting,,Redact Details,D000000023,,,,27/08/2021,3110339295,"2,250.00",,Payments to main contractor,,,,,
The Royal Borough of Kensington and Chelsea,RBKC,,Statutory and Corporate Items,Statutory Year End Accounting,,Emorsgate Seeds,D000000023,,,,31/08/2021,3110341129,"4,008.84",,Arboriculture/landscaping,,,,,
The Royal Borough of Kensington and Chelsea,RBKC,,Statutory and Corporate Items,Statutory Year End Accounting,,Huntsman Eldridge Surveyors Ltd,D000000023,,,,20/09/2021,3110346087,"1,250.00",,Payments to main contractor,,,,,
The Royal Borough of Kensington and Chelsea,RBKC,,Statutory and Corporate Items,Statutory Year End Accounting,,GGS Solutions Ltd ,1234644,,,,06/07/2021,2200180622,"10,080.00",,Payments to sub contractor,,,,,
The Royal Borough of Kensington and Chelsea,RBKC,,Statutory and Corporate Items,Statutory Year End Accounting,,GGS Solutions Ltd ,1234644,,,,05/08/2021,2200187086,"10,416.00",,Payments to sub contractor,,,,,
The Royal Borough of Kensington and Chelsea,RBKC,,Statutory and Corporate Items,Statutory Year End Accounting,,Gardiner & Theobald LLP ,1234613,,,,06/07/2021,2200180626,"8,860.00",,Payments to main contractor,,,,,
The Royal Borough of Kensington and Chelsea,RBKC,,Statutory and Corporate Items,Statutory Year End Accounting,,Gardiner & Theobald LLP ,1234613,,,,27/07/2021,2200185020,"4,500.00",,Other Consultants,,,,,
The Royal Borough of Kensington and Chelsea,RBKC,,Statutory and Corporate Items,Statutory Year End Accounting,,Gardiner & Theobald LLP ,1234613,,,,10/08/2021,2200187857,"4,500.00",,Payments to main contractor,,,,,
The Royal Borough of Kensington and Chelsea,RBKC,,Statutory and Corporate Items,Statutory Year End Accounting,,Gardiner & Theobald LLP ,1234613,,,,10/08/2021,2200188010,"8,860.00",,Payments to main contractor,,,,,
The Royal Borough of Kensington and Chelsea,RBKC,,Statutory and Corporate Items,Statutory Year End Accounting,,Gardiner & Theobald LLP ,1234613,,,,25/08/2021,2200191002,"4,500.00",,Payments to main contractor,,,,,
The Royal Borough of Kensington and Chelsea,RBKC,,Statutory and Corporate Items,Statutory Year End Accounting,,Gardiner & Theobald LLP ,1234613,,,,31/08/2021,2200191845,"4,500.00",,Payments to main contractor,,,,,
The Royal Borough of Kensington and Chelsea,RBKC,,Statutory and Corporate Items,Statutory Year End Accounting,,Gardiner & Theobald LLP ,1234613,,,,06/09/2021,2200193347,"8,860.00",,Payments to main contractor,,,,,
The Royal Borough of Kensington and Chelsea,RBKC,,Statutory and Corporate Items,Statutory Year End Accounting,,Gardiner & Theobald LLP ,1234613,,,,28/09/2021,2200197152,"4,500.00",,Payments to main contractor,,,,,
The Royal Borough of Kensington and Chelsea,RBKC,,Statutory and Corporate Items,Statutory Year End Accounting,,Garvey Bros Builders ,1234614,,,,22/07/2021,2200184268,"8,830.00",,Payments to main contractor,,,,,
The Royal Borough of Kensington and Chelsea,RBKC,,Statutory and Corporate Items,Statutory Year End Accounting,,Garvey Bros Builders ,1234614,,,,22/07/2021,2200184352,"7,560.00",,Payments to main contractor,,,,,
The Royal Borough of Kensington and Chelsea,RBKC,,Statutory and Corporate Items,Statutory Year End Accounting,,Garvey Bros Builders ,1234614,,,,24/08/2021,2200190696,"12,375.00",,Payments to main contractor,,,,,
The Royal Borough of Kensington and Chelsea,RBKC,,Statutory and Corporate Items,Statutory Year End Accounting,,Garvey Bros Builders ,1234614,,,,25/08/2021,2200191035,"1,085.00",,Payments to main contractor,,,,,
The Royal Borough of Kensington and Chelsea,RBKC,,Statutory and Corporate Items,Statutory Year End Accounting,,Garvey Bros Builders ,1234614,,,,26/08/2021,2200191283,"9,910.00",,Payments to main contractor,,,,,
The Royal Borough of Kensington and Chelsea,RBKC,,Statutory and Corporate Items,Statutory Year End Accounting,,Garvey Bros Builders ,1234614,,,,30/09/2021,2200197802,"8,736.00",,Payments to main contractor,,,,,
The Royal Borough of Kensington and Chelsea,RBKC,,Statutory and Corporate Items,Statutory Year End Accounting,,Geotechnical and Environmental,1234639,,,,01/07/2021,2200179890,"1,050.00",,Planned Maintenance (CM),,,,,
The Royal Borough of Kensington and Chelsea,RBKC,,Statutory and Corporate Items,Statutory Year End Accounting,,Geotechnical and Environmental,1234639,,,,27/08/2021,2200191636,"14,645.50",,Creditors Control : AP GRIR,,,,,
The Royal Borough of Kensington and Chelsea,RBKC,,Statutory and Corporate Items,Statutory Year End Accounting,,Geotechnical and Environmental Asso,1277387,,,,01/07/2021,2200179773,"5,328.00",,Payments to main contractor,,,,,
The Royal Borough of Kensington and Chelsea,RBKC,,Statutory and Corporate Items,Statutory Year End Accounting,,Geotechnical and Environmental Asso,1277387,,,,20/09/2021,2200195730,"4,075.00",,Other Consultants,,,,,
The Royal Borough of Kensington and Chelsea,RBKC,,Statutory and Corporate Items,Statutory Year End Accounting,,Gerda Security Products Ltd ,1234642,,,,05/07/2021,2200180408,700,,Payments to main contractor,,,,,
The Royal Borough of Kensington and Chelsea,RBKC,,Statutory and Corporate Items,Statutory Year End Accounting,,Gerda Security Products Ltd ,1234642,,,,06/07/2021,2200180513,"1,050.00",,Payments to main contractor,,,,,
The Royal Borough of Kensington and Chelsea,RBKC,,Statutory and Corporate Items,Statutory Year End Accounting,,Gerda Security Products Ltd ,1234642,,,,06/07/2021,2200180516,"4,900.00",,Payments to main contractor,,,,,
The Royal Borough of Kensington and Chelsea,RBKC,,Statutory and Corporate Items,Statutory Year End Accounting,,Gerda Security Products Ltd ,1234642,,,,06/07/2021,2200180517,700,,Payments to main contractor,,,,,
The Royal Borough of Kensington and Chelsea,RBKC,,Statutory and Corporate Items,Statutory Year End Accounting,,Gerda Security Products Ltd ,1234642,,,,06/07/2021,2200180519,700,,Payments to main contractor,,,,,
The Royal Borough of Kensington and Chelsea,RBKC,,Statutory and Corporate Items,Statutory Year End Accounting,,Gerda Security Products Ltd ,1234642,,,,06/07/2021,2200180520,"6,300.00",,Payments to main contractor,,,,,
The Royal Borough of Kensington and Chelsea,RBKC,,Statutory and Corporate Items,Statutory Year End Accounting,,Gerda Security Products Ltd ,1234642,,,,06/07/2021,2200180523,700,,Payments to main contractor,,,,,
The Royal Borough of Kensington and Chelsea,RBKC,,Statutory and Corporate Items,Statutory Year End Accounting,,Gerda Security Products Ltd ,1234642,,,,06/07/2021,2200180528,700,,Payments to main contractor,,,,,
The Royal Borough of Kensington and Chelsea,RBKC,,Statutory and Corporate Items,Statutory Year End Accounting,,Gerda Security Products Ltd ,1234642,,,,06/07/2021,2200180534,"1,750.00",,Payments to main contractor,,,,,
The Royal Borough of Kensington and Chelsea,RBKC,,Statutory and Corporate Items,Statutory Year End Accounting,,Gerda Security Products Ltd ,1234642,,,,06/07/2021,2200180535,700,,Payments to main contractor,,,,,
The Royal Borough of Kensington and Chelsea,RBKC,,Statutory and Corporate Items,Statutory Year End Accounting,,Gerda Security Products Ltd ,1234642,,,,06/07/2021,2200180540,"2,800.00",,Payments to main contractor,,,,,
The Royal Borough of Kensington and Chelsea,RBKC,,Statutory and Corporate Items,Statutory Year End Accounting,,Gerda Security Products Ltd ,1234642,,,,06/07/2021,2200180700,"2,800.00",,Payments to main contractor,,,,,
The Royal Borough of Kensington and Chelsea,RBKC,,Statutory and Corporate Items,Statutory Year End Accounting,,Gerda Security Products Ltd ,1234642,,,,12/07/2021,2200181988,"10,477.70",,Payments to main contractor,,,,,
The Royal Borough of Kensington and Chelsea,RBKC,,Statutory and Corporate Items,Statutory Year End Accounting,,Gerda Security Products Ltd ,1234642,,,,14/07/2021,2200182582,"18,982.04",,Payments to main contractor,,,,,
The Royal Borough of Kensington and Chelsea,RBKC,,Statutory and Corporate Items,Statutory Year End Accounting,,Gerda Security Products Ltd ,1234642,,,,02/08/2021,2200186242,"2,800.00",,Payments to main contractor,,,,,
The Royal Borough of Kensington and Chelsea,RBKC,,Statutory and Corporate Items,Statutory Year End Accounting,,Gerda Security Products Ltd ,1234642,,,,02/08/2021,2200186243,700,,Payments to main contractor,,,,,
The Royal Borough of Kensington and Chelsea,RBKC,,Statutory and Corporate Items,Statutory Year End Accounting,,Gerda Security Products Ltd ,1234642,,,,04/08/2021,2200186709,"4,900.00",,Planned Maintenance (CM),,,,,
The Royal Borough of Kensington and Chelsea,RBKC,,Statutory and Corporate Items,Statutory Year End Accounting,,Gerda Security Products Ltd ,1234642,,,,05/08/2021,2200187018,"1,050.00",,Payments to main contractor,,,,,
The Royal Borough of Kensington and Chelsea,RBKC,,Statutory and Corporate Items,Statutory Year End Accounting,,Gerda Security Products Ltd ,1234642,,,,10/08/2021,2200188025,700,,Payments to main contractor,,,,,
The Royal Borough of Kensington and Chelsea,RBKC,,Statutory and Corporate Items,Statutory Year End Accounting,,Gerda Security Products Ltd ,1234642,,,,10/08/2021,2200188108,"11,900.00",,Payments to main contractor,,,,,
The Royal Borough of Kensington and Chelsea,RBKC,,Statutory and Corporate Items,Statutory Year End Accounting,,Gerda Security Products Ltd ,1234642,,,,12/08/2021,2200188746,"72,547.56",,Payments to main contractor,,,,,
The Royal Borough of Kensington and Chelsea,RBKC,,Statutory and Corporate Items,Statutory Year End Accounting,,Gerda Security Products Ltd ,1234642,,,,12/08/2021,2200188759,"32,191.21",,Payments to main contractor,,,,,
The Royal Borough of Kensington and Chelsea,RBKC,,Statutory and Corporate Items,Statutory Year End Accounting,,Gerda Security Products Ltd ,1234642,,,,19/08/2021,2200190078,"1,375.00",,Payments to main contractor,,,,,
The Royal Borough of Kensington and Chelsea,RBKC,,Statutory and Corporate Items,Statutory Year End Accounting,,Gerda Security Products Ltd ,1234642,,,,19/08/2021,2200190213,"1,522.96",,Payments to main contractor,,,,,
The Royal Borough of Kensington and Chelsea,RBKC,,Statutory and Corporate Items,Statutory Year End Accounting,,Gerda Security Products Ltd ,1234642,,,,23/08/2021,2200190523,"22,049.84",,Payments to main contractor,,,,,
The Royal Borough of Kensington and Chelsea,RBKC,,Statutory and Corporate Items,Statutory Year End Accounting,,Gerda Security Products Ltd ,1234642,,,,23/08/2021,2200190524,"22,260.20",,Payments to main contractor,,,,,
The Royal Borough of Kensington and Chelsea,RBKC,,Statutory and Corporate Items,Statutory Year End Accounting,,Gerda Security Products Ltd ,1234642,,,,23/08/2021,2200190617,"50,220.60",,Payments to main contractor,,,,,
The Royal Borough of Kensington and Chelsea,RBKC,,Statutory and Corporate Items,Statutory Year End Accounting,,Gerda Security Products Ltd ,1234642,,,,31/08/2021,2200191883,"1,462.57",,Payments to main contractor,,,,,
The Royal Borough of Kensington and Chelsea,RBKC,,Statutory and Corporate Items,Statutory Year End Accounting,,Gerda Security Products Ltd ,1234642,,,,31/08/2021,2200191888,700,,Payments to main contractor,,,,,
The Royal Borough of Kensington and Chelsea,RBKC,,Statutory and Corporate Items,Statutory Year End Accounting,,Gerda Security Products Ltd ,1234642,,,,01/09/2021,2200192229,"3,850.00",,Payments to main contractor,,,,,
The Royal Borough of Kensington and Chelsea,RBKC,,Statutory and Corporate Items,Statutory Year End Accounting,,Gerda Security Products Ltd ,1234642,,,,01/09/2021,2200192230,"3,150.00",,Payments to main contractor,,,,,
The Royal Borough of Kensington and Chelsea,RBKC,,Statutory and Corporate Items,Statutory Year End Accounting,,Gerda Security Products Ltd ,1234642,,,,01/09/2021,2200192231,"1,400.00",,Payments to main contractor,,,,,
The Royal Borough of Kensington and Chelsea,RBKC,,Statutory and Corporate Items,Statutory Year End Accounting,,Gerda Security Products Ltd ,1234642,,,,06/09/2021,2200193330,"1,750.00",,Planned Maintenance (CM),,,,,
The Royal Borough of Kensington and Chelsea,RBKC,,Statutory and Corporate Items,Statutory Year End Accounting,,Gerda Security Products Ltd ,1234642,,,,07/09/2021,2200193482,"1,400.00",,Payments to main contractor,,,,,
The Royal Borough of Kensington and Chelsea,RBKC,,Statutory and Corporate Items,Statutory Year End Accounting,,Gerda Security Products Ltd ,1234642,,,,09/09/2021,2200193909,"26,048.00",,Payments to main contractor,,,,,
The Royal Borough of Kensington and Chelsea,RBKC,,Statutory and Corporate Items,Statutory Year End Accounting,,Gerda Security Products Ltd ,1234642,,,,09/09/2021,2200193917,"26,732.00",,Payments to main contractor,,,,,
The Royal Borough of Kensington and Chelsea,RBKC,,Statutory and Corporate Items,Statutory Year End Accounting,,Gerda Security Products Ltd ,1234642,,,,14/09/2021,2200194693,"2,099.59",,Payments to main contractor,,,,,
The Royal Borough of Kensington and Chelsea,RBKC,,Statutory and Corporate Items,Statutory Year End Accounting,,Gerda Security Products Ltd ,1234642,,,,21/09/2021,2200195898,"46,634.72",,Payments to main contractor,,,,,
The Royal Borough of Kensington and Chelsea,RBKC,,Statutory and Corporate Items,Statutory Year End Accounting,,Gerda Security Products Ltd ,1234642,,,,24/09/2021,2200196541,"1,407.87",,Payments to main contractor,,,,,
The Royal Borough of Kensington and Chelsea,RBKC,,Statutory and Corporate Items,Statutory Year End Accounting,,Gerda Security Products Ltd ,1234642,,,,24/09/2021,2200196701,"1,890.84",,Payments to main contractor,,,,,
The Royal Borough of Kensington and Chelsea,RBKC,,Statutory and Corporate Items,Statutory Year End Accounting,,Gerda Security Products Ltd ,1234642,,,,29/09/2021,2200197542,"15,722.90",,Payments to main contractor,,,,,
The Royal Borough of Kensington and Chelsea,RBKC,,Statutory and Corporate Items,Statutory Year End Accounting,,Greenacre Recruitment,1258089,,,,05/07/2021,2200180290,"1,050.00",,Capitalised salaries,,,,,
The Royal Borough of Kensington and Chelsea,RBKC,,Statutory and Corporate Items,Statutory Year End Accounting,,Greenacre Recruitment,1258089,,,,09/07/2021,2200181663,"1,575.00",,Capitalised salaries,,,,,
The Royal Borough of Kensington and Chelsea,RBKC,,Statutory and Corporate Items,Statutory Year End Accounting,,Greenacre Recruitment,1258089,,,,09/07/2021,2200181664,"1,837.50",,Capitalised salaries,,,,,
The Royal Borough of Kensington and Chelsea,RBKC,,Statutory and Corporate Items,Statutory Year End Accounting,,Greenacre Recruitment,1258089,,,,02/08/2021,2200186138,"2,231.25",,Capitalised salaries,,,,,
The Royal Borough of Kensington and Chelsea,RBKC,,Statutory and Corporate Items,Statutory Year End Accounting,,Greenacre Recruitment,1258089,,,,02/08/2021,2200186139,"1,968.75",,Capitalised salaries,,,,,
The Royal Borough of Kensington and Chelsea,RBKC,,Statutory and Corporate Items,Statutory Year End Accounting,,Greenacre Recruitment,1258089,,,,02/08/2021,2200186140,"2,100.00",,Capitalised salaries,,,,,
The Royal Borough of Kensington and Chelsea,RBKC,,Statutory and Corporate Items,Statutory Year End Accounting,,Greenacre Recruitment,1258089,,,,16/08/2021,2200189336,"1,575.00",,Capitalised salaries,,,,,
The Royal Borough of Kensington and Chelsea,RBKC,,Statutory and Corporate Items,Statutory Year End Accounting,,Greenacre Recruitment,1258089,,,,23/08/2021,2200190530,"1,575.00",,Capitalised salaries,,,,,
The Royal Borough of Kensington and Chelsea,RBKC,,Statutory and Corporate Items,Statutory Year End Accounting,,Greenacre Recruitment,1258089,,,,24/08/2021,2200190868,"2,100.00",,Capitalised salaries,,,,,
The Royal Borough of Kensington and Chelsea,RBKC,,Statutory and Corporate Items,Statutory Year End Accounting,,Greenacre Recruitment,1258089,,,,03/09/2021,2200192897,"2,625.00",,Capitalised salaries,,,,,
The Royal Borough of Kensington and Chelsea,RBKC,,Statutory and Corporate Items,Statutory Year End Accounting,,Greenacre Recruitment,1258089,,,,03/09/2021,2200192903,"2,625.00",,Capitalised salaries,,,,,
The Royal Borough of Kensington and Chelsea,RBKC,,Statutory and Corporate Items,Statutory Year End Accounting,,Greenacre Recruitment,1258089,,,,22/09/2021,2200196261,"2,100.00",,Capitalised salaries,,,,,
The Royal Borough of Kensington and Chelsea,RBKC,,Statutory and Corporate Items,Statutory Year End Accounting,,Greenacre Recruitment,1258089,,,,22/09/2021,2200196262,"1,050.00",,Capitalised salaries,,,,,
The Royal Borough of Kensington and Chelsea,RBKC,,Statutory and Corporate Items,Statutory Year End Accounting,,Greenacre Recruitment,1258089,,,,24/09/2021,2200196576,"2,100.00",,Capitalised salaries,,,,,
The Royal Borough of Kensington and Chelsea,RBKC,,Statutory and Corporate Items,Statutory Year End Accounting,,Ground Engineering Limited,1275066,,,,14/09/2021,2200194720,"15,248.00",,Payments to sub contractor,,,,,
The Royal Borough of Kensington and Chelsea,RBKC,,Statutory and Corporate Items,Statutory Year End Accounting,,Guarding UK Ltd ,1230372,,,,08/07/2021,2200181193,"1,808.50",,Payments to sub contractor,,,,,
The Royal Borough of Kensington and Chelsea,RBKC,,Statutory and Corporate Items,Statutory Year End Accounting,,Guarding UK Ltd ,1230372,,,,11/08/2021,2200188376,"3,503.97",,Construction Security,,,,,
The Royal Borough of Kensington and Chelsea,RBKC,,Statutory and Corporate Items,Statutory Year End Accounting,,Guarding UK Ltd ,1230372,,,,08/09/2021,2200193799,"3,503.97",,Construction Security,,,,,
The Royal Borough of Kensington and Chelsea,RBKC,,Statutory and Corporate Items,Statutory Year End Accounting,,Guarding UK Ltd ,1230372,,,,10/09/2021,2200194095,"1,695.47",,Construction Security,,,,,
The Royal Borough of Kensington and Chelsea,RBKC,,Statutory and Corporate Items,Statutory Year End Accounting,,Guarding UK Ltd ,1230372,,,,15/09/2021,2200194862,"1,462.71",,Payments to sub contractor,,,,,
The Royal Borough of Kensington and Chelsea,RBKC,,Statutory and Corporate Items,Statutory Year End Accounting,,Guarding UK Ltd ,1230372,,,,21/09/2021,2200195940,"3,503.97",,Construction Security,,,,,
The Royal Borough of Kensington and Chelsea,RBKC,,Statutory and Corporate Items,Statutory Year End Accounting,,Guideline Lift Services Ltd ,1231219,,,,16/07/2021,2200183054,"12,607.87",,Payments to main contractor,,,,,
The Royal Borough of Kensington and Chelsea,RBKC,,Statutory and Corporate Items,Statutory Year End Accounting,,Guideline Lift Services Ltd ,1231219,,,,16/07/2021,2200183055,"16,137.46",,Payments to main contractor,,,,,
The Royal Borough of Kensington and Chelsea,RBKC,,Statutory and Corporate Items,Statutory Year End Accounting,,Guideline Lift Services Ltd ,1231219,,,,25/08/2021,2200191063,"9,997.37",,Payments to main contractor,,,,,
The Royal Borough of Kensington and Chelsea,RBKC,,Statutory and Corporate Items,Statutory Year End Accounting,,Gute LTD,1277291,,,,06/09/2021,2200193293,"61,886.00",,Payments to main contractor,,,,,
The Royal Borough of Kensington and Chelsea,RBKC,,Statutory and Corporate Items,Statutory Year End Accounting,,Gute LTD,1277291,,,,14/09/2021,2200194699,"5,936.00",,Payments to main contractor,,,,,
The Royal Borough of Kensington and Chelsea,RBKC,,Statutory and Corporate Items,Statutory Year End Accounting,,Harris Hill Limited,1283188,,,,21/09/2021,2200196125,872.32,,Capitalised salaries,,,,,
The Royal Borough of Kensington and Chelsea,RBKC,,Statutory and Corporate Items,Statutory Year End Accounting,,Heeran Construction Ltd,1280852,,,,22/09/2021,2200196252,"1,950.00",,Other capital equipment,,,,,
The Royal Borough of Kensington and Chelsea,RBKC,,Statutory and Corporate Items,Statutory Year End Accounting,,Helix Construct Limited,1270811,,,,01/07/2021,2200179845,"55,804.74",,Payments to main contractor,,,,,
The Royal Borough of Kensington and Chelsea,RBKC,,Statutory and Corporate Items,Statutory Year End Accounting,,Helix Construct Limited,1270811,,,,05/08/2021,2200187084,"44,925.29",,Payments to main contractor,,,,,
The Royal Borough of Kensington and Chelsea,RBKC,,Statutory and Corporate Items,Statutory Year End Accounting,,Helix Construct Limited,1270811,,,,08/09/2021,2200193793,"31,293.82",,Payments to main contractor,,,,,
The Royal Borough of Kensington and Chelsea,RBKC,,Statutory and Corporate Items,Statutory Year End Accounting,,Helix Construct Limited,1270811,,,,15/09/2021,2200194861,"292,832.85",,Payments to main contractor,,,,,
The Royal Borough of Kensington and Chelsea,RBKC,,Statutory and Corporate Items,Statutory Year End Accounting,,Helix Construct Limited,1270811,,,,22/09/2021,2200196240,"70,524.65",,Payments to main contractor,,,,,
The Royal Borough of Kensington and Chelsea,RBKC,,Statutory and Corporate Items,Statutory Year End Accounting,,Henry Riley LLP ,1230402,,,,01/07/2021,2200179809,"6,600.00",,Payments to main contractor,,,,,
The Royal Borough of Kensington and Chelsea,RBKC,,Statutory and Corporate Items,Statutory Year End Accounting,,Henry Riley LLP ,1230402,,,,20/08/2021,2200190351,"6,600.00",,Payments to main contractor,,,,,
The Royal Borough of Kensington and Chelsea,RBKC,,Statutory and Corporate Items,Statutory Year End Accounting,,Henry Riley LLP ,1230402,,,,10/09/2021,2200194229,"6,600.00",,Payments to main contractor,,,,,
The Royal Borough of Kensington and Chelsea,RBKC,,Statutory and Corporate Items,Statutory Year End Accounting,,Higham Flat Roofing Ltd ,1252605,,,,04/08/2021,2200186745,"4,886.00",,Planned Maintenance (CM),,,,,
The Royal Borough of Kensington and Chelsea,RBKC,,Statutory and Corporate Items,Statutory Year End Accounting,,Historic England,1234733,,,,01/09/2021,2200192221,"1,100.00",,Payments to sub contractor,,,,,
The Royal Borough of Kensington and Chelsea,RBKC,,Statutory and Corporate Items,Statutory Year End Accounting,,Houseline Building Services Ltd ,1231377,,,,09/07/2021,2200181429,"90,000.00",,Other Consultants,,,,,
The Royal Borough of Kensington and Chelsea,RBKC,,Statutory and Corporate Items,Statutory Year End Accounting,,Houseline Building Services Ltd ,1231377,,,,09/07/2021,2200181430,"1,436.84",,Other Consultants,,,,,
The Royal Borough of Kensington and Chelsea,RBKC,,Statutory and Corporate Items,Statutory Year End Accounting,,Houseline Building Services Ltd ,1231377,,,,09/07/2021,2200181431,"15,860.18",,Other Consultants,,,,,
The Royal Borough of Kensington and Chelsea,RBKC,,Statutory and Corporate Items,Statutory Year End Accounting,,Houseline Building Services Ltd ,1231377,,,,09/07/2021,2200181432,"92,468.51",,Other Consultants,,,,,
The Royal Borough of Kensington and Chelsea,RBKC,,Statutory and Corporate Items,Statutory Year End Accounting,,Hunters and Partners Ltd ,1254860,,,,12/08/2021,2200188571,"2,500.00",,Payments to main contractor,,,,,
The Royal Borough of Kensington and Chelsea,RBKC,,Statutory and Corporate Items,Statutory Year End Accounting,,Hunters and Partners Ltd ,1254860,,,,14/09/2021,2200194639,"22,032.00",,Payments to main contractor,,,,,
The Royal Borough of Kensington and Chelsea,RBKC,,Statutory and Corporate Items,Statutory Year End Accounting,,Idox Software Ltd ,1230453,,,,19/07/2021,2200183560,"20,150.00",,Computer Software,,,,,
The Royal Borough of Kensington and Chelsea,RBKC,,Statutory and Corporate Items,Statutory Year End Accounting,,Idox Software Ltd ,1230453,,,,22/09/2021,2200196205,"20,150.00",,Computer Software,,,,,
The Royal Borough of Kensington and Chelsea,RBKC,,Statutory and Corporate Items,Statutory Year End Accounting,,Idverde Ltd ,1231380,,,,30/09/2021,2200197782,"3,840.00",,Construction : enhancements,,,,,
The Royal Borough of Kensington and Chelsea,RBKC,,Statutory and Corporate Items,Statutory Year End Accounting,,Instant Protect,1263527,,,,21/09/2021,2200196080,"3,680.00",,Special Maintenance,,,,,
The Royal Borough of Kensington and Chelsea,RBKC,,Statutory and Corporate Items,Statutory Year End Accounting,,Instant Protect,1263527,,,,21/09/2021,2200196081,"1,440.00",,Special Maintenance,,,,,
The Royal Borough of Kensington and Chelsea,RBKC,,Statutory and Corporate Items,Statutory Year End Accounting,,Instant Protect,1263527,,,,21/09/2021,2200196082,"1,550.00",,Special Maintenance,,,,,
The Royal Borough of Kensington and Chelsea,RBKC,,Statutory and Corporate Items,Statutory Year End Accounting,,ISLE UTILITIES LTD.,1278802,,,,03/08/2021,2200186442,"9,247.50",,Other Consultants,,,,,
The Royal Borough of Kensington and Chelsea,RBKC,,Statutory and Corporate Items,Statutory Year End Accounting,,J & J Topgrade Ltd ,1234807,,,,30/07/2021,2200185803,805,,Creditors Control : AP GRIR,,,,,
The Royal Borough of Kensington and Chelsea,RBKC,,Statutory and Corporate Items,Statutory Year End Accounting,,J & J Topgrade Ltd ,1234807,,,,18/08/2021,2200189732,"2,140.50",,Creditors Control : AP GRIR,,,,,
The Royal Borough of Kensington and Chelsea,RBKC,,Statutory and Corporate Items,Statutory Year End Accounting,,JH Crawford Security Ltd ,1234817,,,,03/08/2021,2200186466,"4,941.49",,Creditors Control : AP GRIR,,,,,
The Royal Borough of Kensington and Chelsea,RBKC,,Statutory and Corporate Items,Statutory Year End Accounting,,Jackson Coles LLP ,1230491,,,,01/07/2021,2200179772,"3,189.00",,Other Consultants,,,,,
The Royal Borough of Kensington and Chelsea,RBKC,,Statutory and Corporate Items,Statutory Year End Accounting,,Jackson Coles LLP ,1230491,,,,05/07/2021,2200180335,785,,Other Consultants,,,,,
The Royal Borough of Kensington and Chelsea,RBKC,,Statutory and Corporate Items,Statutory Year End Accounting,,Jackson Coles LLP ,1230491,,,,27/07/2021,2200184976,"3,189.00",,Other Consultants,,,,,
The Royal Borough of Kensington and Chelsea,RBKC,,Statutory and Corporate Items,Statutory Year End Accounting,,Jackson Coles LLP ,1230491,,,,25/08/2021,2200190978,"3,189.00",,Other Consultants,,,,,
The Royal Borough of Kensington and Chelsea,RBKC,,Statutory and Corporate Items,Statutory Year End Accounting,,Jackson Coles LLP ,1230491,,,,13/09/2021,2200194473,785,,Payments to main contractor,,,,,
The Royal Borough of Kensington and Chelsea,RBKC,,Statutory and Corporate Items,Statutory Year End Accounting,,Jackson Coles LLP ,1230491,,,,17/09/2021,2200195217,785,,Payments to main contractor,,,,,
The Royal Borough of Kensington and Chelsea,RBKC,,Statutory and Corporate Items,Statutory Year End Accounting,,Jackson Coles LLP ,1230491,,,,24/09/2021,2200196586,"3,189.00",,Payments to main contractor,,,,,
The Royal Borough of Kensington and Chelsea,RBKC,,Statutory and Corporate Items,Statutory Year End Accounting,,Redact Details,1277228,,,,02/07/2021,2200180043,"4,550.00",,Design Consultant,,,,,
The Royal Borough of Kensington and Chelsea,RBKC,,Statutory and Corporate Items,Statutory Year End Accounting,,Redact Details,1277228,,,,02/07/2021,2200180048,"4,987.50",,Design Consultant,,,,,
The Royal Borough of Kensington and Chelsea,RBKC,,Statutory and Corporate Items,Statutory Year End Accounting,,Redact Details,1277228,,,,15/09/2021,2200194838,"1,785.00",,Design Consultant,,,,,
The Royal Borough of Kensington and Chelsea,RBKC,,Statutory and Corporate Items,Statutory Year End Accounting,,Redact Details,1277228,,,,15/09/2021,2200194840,"2,758.00",,Design Consultant,,,,,
The Royal Borough of Kensington and Chelsea,RBKC,,Statutory and Corporate Items,Statutory Year End Accounting,,Jj Integrated Solutions Ltd ,1234819,,,,26/07/2021,2200184819,"4,065.00",,Other Consultants,,,,,
The Royal Borough of Kensington and Chelsea,RBKC,,Statutory and Corporate Items,Statutory Year End Accounting,,Jj Integrated Solutions Ltd ,1234819,,,,16/08/2021,2200189347,"14,560.00",,Other Consultants,,,,,
The Royal Borough of Kensington and Chelsea,RBKC,,Statutory and Corporate Items,Statutory Year End Accounting,,Jo Cowen Architects,1275557,,,,13/09/2021,2200194476,"11,646.00",,Surveyors,,,,,
The Royal Borough of Kensington and Chelsea,RBKC,,Statutory and Corporate Items,Statutory Year End Accounting,,Jo Cowen Architects,1275557,,,,13/09/2021,2200194512,"12,800.00",,Payments to main contractor,,,,,
The Royal Borough of Kensington and Chelsea,RBKC,,Statutory and Corporate Items,Statutory Year End Accounting,,K & T Heating Services Ltd ,1231384,,,,07/07/2021,2200180956,"48,734.80",,Payments to main contractor,,,,,
The Royal Borough of Kensington and Chelsea,RBKC,,Statutory and Corporate Items,Statutory Year End Accounting,,K & T Heating Services Ltd ,1231384,,,,16/07/2021,2200182984,"1,511.78",,Payments to main contractor,,,,,
The Royal Borough of Kensington and Chelsea,RBKC,,Statutory and Corporate Items,Statutory Year End Accounting,,K & T Heating Services Ltd ,1231384,,,,05/08/2021,2200186890,"7,465.60",,Payments to main contractor,,,,,
The Royal Borough of Kensington and Chelsea,RBKC,,Statutory and Corporate Items,Statutory Year End Accounting,,K & T Heating Services Ltd ,1231384,,,,05/08/2021,2200186899,"12,290.64",,Payments to main contractor,,,,,
The Royal Borough of Kensington and Chelsea,RBKC,,Statutory and Corporate Items,Statutory Year End Accounting,,K & T Heating Services Ltd ,1231384,,,,10/08/2021,2200188088,"67,262.31",,Payments to main contractor,,,,,
The Royal Borough of Kensington and Chelsea,RBKC,,Statutory and Corporate Items,Statutory Year End Accounting,,K & T Heating Services Ltd ,1231384,,,,12/08/2021,2200188532,"7,329.43",,Payments to main contractor,,,,,
The Royal Borough of Kensington and Chelsea,RBKC,,Statutory and Corporate Items,Statutory Year End Accounting,,K & T Heating Services Ltd ,1231384,,,,12/08/2021,2200188534,"3,070.34",,Payments to main contractor,,,,,
The Royal Borough of Kensington and Chelsea,RBKC,,Statutory and Corporate Items,Statutory Year End Accounting,,K & T Heating Services Ltd ,1231384,,,,16/08/2021,2200189232,"7,465.60",,Payments to main contractor,,,,,
The Royal Borough of Kensington and Chelsea,RBKC,,Statutory and Corporate Items,Statutory Year End Accounting,,K & T Heating Services Ltd ,1231384,,,,16/08/2021,2200189233,"7,329.43",,Payments to main contractor,,,,,
The Royal Borough of Kensington and Chelsea,RBKC,,Statutory and Corporate Items,Statutory Year End Accounting,,K & T Heating Services Ltd ,1231384,,,,09/09/2021,2200193906,"87,346.59",,Payments to main contractor,,,,,
The Royal Borough of Kensington and Chelsea,RBKC,,Statutory and Corporate Items,Statutory Year End Accounting,,K & T Heating Services Ltd ,1231384,,,,10/09/2021,2200194125,"4,321.00",,Site Works,,,,,
The Royal Borough of Kensington and Chelsea,RBKC,,Statutory and Corporate Items,Statutory Year End Accounting,,K & T Heating Services Ltd ,1231384,,,,13/09/2021,2200194458,"7,329.43",,Payments to main contractor,,,,,
The Royal Borough of Kensington and Chelsea,RBKC,,Statutory and Corporate Items,Statutory Year End Accounting,,K & T Heating Services Ltd ,1231384,,,,13/09/2021,2200194459,"7,465.60",,Payments to main contractor,,,,,
The Royal Borough of Kensington and Chelsea,RBKC,,Statutory and Corporate Items,Statutory Year End Accounting,,KBH Building Services Ltd,1276614,,,,05/08/2021,2200186976,"21,019.72",,Special Maintenance,,,,,
The Royal Borough of Kensington and Chelsea,RBKC,,Statutory and Corporate Items,Statutory Year End Accounting,,KBH Building Services Ltd,1276614,,,,05/08/2021,2200186978,"28,515.00",,Special Maintenance,,,,,
The Royal Borough of Kensington and Chelsea,RBKC,,Statutory and Corporate Items,Statutory Year End Accounting,,KBH Building Services Ltd,1276614,,,,05/08/2021,2200186981,"20,916.81",,Special Maintenance,,,,,
The Royal Borough of Kensington and Chelsea,RBKC,,Statutory and Corporate Items,Statutory Year End Accounting,,KBH Building Services Ltd,1276614,,,,21/09/2021,2200196064,"34,055.05",,Special Maintenance,,,,,
The Royal Borough of Kensington and Chelsea,RBKC,,Statutory and Corporate Items,Statutory Year End Accounting,,KBH Building Services Ltd,1276614,,,,21/09/2021,2200196066,"33,845.27",,Special Maintenance,,,,,
The Royal Borough of Kensington and Chelsea,RBKC,,Statutory and Corporate Items,Statutory Year End Accounting,,KBH Building Services Ltd,1276614,,,,29/09/2021,2200197549,"2,361.27",,Other Consultants,,,,,
The Royal Borough of Kensington and Chelsea,RBKC,,Statutory and Corporate Items,Statutory Year End Accounting,,Karakusevic Carson Architects LLP,1273973,,,,09/07/2021,2200181666,"115,000.00",,Payments to main contractor,,,,,
The Royal Borough of Kensington and Chelsea,RBKC,,Statutory and Corporate Items,Statutory Year End Accounting,,Karakusevic Carson Architects LLP,1273973,,,,18/08/2021,2200189814,"150,000.00",,Payments to main contractor,,,,,
The Royal Borough of Kensington and Chelsea,RBKC,,Statutory and Corporate Items,Statutory Year End Accounting,,Karakusevic Carson Architects LLP,1273973,,,,18/08/2021,2200189888,"240,000.00",,Payments to main contractor,,,,,
The Royal Borough of Kensington and Chelsea,RBKC,,Statutory and Corporate Items,Statutory Year End Accounting,,Kelleher Utility Solutions Ltd,1276893,,,,14/09/2021,2200194758,"22,752.85",,Special Maintenance,,,,,
The Royal Borough of Kensington and Chelsea,RBKC,,Statutory and Corporate Items,Statutory Year End Accounting,,Kelleher Utility Solutions Ltd,1276893,,,,20/09/2021,2200195712,"36,507.74",,Special Maintenance,,,,,
The Royal Borough of Kensington and Chelsea,RBKC,,Statutory and Corporate Items,Statutory Year End Accounting,,Kelleher Utility Solutions Ltd,1276893,,,,21/09/2021,2200196077,"36,800.00",,Special Maintenance,,,,,
The Royal Borough of Kensington and Chelsea,RBKC,,Statutory and Corporate Items,Statutory Year End Accounting,,Kensington Painting & Decorating,1281180,,,,03/09/2021,2200192734,"9,480.00",,Special Maintenance,,,,,
The Royal Borough of Kensington and Chelsea,RBKC,,Statutory and Corporate Items,Statutory Year End Accounting,,Kensington Painting & Decorating,1281180,,,,15/09/2021,2200194864,"9,480.00",,Special Maintenance,,,,,
The Royal Borough of Kensington and Chelsea,RBKC,,Statutory and Corporate Items,Statutory Year End Accounting,,Khipu Networks ,1230544,,,,01/07/2021,2200179870,"19,946.00",,Creditors Control : AP GRIR,,,,,
The Royal Borough of Kensington and Chelsea,RBKC,,Statutory and Corporate Items,Statutory Year End Accounting,,Khipu Networks ,1230544,,,,14/07/2021,2200182546,"2,550.00",,Creditors Control : AP GRIR,,,,,
The Royal Borough of Kensington and Chelsea,RBKC,,Statutory and Corporate Items,Statutory Year End Accounting,,Khipu Networks ,1230544,,,,16/07/2021,2200182990,"152,687.32",,Computer Software,,,,,
The Royal Borough of Kensington and Chelsea,RBKC,,Statutory and Corporate Items,Statutory Year End Accounting,,Khipu Networks ,1230544,,,,17/08/2021,2200189603,"5,500.00",,Creditors Control : AP GRIR,,,,,
The Royal Borough of Kensington and Chelsea,RBKC,,Statutory and Corporate Items,Statutory Year End Accounting,,Khipu Networks ,1230544,,,,17/08/2021,2200189620,831.25,,Creditors Control : AP GRIR,,,,,
The Royal Borough of Kensington and Chelsea,RBKC,,Statutory and Corporate Items,Statutory Year End Accounting,,Khipu Networks ,1230544,,,,06/09/2021,2200193075,"1,133.05",,Creditors Control : AP GRIR,,,,,
The Royal Borough of Kensington and Chelsea,RBKC,,Statutory and Corporate Items,Statutory Year End Accounting,,Khipu Networks ,1230544,,,,21/09/2021,2200195876,"16,780.00",,Creditors Control : AP GRIR,,,,,
The Royal Borough of Kensington and Chelsea,RBKC,,Statutory and Corporate Items,Statutory Year End Accounting,,Kilburn Nightingale Architects Ltd,1262316,,,,16/07/2021,2200183008,"3,866.95",,Planned Maintenance (CM),,,,,
The Royal Borough of Kensington and Chelsea,RBKC,,Statutory and Corporate Items,Statutory Year End Accounting,,Kilburn Nightingale Architects Ltd,1262316,,,,16/07/2021,2200183010,"1,177.50",,Planned Maintenance (CM),,,,,
The Royal Borough of Kensington and Chelsea,RBKC,,Statutory and Corporate Items,Statutory Year End Accounting,,Kilburn Nightingale Architects Ltd,1262316,,,,16/07/2021,2200183012,"1,000.00",,Planned Maintenance (CM),,,,,
The Royal Borough of Kensington and Chelsea,RBKC,,Statutory and Corporate Items,Statutory Year End Accounting,,Kilburn Nightingale Architects Ltd,1262316,,,,28/07/2021,2200185273,"1,127.50",,Planned Maintenance (CM),,,,,
The Royal Borough of Kensington and Chelsea,RBKC,,Statutory and Corporate Items,Statutory Year End Accounting,,Kilburn Nightingale Architects Ltd,1262316,,,,03/08/2021,2200186479,"2,625.00",,Planned Maintenance (CM),,,,,
The Royal Borough of Kensington and Chelsea,RBKC,,Statutory and Corporate Items,Statutory Year End Accounting,,Kilburn Nightingale Architects Ltd,1262316,,,,18/08/2021,2200189973,"1,008.00",,Planned Maintenance (CM),,,,,
The Royal Borough of Kensington and Chelsea,RBKC,,Statutory and Corporate Items,Statutory Year End Accounting,,Kilburn Nightingale Architects Ltd,1262316,,,,18/08/2021,2200189974,"3,407.25",,Planned Maintenance (CM),,,,,
The Royal Borough of Kensington and Chelsea,RBKC,,Statutory and Corporate Items,Statutory Year End Accounting,,Kilburn Nightingale Architects Ltd,1262316,,,,20/08/2021,2200190405,"4,245.00",,Planned Maintenance (CM),,,,,
The Royal Borough of Kensington and Chelsea,RBKC,,Statutory and Corporate Items,Statutory Year End Accounting,,Kilburn Nightingale Architects Ltd,1262316,,,,03/09/2021,2200192800,"2,050.00",,Planned Maintenance (CM),,,,,
The Royal Borough of Kensington and Chelsea,RBKC,,Statutory and Corporate Items,Statutory Year End Accounting,,Kilburn Nightingale Architects Ltd,1262316,,,,16/09/2021,2200195113,"2,515.00",,Planned Maintenance (CM),,,,,
The Royal Borough of Kensington and Chelsea,RBKC,,Statutory and Corporate Items,Statutory Year End Accounting,,Kilburn Nightingale Architects Ltd,1262316,,,,16/09/2021,2200195119,756,,Planned Maintenance (CM),,,,,
The Royal Borough of Kensington and Chelsea,RBKC,,Statutory and Corporate Items,Statutory Year End Accounting,,Kilburn Nightingale Architects Ltd,1262316,,,,16/09/2021,2200195120,"1,785.00",,Planned Maintenance (CM),,,,,
The Royal Borough of Kensington and Chelsea,RBKC,,Statutory and Corporate Items,Statutory Year End Accounting,,Kingston Landscape Group,1266166,,,,15/07/2021,2200182919,"10,175.00",,Construction : enhancements,,,,,
The Royal Borough of Kensington and Chelsea,RBKC,,Statutory and Corporate Items,Statutory Year End Accounting,,Kingston Landscape Group,1266166,,,,18/08/2021,2200189882,"3,150.00",,Construction : enhancements,,,,,
The Royal Borough of Kensington and Chelsea,RBKC,,Statutory and Corporate Items,Statutory Year End Accounting,,LAND SURVEY SOLUTIONS LTD,1274810,,,,09/07/2021,2200181519,"2,055.00",,Other Consultants,,,,,
The Royal Borough of Kensington and Chelsea,RBKC,,Statutory and Corporate Items,Statutory Year End Accounting,,LAND SURVEY SOLUTIONS LTD,1274810,,,,06/08/2021,2200187190,"5,950.00",,Other Consultants,,,,,
The Royal Borough of Kensington and Chelsea,RBKC,,Statutory and Corporate Items,Statutory Year End Accounting,,Landmark Environmental Ltd,1272305,,,,09/07/2021,2200181526,"3,034.00",,Other Consultants,,,,,
The Royal Borough of Kensington and Chelsea,RBKC,,Statutory and Corporate Items,Statutory Year End Accounting,,Landmark Environmental Ltd,1272305,,,,24/08/2021,2200190739,"3,034.00",,Other Consultants,,,,,
The Royal Borough of Kensington and Chelsea,RBKC,,Statutory and Corporate Items,Statutory Year End Accounting,,Landmark Environmental Ltd,1272305,,,,24/08/2021,2200190867,"5,304.00",,Other Consultants,,,,,
The Royal Borough of Kensington and Chelsea,RBKC,,Statutory and Corporate Items,Statutory Year End Accounting,,Landmark Environmental Ltd,1272305,,,,27/09/2021,2200196867,"5,510.00",,Other Consultants,,,,,
The Royal Borough of Kensington and Chelsea,RBKC,,Statutory and Corporate Items,Statutory Year End Accounting,,Lawtech Group Ltd,1273996,,,,29/07/2021,2200185633,"26,217.97",,Payments to main contractor,,,,,
The Royal Borough of Kensington and Chelsea,RBKC,,Statutory and Corporate Items,Statutory Year End Accounting,,Lawtech Group Ltd,1273996,,,,09/09/2021,2200193976,"196,287.29",,Payments to main contractor,,,,,
The Royal Borough of Kensington and Chelsea,RBKC,,Statutory and Corporate Items,Statutory Year End Accounting,,Lawtech Group Ltd,1273996,,,,09/09/2021,2200193977,"67,277.55",,Payments to main contractor,,,,,
The Royal Borough of Kensington and Chelsea,RBKC,,Statutory and Corporate Items,Statutory Year End Accounting,,Lawtech Group Ltd,1273996,,,,17/09/2021,2200195211,"65,085.83",,Payments to main contractor,,,,,
The Royal Borough of Kensington and Chelsea,RBKC,,Statutory and Corporate Items,Statutory Year End Accounting,,Redact Details,1231389,,,,05/07/2021,2200180336,885,,Payments to main contractor,,,,,
The Royal Borough of Kensington and Chelsea,RBKC,,Statutory and Corporate Items,Statutory Year End Accounting,,Redact Details,1231389,,,,05/07/2021,2200180337,"7,845.00",,Payments to main contractor,,,,,
The Royal Borough of Kensington and Chelsea,RBKC,,Statutory and Corporate Items,Statutory Year End Accounting,,Lend Lease Consulting (Emea) Ltd ,1234899,,,,03/08/2021,2200186472,"8,687.00",,Construction : enhancements,,,,,
The Royal Borough of Kensington and Chelsea,RBKC,,Statutory and Corporate Items,Statutory Year End Accounting,,Lend Lease Consulting (Emea) Ltd ,1234899,,,,31/08/2021,2200192003,"8,687.00",,Construction : enhancements,,,,,
The Royal Borough of Kensington and Chelsea,RBKC,,Statutory and Corporate Items,Statutory Year End Accounting,,Lend Lease Consulting (Emea) Ltd ,1234899,,,,30/09/2021,2200197806,"8,687.00",,Construction : enhancements,,,,,
The Royal Borough of Kensington and Chelsea,RBKC,,Statutory and Corporate Items,Statutory Year End Accounting,,Liberty Adaptations Ltd,1277725,,,,06/07/2021,2200180617,"7,763.00",,Payments to main contractor,,,,,
The Royal Borough of Kensington and Chelsea,RBKC,,Statutory and Corporate Items,Statutory Year End Accounting,,Liberty Adaptations Ltd,1277725,,,,08/07/2021,2200181127,"6,768.00",,Payments to main contractor,,,,,
The Royal Borough of Kensington and Chelsea,RBKC,,Statutory and Corporate Items,Statutory Year End Accounting,,London Borough Of Haringey (General Account),1231804,,,,21/07/2021,2200184000,"7,343.14",,Other Consultants,,,,,
The Royal Borough of Kensington and Chelsea,RBKC,,Statutory and Corporate Items,Statutory Year End Accounting,,London Carpets,1230616,,,,09/08/2021,2200187656,684.56,,Payments to main contractor,,,,,
The Royal Borough of Kensington and Chelsea,RBKC,,Statutory and Corporate Items,Statutory Year End Accounting,,LONES UK LIMITED,1277775,,,,28/07/2021,2200185260,"1,071.00",,Professional Fees : Non Legal,,,,,
The Royal Borough of Kensington and Chelsea,RBKC,,Statutory and Corporate Items,Statutory Year End Accounting,,MDA Consulting Limited ,1234989,,,,01/07/2021,2200179800,600,,Payments to main contractor,,,,,
The Royal Borough of Kensington and Chelsea,RBKC,,Statutory and Corporate Items,Statutory Year End Accounting,,MDA Consulting Limited ,1234989,,,,01/07/2021,2200179802,600,,Payments to main contractor,,,,,
The Royal Borough of Kensington and Chelsea,RBKC,,Statutory and Corporate Items,Statutory Year End Accounting,,MDA Consulting Limited ,1234989,,,,01/07/2021,2200179817,880,,Other Consultants,,,,,
The Royal Borough of Kensington and Chelsea,RBKC,,Statutory and Corporate Items,Statutory Year End Accounting,,MDA Consulting Limited ,1234989,,,,05/07/2021,2200180416,600,,Payments to main contractor,,,,,
The Royal Borough of Kensington and Chelsea,RBKC,,Statutory and Corporate Items,Statutory Year End Accounting,,MDA Consulting Limited ,1234989,,,,22/07/2021,2200184205,"1,012.00",,Payments to main contractor,,,,,
The Royal Borough of Kensington and Chelsea,RBKC,,Statutory and Corporate Items,Statutory Year End Accounting,,MDA Consulting Limited ,1234989,,,,23/07/2021,2200184554,"2,552.00",,Professional Fees : Non Legal,,,,,
The Royal Borough of Kensington and Chelsea,RBKC,,Statutory and Corporate Items,Statutory Year End Accounting,,MDA Consulting Limited ,1234989,,,,23/07/2021,2200184556,"2,552.00",,Professional Fees : Non Legal,,,,,
The Royal Borough of Kensington and Chelsea,RBKC,,Statutory and Corporate Items,Statutory Year End Accounting,,MDA Consulting Limited ,1234989,,,,28/07/2021,2200185262,660,,Other Consultants,,,,,
The Royal Borough of Kensington and Chelsea,RBKC,,Statutory and Corporate Items,Statutory Year End Accounting,,MDA Consulting Limited ,1234989,,,,28/07/2021,2200185263,"1,000.00",,Payments to main contractor,,,,,
The Royal Borough of Kensington and Chelsea,RBKC,,Statutory and Corporate Items,Statutory Year End Accounting,,MDA Consulting Limited ,1234989,,,,28/07/2021,2200185264,"1,000.00",,Payments to main contractor,,,,,
The Royal Borough of Kensington and Chelsea,RBKC,,Statutory and Corporate Items,Statutory Year End Accounting,,MDA Consulting Limited ,1234989,,,,09/08/2021,2200187642,"4,026.00",,Professional Fees : Non Legal,,,,,
The Royal Borough of Kensington and Chelsea,RBKC,,Statutory and Corporate Items,Statutory Year End Accounting,,MDA Consulting Limited ,1234989,,,,31/08/2021,2200191846,880,,Other Consultants,,,,,
The Royal Borough of Kensington and Chelsea,RBKC,,Statutory and Corporate Items,Statutory Year End Accounting,,MDA Consulting Limited ,1234989,,,,01/09/2021,2200192089,800,,Payments to main contractor,,,,,
The Royal Borough of Kensington and Chelsea,RBKC,,Statutory and Corporate Items,Statutory Year End Accounting,,MDA Consulting Limited ,1234989,,,,01/09/2021,2200192268,800,,Payments to main contractor,,,,,
The Royal Borough of Kensington and Chelsea,RBKC,,Statutory and Corporate Items,Statutory Year End Accounting,,ME Construction Limited,1278687,,,,24/09/2021,2200196746,"15,987.03",,Payments to main contractor,,,,,
The Royal Borough of Kensington and Chelsea,RBKC,,Statutory and Corporate Items,Statutory Year End Accounting,,MEC London Ltd ,1231398,,,,07/07/2021,2200180884,"1,105.00",,Creditors Control : AP GRIR,,,,,
The Royal Borough of Kensington and Chelsea,RBKC,,Statutory and Corporate Items,Statutory Year End Accounting,,MEC London Ltd ,1231398,,,,06/09/2021,2200193344,"2,305.00",,Planned Maintenance (CM),,,,,
The Royal Borough of Kensington and Chelsea,RBKC,,Statutory and Corporate Items,Statutory Year End Accounting,,MEC London Ltd ,1231398,,,,09/09/2021,2200193986,"82,673.75",,Planned Maintenance (CM),,,,,
The Royal Borough of Kensington and Chelsea,RBKC,,Statutory and Corporate Items,Statutory Year End Accounting,,MMM Architects Ltd,1259041,,,,02/08/2021,2200186222,"1,500.00",,Creditors Control : AP GRIR,,,,,
The Royal Borough of Kensington and Chelsea,RBKC,,Statutory and Corporate Items,Statutory Year End Accounting,,MMM Architects Ltd,1259041,,,,31/08/2021,2200191931,"1,500.00",,Creditors Control : AP GRIR,,,,,
The Royal Borough of Kensington and Chelsea,RBKC,,Statutory and Corporate Items,Statutory Year End Accounting,,Mace Limited ,1230643,,,,23/07/2021,2200184555,"1,017,360.61",,Construction : enhancements,,,,,
The Royal Borough of Kensington and Chelsea,RBKC,,Statutory and Corporate Items,Statutory Year End Accounting,,Mace Limited ,1230643,,,,09/08/2021,2200187723,"1,559,937.18",,Construction : enhancements,,,,,
The Royal Borough of Kensington and Chelsea,RBKC,,Statutory and Corporate Items,Statutory Year End Accounting,,Mace Limited ,1230643,,,,08/09/2021,2200193771,"1,317,357.16",,Payments to main contractor,,,,,
The Royal Borough of Kensington and Chelsea,RBKC,,Statutory and Corporate Items,Statutory Year End Accounting,,Malcolm Hollis LLP ,1230657,,,,09/07/2021,2200181624,"4,030.93",,Payments to sub contractor,,,,,
The Royal Borough of Kensington and Chelsea,RBKC,,Statutory and Corporate Items,Statutory Year End Accounting,,Master Locking Systems Ltd,1262396,,,,09/08/2021,2200187647,"4,881.94",,Creditors Control : AP GRIR,,,,,
The Royal Borough of Kensington and Chelsea,RBKC,,Statutory and Corporate Items,Statutory Year End Accounting,,Master Locking Systems Ltd,1262396,,,,16/09/2021,2200195020,"1,537.13",,Creditors Control : AP GRIR,,,,,
The Royal Borough of Kensington and Chelsea,RBKC,,Statutory and Corporate Items,Statutory Year End Accounting,,Master Locking Systems Ltd,1262396,,,,16/09/2021,2200195021,"4,882.98",,Creditors Control : AP GRIR,,,,,
The Royal Borough of Kensington and Chelsea,RBKC,,Statutory and Corporate Items,Statutory Year End Accounting,,Meristem Design Limited,1259153,,,,06/07/2021,2200180720,"1,416.00",,Special Maintenance,,,,,
The Royal Borough of Kensington and Chelsea,RBKC,,Statutory and Corporate Items,Statutory Year End Accounting,,Meristem Design Limited,1259153,,,,03/09/2021,2200192901,"8,790.00",,Special Maintenance,,,,,
The Royal Borough of Kensington and Chelsea,RBKC,,Statutory and Corporate Items,Statutory Year End Accounting,,Meristem Design Limited,1259153,,,,06/09/2021,2200193267,"12,920.00",,Payments to main contractor,,,,,
The Royal Borough of Kensington and Chelsea,RBKC,,Statutory and Corporate Items,Statutory Year End Accounting,,Meristem Design Limited,1259153,,,,06/09/2021,2200193268,"1,580.00",,Payments to main contractor,,,,,
The Royal Borough of Kensington and Chelsea,RBKC,,Statutory and Corporate Items,Statutory Year End Accounting,,Michael Dyson Associates Ltd ,1253270,,,,16/07/2021,2200183074,"9,826.13",,Professional Fees : Non Legal,,,,,
The Royal Borough of Kensington and Chelsea,RBKC,,Statutory and Corporate Items,Statutory Year End Accounting,,Michael Dyson Associates Ltd ,1253270,,,,31/08/2021,2200191999,"9,826.13",,Professional Fees : Non Legal,,,,,
The Royal Borough of Kensington and Chelsea,RBKC,,Statutory and Corporate Items,Statutory Year End Accounting,,Mike Stoane Lighting Limited,1278784,,,,18/08/2021,2200190005,"48,889.59",,Planned Maintenance (CM),,,,,
The Royal Borough of Kensington and Chelsea,RBKC,,Statutory and Corporate Items,Statutory Year End Accounting,,Minibems Ltd,1281021,,,,12/07/2021,2200181828,"7,206.40",,Energy Conservation : CM,,,,,
The Royal Borough of Kensington and Chelsea,RBKC,,Statutory and Corporate Items,Statutory Year End Accounting,,Morgan Sindall Construction,1260362,,,,18/08/2021,2200189893,"144,145.53",,Payments to main contractor,,,,,
The Royal Borough of Kensington and Chelsea,RBKC,,Statutory and Corporate Items,Statutory Year End Accounting,,Morgan Sindall Construction,1260362,,,,18/08/2021,2200189903,"124,245.50",,Payments to main contractor,,,,,
The Royal Borough of Kensington and Chelsea,RBKC,,Statutory and Corporate Items,Statutory Year End Accounting,,Morgan Sindall Construction,1260362,,,,19/08/2021,2200190214,"52,875.00",,Payments to main contractor,,,,,
The Royal Borough of Kensington and Chelsea,RBKC,,Statutory and Corporate Items,Statutory Year End Accounting,,Morgan Sindall Construction,1260362,,,,29/09/2021,2200197531,"76,570.40",,Payments to main contractor,,,,,
The Royal Borough of Kensington and Chelsea,RBKC,,Statutory and Corporate Items,Statutory Year End Accounting,,Mulalley & Company Ltd ,1231403,,,,10/08/2021,2200188086,"136,085.88",,Payments to main contractor,,,,,
The Royal Borough of Kensington and Chelsea,RBKC,,Statutory and Corporate Items,Statutory Year End Accounting,,Mulalley & Company Ltd ,1231403,,,,01/09/2021,2200192142,"26,729.67",,Payments to main contractor,,,,,
The Royal Borough of Kensington and Chelsea,RBKC,,Statutory and Corporate Items,Statutory Year End Accounting,,Mulalley & Company Ltd ,1231403,,,,02/09/2021,2200192518,"106,194.62",,Payments to main contractor,,,,,
The Royal Borough of Kensington and Chelsea,RBKC,,Statutory and Corporate Items,Statutory Year End Accounting,,Mulalley & Company Ltd ,1231403,,,,28/09/2021,2200197189,"68,859.81",,Payments to main contractor,,,,,
The Royal Borough of Kensington and Chelsea,RBKC,,Statutory and Corporate Items,Statutory Year End Accounting,,Murrill Construction Ltd ,1231405,,,,08/07/2021,2200181107,"1,408.75",,Construction : enhancements,,,,,
The Royal Borough of Kensington and Chelsea,RBKC,,Statutory and Corporate Items,Statutory Year End Accounting,,T/A SVM Associates,1230750,,,,20/07/2021,2200183702,"3,980.00",,Planned Maintenance (CM),,,,,
The Royal Borough of Kensington and Chelsea,RBKC,,Statutory and Corporate Items,Statutory Year End Accounting,,T/A SVM Associates,1230750,,,,28/07/2021,2200185363,"1,950.00",,Planned Maintenance (CM),,,,,
The Royal Borough of Kensington and Chelsea,RBKC,,Statutory and Corporate Items,Statutory Year End Accounting,,T/A SVM Associates,1230750,,,,18/08/2021,2200190002,"3,300.00",,Planned Maintenance (CM),,,,,
The Royal Borough of Kensington and Chelsea,RBKC,,Statutory and Corporate Items,Statutory Year End Accounting,,T/A SVM Associates,1230750,,,,18/08/2021,2200190003,"2,400.00",,Planned Maintenance (CM),,,,,
The Royal Borough of Kensington and Chelsea,RBKC,,Statutory and Corporate Items,Statutory Year End Accounting,,NORTH SV LIMITED,1271756,,,,12/07/2021,2200181987,"30,000.00",,Other capital equipment,,,,,
The Royal Borough of Kensington and Chelsea,RBKC,,Statutory and Corporate Items,Statutory Year End Accounting,,Nature Sign Design ,1256803,,,,16/07/2021,2200183117,"1,105.00",,Creditors Control : AP GRIR,,,,,
The Royal Borough of Kensington and Chelsea,RBKC,,Statutory and Corporate Items,Statutory Year End Accounting,,Network Rail Infrastructure Ltd ,1231408,,,,27/07/2021,2200185110,"1,919.37",,Payments to main contractor,,,,,
The Royal Borough of Kensington and Chelsea,RBKC,,Statutory and Corporate Items,Statutory Year End Accounting,,Network Rail Infrastructure Ltd ,1231408,,,,29/07/2021,2200185588,"10,000.00",,Professional Fees : Non Legal,,,,,
The Royal Borough of Kensington and Chelsea,RBKC,,Statutory and Corporate Items,Statutory Year End Accounting,,Network Rail Infrastructure Ltd ,1231408,,,,20/09/2021,2200195785,"2,153.41",,Payments to main contractor,,,,,
The Royal Borough of Kensington and Chelsea,RBKC,,Statutory and Corporate Items,Statutory Year End Accounting,,New Square Chambers Ltd ,1252408,,,,17/09/2021,2200195513,875,,Legal Fees & expenses,,,,,
The Royal Borough of Kensington and Chelsea,RBKC,,Statutory and Corporate Items,Statutory Year End Accounting,,Nica Design Ltd,1280624,,,,01/07/2021,2200179894,"8,237.13",,Special Maintenance,,,,,
The Royal Borough of Kensington and Chelsea,RBKC,,Statutory and Corporate Items,Statutory Year End Accounting,,Nica Design Ltd,1280624,,,,27/08/2021,2200191614,"4,118.00",,Special Maintenance,,,,,
The Royal Borough of Kensington and Chelsea,RBKC,,Statutory and Corporate Items,Statutory Year End Accounting,,Noiseair Limited,1259994,,,,05/08/2021,2200186940,"2,405.00",,Special Maintenance,,,,,
The Royal Borough of Kensington and Chelsea,RBKC,,Statutory and Corporate Items,Statutory Year End Accounting,,Norton Rose Fulbright LLP ,1235073,,,,02/07/2021,2200180151,777.22,,Other Consultants,,,,,
The Royal Borough of Kensington and Chelsea,RBKC,,Statutory and Corporate Items,Statutory Year End Accounting,,Norton Rose Fulbright LLP ,1235073,,,,06/07/2021,2200180543,777.22,,Other Consultants,,,,,
The Royal Borough of Kensington and Chelsea,RBKC,,Statutory and Corporate Items,Statutory Year End Accounting,,Novello Surveyors LTD,1279386,,,,13/07/2021,2200182282,"1,333.33",,Site Works,,,,,
The Royal Borough of Kensington and Chelsea,RBKC,,Statutory and Corporate Items,Statutory Year End Accounting,,Oakleaf Surveying Ltd ,1230946,,,,05/08/2021,2200187017,"1,300.00",,Professional Fees : Non Legal,,,,,
The Royal Borough of Kensington and Chelsea,RBKC,,Statutory and Corporate Items,Statutory Year End Accounting,,Oakleaf Surveying Ltd ,1230946,,,,05/08/2021,2200187019,"4,660.00",,Professional Fees : Non Legal,,,,,
The Royal Borough of Kensington and Chelsea,RBKC,,Statutory and Corporate Items,Statutory Year End Accounting,,Oakleaf Surveying Ltd ,1230946,,,,16/08/2021,2200189357,"1,610.00",,Professional Fees : Non Legal,,,,,
The Royal Borough of Kensington and Chelsea,RBKC,,Statutory and Corporate Items,Statutory Year End Accounting,,Osborn Associates Ltd,1262963,,,,01/07/2021,2200179813,"9,800.00",,Payments to main contractor,,,,,
The Royal Borough of Kensington and Chelsea,RBKC,,Statutory and Corporate Items,Statutory Year End Accounting,,Osborn Associates Ltd,1262963,,,,02/07/2021,2200180130,"5,125.00",,Professional Fees : Non Legal,,,,,
The Royal Borough of Kensington and Chelsea,RBKC,,Statutory and Corporate Items,Statutory Year End Accounting,,Osborn Associates Ltd,1262963,,,,02/07/2021,2200180135,"8,640.00",,Surveyors,,,,,
The Royal Borough of Kensington and Chelsea,RBKC,,Statutory and Corporate Items,Statutory Year End Accounting,,Osborn Associates Ltd,1262963,,,,05/07/2021,2200180352,"2,100.00",,Engineering Consultancy Fees,,,,,
The Royal Borough of Kensington and Chelsea,RBKC,,Statutory and Corporate Items,Statutory Year End Accounting,,Osborn Associates Ltd,1262963,,,,05/07/2021,2200180431,"3,600.00",,Special Maintenance,,,,,
The Royal Borough of Kensington and Chelsea,RBKC,,Statutory and Corporate Items,Statutory Year End Accounting,,Osborn Associates Ltd,1262963,,,,07/07/2021,2200180924,"6,000.00",,Special Maintenance,,,,,
The Royal Borough of Kensington and Chelsea,RBKC,,Statutory and Corporate Items,Statutory Year End Accounting,,Osborn Associates Ltd,1262963,,,,09/07/2021,2200181513,"18,600.00",,Special Maintenance,,,,,
The Royal Borough of Kensington and Chelsea,RBKC,,Statutory and Corporate Items,Statutory Year End Accounting,,Osborn Associates Ltd,1262963,,,,09/07/2021,2200181516,"10,300.00",,Special Maintenance,,,,,
The Royal Borough of Kensington and Chelsea,RBKC,,Statutory and Corporate Items,Statutory Year End Accounting,,Osborn Associates Ltd,1262963,,,,09/07/2021,2200181518,"4,500.00",,Special Maintenance,,,,,
The Royal Borough of Kensington and Chelsea,RBKC,,Statutory and Corporate Items,Statutory Year End Accounting,,Osborn Associates Ltd,1262963,,,,12/07/2021,2200181881,"5,625.00",,Other Consultants,,,,,
The Royal Borough of Kensington and Chelsea,RBKC,,Statutory and Corporate Items,Statutory Year End Accounting,,Osborn Associates Ltd,1262963,,,,12/07/2021,2200181882,"5,625.00",,Other Consultants,,,,,
The Royal Borough of Kensington and Chelsea,RBKC,,Statutory and Corporate Items,Statutory Year End Accounting,,Osborn Associates Ltd,1262963,,,,12/07/2021,2200181884,"5,625.00",,Other Consultants,,,,,
The Royal Borough of Kensington and Chelsea,RBKC,,Statutory and Corporate Items,Statutory Year End Accounting,,Osborn Associates Ltd,1262963,,,,12/07/2021,2200181955,"5,625.00",,Other Consultants,,,,,
The Royal Borough of Kensington and Chelsea,RBKC,,Statutory and Corporate Items,Statutory Year End Accounting,,Osborn Associates Ltd,1262963,,,,27/07/2021,2200185102,"15,650.00",,Special Maintenance,,,,,
The Royal Borough of Kensington and Chelsea,RBKC,,Statutory and Corporate Items,Statutory Year End Accounting,,Osborn Associates Ltd,1262963,,,,27/07/2021,2200185103,"3,700.00",,Special Maintenance,,,,,
The Royal Borough of Kensington and Chelsea,RBKC,,Statutory and Corporate Items,Statutory Year End Accounting,,Osborn Associates Ltd,1262963,,,,27/07/2021,2200185104,"2,493.00",,Special Maintenance,,,,,
The Royal Borough of Kensington and Chelsea,RBKC,,Statutory and Corporate Items,Statutory Year End Accounting,,Osborn Associates Ltd,1262963,,,,27/07/2021,2200185105,"14,161.00",,Special Maintenance,,,,,
The Royal Borough of Kensington and Chelsea,RBKC,,Statutory and Corporate Items,Statutory Year End Accounting,,Osborn Associates Ltd,1262963,,,,27/07/2021,2200185109,"6,024.00",,Special Maintenance,,,,,
The Royal Borough of Kensington and Chelsea,RBKC,,Statutory and Corporate Items,Statutory Year End Accounting,,Osborn Associates Ltd,1262963,,,,04/08/2021,2200186705,"3,340.00",,Surveyors,,,,,
The Royal Borough of Kensington and Chelsea,RBKC,,Statutory and Corporate Items,Statutory Year End Accounting,,Osborn Associates Ltd,1262963,,,,06/09/2021,2200193329,"15,320.00",,Surveyors,,,,,
The Royal Borough of Kensington and Chelsea,RBKC,,Statutory and Corporate Items,Statutory Year End Accounting,,Osborn Associates Ltd,1262963,,,,30/09/2021,2200197732,"4,850.00",,Special Maintenance,,,,,
The Royal Borough of Kensington and Chelsea,RBKC,,Statutory and Corporate Items,Statutory Year End Accounting,,Osborne Thomas Ltd,1261917,,,,19/07/2021,2200183300,"8,012.56",,Creditors Control : AP GRIR,,,,,
The Royal Borough of Kensington and Chelsea,RBKC,,Statutory and Corporate Items,Statutory Year End Accounting,,Osborne Thomas Ltd,1261917,,,,11/08/2021,2200188240,"7,348.00",,Creditors Control : AP GRIR,,,,,
The Royal Borough of Kensington and Chelsea,RBKC,,Statutory and Corporate Items,Statutory Year End Accounting,,Osborne Thomas Ltd,1261917,,,,17/08/2021,2200189598,"5,748.99",,Creditors Control : AP GRIR,,,,,
The Royal Borough of Kensington and Chelsea,RBKC,,Statutory and Corporate Items,Statutory Year End Accounting,,Osborne Thomas Ltd,1261917,,,,25/08/2021,2200191083,"8,785.08",,Other Consultants,,,,,
The Royal Borough of Kensington and Chelsea,RBKC,,Statutory and Corporate Items,Statutory Year End Accounting,,Osborne Thomas Ltd,1261917,,,,06/09/2021,2200193346,"6,172.47",,Other Consultants,,,,,
The Royal Borough of Kensington and Chelsea,RBKC,,Statutory and Corporate Items,Statutory Year End Accounting,,Osborne Thomas Ltd,1261917,,,,10/09/2021,2200194227,"5,266.25",,Other Consultants,,,,,
The Royal Borough of Kensington and Chelsea,RBKC,,Statutory and Corporate Items,Statutory Year End Accounting,,Osborne Thomas Ltd,1261917,,,,10/09/2021,2200194228,"7,899.38",,Other Consultants,,,,,
The Royal Borough of Kensington and Chelsea,RBKC,,Statutory and Corporate Items,Statutory Year End Accounting,,Osei Design Associated Ltd,1266059,,,,26/08/2021,2200191209,"2,145.00",,Other Consultants,,,,,
The Royal Borough of Kensington and Chelsea,RBKC,,Statutory and Corporate Items,Statutory Year End Accounting,,Osei Design Associated Ltd,1266059,,,,26/08/2021,2200191210,"2,525.00",,Other Consultants,,,,,
The Royal Borough of Kensington and Chelsea,RBKC,,Statutory and Corporate Items,Statutory Year End Accounting,,Oxford Gardens Primary School ,1232822,,,,14/07/2021,2200182573,"6,960.00",,Payments to main contractor,,,,,
The Royal Borough of Kensington and Chelsea,RBKC,,Statutory and Corporate Items,Statutory Year End Accounting,,Oxford Gardens Primary School ,1232822,,,,21/07/2021,2200184074,"2,533.00",,Payments to main contractor,,,,,
The Royal Borough of Kensington and Chelsea,RBKC,,Statutory and Corporate Items,Statutory Year End Accounting,,Oxford Gardens Primary School ,1232822,,,,21/07/2021,2200184076,"9,036.00",,Payments to main contractor,,,,,
The Royal Borough of Kensington and Chelsea,RBKC,,Statutory and Corporate Items,Statutory Year End Accounting,,Oxford Gardens Primary School ,1232822,,,,22/07/2021,2200184353,"148,000.00",,Payments to main contractor,,,,,
The Royal Borough of Kensington and Chelsea,RBKC,,Statutory and Corporate Items,Statutory Year End Accounting,,Oxford Gardens Primary School ,1232822,,,,09/09/2021,2200193913,"15,485.00",,Payments to main contractor,,,,,
The Royal Borough of Kensington and Chelsea,RBKC,,Statutory and Corporate Items,Statutory Year End Accounting,,Oxford Gardens Primary School ,1232822,,,,27/09/2021,2200196893,"2,586.90",,Construction : enhancements,,,,,
The Royal Borough of Kensington and Chelsea,RBKC,,Statutory and Corporate Items,Statutory Year End Accounting,,Oxford Gardens Primary School ,1232822,,,,27/09/2021,2200196894,"421,390.00",,Construction : enhancements,,,,,
The Royal Borough of Kensington and Chelsea,RBKC,,Statutory and Corporate Items,Statutory Year End Accounting,,Oxford Gardens Primary School ,1232822,,,,30/09/2021,2200197805,"8,460.00",,Payments to main contractor,,,,,
The Royal Borough of Kensington and Chelsea,RBKC,,Statutory and Corporate Items,Statutory Year End Accounting,,Ppl Training Ltd,1266667,,,,21/09/2021,2200196053,550,,Creditors Control : AP GRIR,,,,,
The Royal Borough of Kensington and Chelsea,RBKC,,Statutory and Corporate Items,Statutory Year End Accounting,,Park Walk Primary School ,1232825,,,,30/07/2021,2200185890,"6,260.00",,Boiler / Major Plant Replacement : CM,,,,,
The Royal Borough of Kensington and Chelsea,RBKC,,Statutory and Corporate Items,Statutory Year End Accounting,,Perega Limited,1264035,,,,04/08/2021,2200186735,"1,108.80",,Planned Maintenance (CM),,,,,
The Royal Borough of Kensington and Chelsea,RBKC,,Statutory and Corporate Items,Statutory Year End Accounting,,Perega Limited,1264035,,,,18/08/2021,2200189985,924,,Planned Maintenance (CM),,,,,
The Royal Borough of Kensington and Chelsea,RBKC,,Statutory and Corporate Items,Statutory Year End Accounting,,Perfect Circle JV Ltd ,1254748,,,,23/07/2021,2200184409,"120,844.00",,Payments to main contractor,,,,,
The Royal Borough of Kensington and Chelsea,RBKC,,Statutory and Corporate Items,Statutory Year End Accounting,,Perfect Circle JV Ltd ,1254748,,,,23/07/2021,2200184410,"65,877.00",,Payments to main contractor,,,,,
The Royal Borough of Kensington and Chelsea,RBKC,,Statutory and Corporate Items,Statutory Year End Accounting,,Perfect Circle JV Ltd ,1254748,,,,28/07/2021,2200185357,"93,998.00",,Payments to main contractor,,,,,
The Royal Borough of Kensington and Chelsea,RBKC,,Statutory and Corporate Items,Statutory Year End Accounting,,Perfect Circle JV Ltd ,1254748,,,,30/07/2021,2200185810,"109,978.00",,Payments to main contractor,,,,,
The Royal Borough of Kensington and Chelsea,RBKC,,Statutory and Corporate Items,Statutory Year End Accounting,,Perfect Circle JV Ltd ,1254748,,,,24/08/2021,2200190747,"128,397.00",,Payments to main contractor,,,,,
The Royal Borough of Kensington and Chelsea,RBKC,,Statutory and Corporate Items,Statutory Year End Accounting,,Perfect Circle JV Ltd ,1254748,,,,24/08/2021,2200190749,"40,193.00",,Payments to main contractor,,,,,
The Royal Borough of Kensington and Chelsea,RBKC,,Statutory and Corporate Items,Statutory Year End Accounting,,Perfect Circle JV Ltd ,1254748,,,,31/08/2021,2200191993,"112,815.00",,Payments to main contractor,,,,,
The Royal Borough of Kensington and Chelsea,RBKC,,Statutory and Corporate Items,Statutory Year End Accounting,,Perfect Circle JV Ltd ,1254748,,,,31/08/2021,2200191996,"24,385.00",,Payments to main contractor,,,,,
The Royal Borough of Kensington and Chelsea,RBKC,,Statutory and Corporate Items,Statutory Year End Accounting,,Perfect Circle JV Ltd ,1254748,,,,27/09/2021,2200196937,"132,233.65",,Payments to main contractor,,,,,
The Royal Borough of Kensington and Chelsea,RBKC,,Statutory and Corporate Items,Statutory Year End Accounting,,Perfect Circle JV Ltd ,1254748,,,,27/09/2021,2200196938,"62,727.00",,Payments to main contractor,,,,,
The Royal Borough of Kensington and Chelsea,RBKC,,Statutory and Corporate Items,Statutory Year End Accounting,,Perfect Circle JV Ltd ,1254748,,,,27/09/2021,2200196939,"158,343.00",,Payments to main contractor,,,,,
The Royal Borough of Kensington and Chelsea,RBKC,,Statutory and Corporate Items,Statutory Year End Accounting,,Perfect Circle JV Ltd ,1254748,,,,27/09/2021,2200196940,"37,706.00",,Payments to main contractor,,,,,
The Royal Borough of Kensington and Chelsea,RBKC,,Statutory and Corporate Items,Statutory Year End Accounting,,Perkins & Will UK Limited,1265496,,,,19/07/2021,2200183314,"2,000.40",,Payments to main contractor,,,,,
The Royal Borough of Kensington and Chelsea,RBKC,,Statutory and Corporate Items,Statutory Year End Accounting,,Perkins & Will UK Limited,1265496,,,,19/07/2021,2200183315,"4,115.00",,Payments to main contractor,,,,,
The Royal Borough of Kensington and Chelsea,RBKC,,Statutory and Corporate Items,Statutory Year End Accounting,,Perkins & Will UK Limited,1265496,,,,19/07/2021,2200183316,"4,900.00",,Payments to main contractor,,,,,
The Royal Borough of Kensington and Chelsea,RBKC,,Statutory and Corporate Items,Statutory Year End Accounting,,Perkins & Will UK Limited,1265496,,,,19/07/2021,2200183321,"5,000.00",,Payments to main contractor,,,,,
The Royal Borough of Kensington and Chelsea,RBKC,,Statutory and Corporate Items,Statutory Year End Accounting,,Perkins & Will UK Limited,1265496,,,,02/08/2021,2200186213,"2,000.00",,Payments to main contractor,,,,,
The Royal Borough of Kensington and Chelsea,RBKC,,Statutory and Corporate Items,Statutory Year End Accounting,,Perkins & Will UK Limited,1265496,,,,02/08/2021,2200186214,"2,900.00",,Payments to main contractor,,,,,
The Royal Borough of Kensington and Chelsea,RBKC,,Statutory and Corporate Items,Statutory Year End Accounting,,Perkins & Will UK Limited,1265496,,,,02/08/2021,2200186215,"4,115.00",,Payments to main contractor,,,,,
The Royal Borough of Kensington and Chelsea,RBKC,,Statutory and Corporate Items,Statutory Year End Accounting,,Perkins & Will UK Limited,1265496,,,,02/08/2021,2200186216,"4,981.05",,Payments to main contractor,,,,,
The Royal Borough of Kensington and Chelsea,RBKC,,Statutory and Corporate Items,Statutory Year End Accounting,,Perkins & Will UK Limited,1265496,,,,02/08/2021,2200186218,"7,500.00",,Payments to main contractor,,,,,
The Royal Borough of Kensington and Chelsea,RBKC,,Statutory and Corporate Items,Statutory Year End Accounting,,Perkins & Will UK Limited,1265496,,,,25/08/2021,2200191050,"23,118.00",,Payments to main contractor,,,,,
The Royal Borough of Kensington and Chelsea,RBKC,,Statutory and Corporate Items,Statutory Year End Accounting,,Perkins & Will UK Limited,1265496,,,,08/09/2021,2200193756,"1,056.00",,Payments to main contractor,,,,,
The Royal Borough of Kensington and Chelsea,RBKC,,Statutory and Corporate Items,Statutory Year End Accounting,,Perkins & Will UK Limited,1265496,,,,08/09/2021,2200193757,"2,582.25",,Payments to main contractor,,,,,
The Royal Borough of Kensington and Chelsea,RBKC,,Statutory and Corporate Items,Statutory Year End Accounting,,Perkins & Will UK Limited,1265496,,,,08/09/2021,2200193759,"1,370.00",,Payments to main contractor,,,,,
The Royal Borough of Kensington and Chelsea,RBKC,,Statutory and Corporate Items,Statutory Year End Accounting,,Perkins & Will UK Limited,1265496,,,,08/09/2021,2200193760,"1,430.00",,Payments to main contractor,,,,,
The Royal Borough of Kensington and Chelsea,RBKC,,Statutory and Corporate Items,Statutory Year End Accounting,,Perkins & Will UK Limited,1265496,,,,08/09/2021,2200193763,"1,955.00",,Payments to main contractor,,,,,
The Royal Borough of Kensington and Chelsea,RBKC,,Statutory and Corporate Items,Statutory Year End Accounting,,Perkins & Will UK Limited,1265496,,,,08/09/2021,2200193764,"3,000.00",,Payments to main contractor,,,,,
The Royal Borough of Kensington and Chelsea,RBKC,,Statutory and Corporate Items,Statutory Year End Accounting,,Perkins & Will UK Limited,1265496,,,,08/09/2021,2200193765,"3,000.00",,Payments to main contractor,,,,,
The Royal Borough of Kensington and Chelsea,RBKC,,Statutory and Corporate Items,Statutory Year End Accounting,,Perkins & Will UK Limited,1265496,,,,08/09/2021,2200193769,"16,020.00",,Architects,,,,,
The Royal Borough of Kensington and Chelsea,RBKC,,Statutory and Corporate Items,Statutory Year End Accounting,,Perkins & Will UK Limited,1265496,,,,08/09/2021,2200193770,900,,Payments to main contractor,,,,,
The Royal Borough of Kensington and Chelsea,RBKC,,Statutory and Corporate Items,Statutory Year End Accounting,,Perkins & Will UK Limited,1265496,,,,09/09/2021,2200193924,"2,387.00",,Creditors Control : AP GRIR,,,,,
The Royal Borough of Kensington and Chelsea,RBKC,,Statutory and Corporate Items,Statutory Year End Accounting,,Pinsent Masons LLP ,1235160,,,,04/08/2021,2200186564,"2,500.00",,Legal Fees & expenses,,,,,
The Royal Borough of Kensington and Chelsea,RBKC,,Statutory and Corporate Items,Statutory Year End Accounting,,Plumis Limited,1265279,,,,23/09/2021,2200196412,"5,235.00",,Payments to main contractor,,,,,
The Royal Borough of Kensington and Chelsea,RBKC,,Statutory and Corporate Items,Statutory Year End Accounting,,Point 2 Surveyors,1235179,,,,21/07/2021,2200184013,"1,815.00",,Payments to main contractor,,,,,
The Royal Borough of Kensington and Chelsea,RBKC,,Statutory and Corporate Items,Statutory Year End Accounting,,Point 2 Surveyors,1235179,,,,19/08/2021,2200190067,"2,851.85",,Other Consultants,,,,,
The Royal Borough of Kensington and Chelsea,RBKC,,Statutory and Corporate Items,Statutory Year End Accounting,,Point 2 Surveyors,1235179,,,,17/09/2021,2200195213,"1,471.25",,Other Consultants,,,,,
The Royal Borough of Kensington and Chelsea,RBKC,,Statutory and Corporate Items,Statutory Year End Accounting,,Point 2 Surveyors,1235179,,,,28/09/2021,2200197150,"6,200.00",,Legal Fees & expenses,,,,,
The Royal Borough of Kensington and Chelsea,RBKC,,Statutory and Corporate Items,Statutory Year End Accounting,,Project Centre ,1235205,,,,14/07/2021,2200182488,851.77,,Engineering Consultancy Fees,,,,,
The Royal Borough of Kensington and Chelsea,RBKC,,Statutory and Corporate Items,Statutory Year End Accounting,,Project Centre ,1235205,,,,11/08/2021,2200188353,851.77,,Engineering Consultancy Fees,,,,,
The Royal Borough of Kensington and Chelsea,RBKC,,Statutory and Corporate Items,Statutory Year End Accounting,,Project Centre ,1235205,,,,01/09/2021,2200192209,"1,105.80",,Engineering Consultancy Fees,,,,,
The Royal Borough of Kensington and Chelsea,RBKC,,Statutory and Corporate Items,Statutory Year End Accounting,,Project Centre ,1235205,,,,10/09/2021,2200194226,806.94,,Engineering Consultancy Fees,,,,,
The Royal Borough of Kensington and Chelsea,RBKC,,Statutory and Corporate Items,Statutory Year End Accounting,,Proun Architects ,1235211,,,,04/08/2021,2200186574,"4,000.00",,Creditors Control : AP GRIR,,,,,
The Royal Borough of Kensington and Chelsea,RBKC,,Statutory and Corporate Items,Statutory Year End Accounting,,Proun Architects ,1235211,,,,04/08/2021,2200186574,"3,500.00",,Creditors Control : AP GRIR,,,,,
The Royal Borough of Kensington and Chelsea,RBKC,,Statutory and Corporate Items,Statutory Year End Accounting,,Proun Architects ,1235211,,,,04/08/2021,2200186576,"2,200.00",,Creditors Control : AP GRIR,,,,,
The Royal Borough of Kensington and Chelsea,RBKC,,Statutory and Corporate Items,Statutory Year End Accounting,,Proun Architects ,1235211,,,,04/08/2021,2200186578,"3,400.00",,Creditors Control : AP GRIR,,,,,
The Royal Borough of Kensington and Chelsea,RBKC,,Statutory and Corporate Items,Statutory Year End Accounting,,T/A Qmatic,1269073,,,,31/08/2021,2200191945,750,,Creditors Control : AP GRIR,,,,,
The Royal Borough of Kensington and Chelsea,RBKC,,Statutory and Corporate Items,Statutory Year End Accounting,,T/A Idverde ,1231423,,,,27/08/2021,2200191651,"3,115.00",,Creditors Control : AP GRIR,,,,,
The Royal Borough of Kensington and Chelsea,RBKC,,Statutory and Corporate Items,Statutory Year End Accounting,,Quinn London Ltd,1235230,,,,14/07/2021,2200182455,"2,450.68",,Payments to main contractor,,,,,
The Royal Borough of Kensington and Chelsea,RBKC,,Statutory and Corporate Items,Statutory Year End Accounting,,Quinn London Ltd,1235230,,,,23/07/2021,2200184526,"227,050.00",,Other Consultants,,,,,
The Royal Borough of Kensington and Chelsea,RBKC,,Statutory and Corporate Items,Statutory Year End Accounting,,Quinn London Ltd,1235230,,,,10/08/2021,2200188096,"366,700.00",,Other Consultants,,,,,
The Royal Borough of Kensington and Chelsea,RBKC,,Statutory and Corporate Items,Statutory Year End Accounting,,Quinn London Ltd,1235230,,,,20/09/2021,2200195812,"232,750.00",,Other Consultants,,,,,
The Royal Borough of Kensington and Chelsea,RBKC,,Statutory and Corporate Items,Statutory Year End Accounting,,R Benson Property Maintenance,1266216,,,,27/07/2021,2200185054,"24,955.68",,Construction : enhancements,,,,,
The Royal Borough of Kensington and Chelsea,RBKC,,Statutory and Corporate Items,Statutory Year End Accounting,,R Benson Property Maintenance,1266216,,,,13/08/2021,2200189026,"14,596.96",,Construction : enhancements,,,,,
The Royal Borough of Kensington and Chelsea,RBKC,,Statutory and Corporate Items,Statutory Year End Accounting,,R Benson Property Maintenance,1266216,,,,28/09/2021,2200197119,"32,793.13",,Construction : enhancements,,,,,
The Royal Borough of Kensington and Chelsea,RBKC,,Statutory and Corporate Items,Statutory Year End Accounting,,ROOFPRO LONDON LIMITED,1269812,,,,12/07/2021,2200181920,"4,300.00",,Major Roof Repairs : CM,,,,,
The Royal Borough of Kensington and Chelsea,RBKC,,Statutory and Corporate Items,Statutory Year End Accounting,,ROOFPRO LONDON LIMITED,1269812,,,,16/08/2021,2200189377,"15,582.48",,Major Roof Repairs : CM,,,,,
The Royal Borough of Kensington and Chelsea,RBKC,,Statutory and Corporate Items,Statutory Year End Accounting,,ROOFPRO LONDON LIMITED,1269812,,,,31/08/2021,2200191990,"13,251.16",,Major Roof Repairs : CM,,,,,
The Royal Borough of Kensington and Chelsea,RBKC,,Statutory and Corporate Items,Statutory Year End Accounting,,RSK Environment Ltd ,1231296,,,,30/09/2021,2200197755,"8,819.12",,Site Works,,,,,
The Royal Borough of Kensington and Chelsea,RBKC,,Statutory and Corporate Items,Statutory Year End Accounting,,Rackline LTD,1278366,,,,17/08/2021,2200189491,"16,923.60",,Other Consultants,,,,,
The Royal Borough of Kensington and Chelsea,RBKC,,Statutory and Corporate Items,Statutory Year End Accounting,,Rackline LTD,1278366,,,,31/08/2021,2200191895,"5,186.40",,Other Consultants,,,,,
The Royal Borough of Kensington and Chelsea,RBKC,,Statutory and Corporate Items,Statutory Year End Accounting,,Raytell Electrical Co Limited,1279437,,,,27/07/2021,2200185051,"27,729.56",,Construction : enhancements,,,,,
The Royal Borough of Kensington and Chelsea,RBKC,,Statutory and Corporate Items,Statutory Year End Accounting,,Raytell Electrical Co Limited,1279437,,,,23/08/2021,2200190525,"22,729.58",,Construction : enhancements,,,,,
The Royal Borough of Kensington and Chelsea,RBKC,,Statutory and Corporate Items,Statutory Year End Accounting,,Raytell Electrical Co Limited,1279437,,,,29/09/2021,2200197327,"10,638.51",,Construction : enhancements,,,,,
The Royal Borough of Kensington and Chelsea,RBKC,,Statutory and Corporate Items,Statutory Year End Accounting,,Rbkc Colville Primary School ,1236100,,,,01/07/2021,2200179786,"18,000.00",,Payments to main contractor,,,,,
The Royal Borough of Kensington and Chelsea,RBKC,,Statutory and Corporate Items,Statutory Year End Accounting,,Rbkc Colville Primary School ,1236100,,,,07/07/2021,3110325252,"6,994.00",,Computer Equipment,,,,,
The Royal Borough of Kensington and Chelsea,RBKC,,Statutory and Corporate Items,Statutory Year End Accounting,,Resourcing Group ,1235269,,,,08/07/2021,2200181177,"1,110.40",,Capitalised salaries,,,,,
The Royal Borough of Kensington and Chelsea,RBKC,,Statutory and Corporate Items,Statutory Year End Accounting,,Resourcing Group ,1235269,,,,08/07/2021,2200181178,853.56,,Capitalised salaries,,,,,
The Royal Borough of Kensington and Chelsea,RBKC,,Statutory and Corporate Items,Statutory Year End Accounting,,Resourcing Group ,1235269,,,,08/07/2021,2200181180,"1,030.40",,Capitalised salaries,,,,,
The Royal Borough of Kensington and Chelsea,RBKC,,Statutory and Corporate Items,Statutory Year End Accounting,,Resourcing Group ,1235269,,,,13/07/2021,2200182137,"1,030.40",,Capitalised salaries,,,,,
The Royal Borough of Kensington and Chelsea,RBKC,,Statutory and Corporate Items,Statutory Year End Accounting,,Resourcing Group ,1235269,,,,13/07/2021,2200182154,"1,110.40",,Capitalised salaries,,,,,
The Royal Borough of Kensington and Chelsea,RBKC,,Statutory and Corporate Items,Statutory Year End Accounting,,Resourcing Group ,1235269,,,,22/07/2021,2200184348,"1,190.40",,Capitalised salaries,,,,,
The Royal Borough of Kensington and Chelsea,RBKC,,Statutory and Corporate Items,Statutory Year End Accounting,,Resourcing Group ,1235269,,,,22/07/2021,2200184349,"1,030.40",,Capitalised salaries,,,,,
The Royal Borough of Kensington and Chelsea,RBKC,,Statutory and Corporate Items,Statutory Year End Accounting,,Resourcing Group ,1235269,,,,27/07/2021,2200185128,"1,383.84",,Capitalised salaries,,,,,
The Royal Borough of Kensington and Chelsea,RBKC,,Statutory and Corporate Items,Statutory Year End Accounting,,Resourcing Group ,1235269,,,,27/07/2021,2200185136,"1,030.40",,Capitalised salaries,,,,,
The Royal Borough of Kensington and Chelsea,RBKC,,Statutory and Corporate Items,Statutory Year End Accounting,,Resourcing Group ,1235269,,,,27/07/2021,2200185138,853.56,,Capitalised salaries,,,,,
The Royal Borough of Kensington and Chelsea,RBKC,,Statutory and Corporate Items,Statutory Year End Accounting,,Resourcing Group ,1235269,,,,27/07/2021,2200185146,853.56,,Capitalised salaries,,,,,
The Royal Borough of Kensington and Chelsea,RBKC,,Statutory and Corporate Items,Statutory Year End Accounting,,Resourcing Group ,1235269,,,,29/07/2021,2200185741,"1,030.40",,Capitalised salaries,,,,,
The Royal Borough of Kensington and Chelsea,RBKC,,Statutory and Corporate Items,Statutory Year End Accounting,,Resourcing Group ,1235269,,,,29/07/2021,2200185742,"1,190.40",,Capitalised salaries,,,,,
The Royal Borough of Kensington and Chelsea,RBKC,,Statutory and Corporate Items,Statutory Year End Accounting,,Resourcing Group ,1235269,,,,30/07/2021,2200185927,853.56,,Capitalised salaries,,,,,
The Royal Borough of Kensington and Chelsea,RBKC,,Statutory and Corporate Items,Statutory Year End Accounting,,Resourcing Group ,1235269,,,,05/08/2021,2200186925,"1,190.40",,Capitalised salaries,,,,,
The Royal Borough of Kensington and Chelsea,RBKC,,Statutory and Corporate Items,Statutory Year End Accounting,,Resourcing Group ,1235269,,,,12/08/2021,2200188752,"1,190.40",,Capitalised salaries,,,,,
The Royal Borough of Kensington and Chelsea,RBKC,,Statutory and Corporate Items,Statutory Year End Accounting,,Resourcing Group ,1235269,,,,12/08/2021,2200188754,853.56,,Capitalised salaries,,,,,
The Royal Borough of Kensington and Chelsea,RBKC,,Statutory and Corporate Items,Statutory Year End Accounting,,Resourcing Group ,1235269,,,,27/08/2021,2200191526,"1,190.40",,Capitalised salaries,,,,,
The Royal Borough of Kensington and Chelsea,RBKC,,Statutory and Corporate Items,Statutory Year End Accounting,,Resourcing Group ,1235269,,,,27/08/2021,2200191530,"1,030.40",,Capitalised salaries,,,,,
The Royal Borough of Kensington and Chelsea,RBKC,,Statutory and Corporate Items,Statutory Year End Accounting,,Resourcing Group ,1235269,,,,27/08/2021,2200191552,"1,190.40",,Capitalised salaries,,,,,
The Royal Borough of Kensington and Chelsea,RBKC,,Statutory and Corporate Items,Statutory Year End Accounting,,Resourcing Group ,1235269,,,,01/09/2021,2200192193,"1,190.40",,Capitalised salaries,,,,,
The Royal Borough of Kensington and Chelsea,RBKC,,Statutory and Corporate Items,Statutory Year End Accounting,,Resourcing Group ,1235269,,,,01/09/2021,2200192194,853.56,,Capitalised salaries,,,,,
The Royal Borough of Kensington and Chelsea,RBKC,,Statutory and Corporate Items,Statutory Year End Accounting,,Resourcing Group ,1235269,,,,21/09/2021,2200196038,"1,030.40",,Capitalised salaries,,,,,
The Royal Borough of Kensington and Chelsea,RBKC,,Statutory and Corporate Items,Statutory Year End Accounting,,Resourcing Group ,1235269,,,,21/09/2021,2200196040,"1,190.40",,Capitalised salaries,,,,,
The Royal Borough of Kensington and Chelsea,RBKC,,Statutory and Corporate Items,Statutory Year End Accounting,,Resourcing Group ,1235269,,,,21/09/2021,2200196041,"1,030.40",,Capitalised salaries,,,,,
The Royal Borough of Kensington and Chelsea,RBKC,,Statutory and Corporate Items,Statutory Year End Accounting,,Resourcing Group ,1235269,,,,21/09/2021,2200196061,"1,428.48",,Capitalised salaries,,,,,
The Royal Borough of Kensington and Chelsea,RBKC,,Statutory and Corporate Items,Statutory Year End Accounting,,Resourcing Group ,1235269,,,,21/09/2021,2200196063,663.88,,Capitalised salaries,,,,,
The Royal Borough of Kensington and Chelsea,RBKC,,Statutory and Corporate Items,Statutory Year End Accounting,,Resourcing Group ,1235269,,,,21/09/2021,2200196065,824.32,,Capitalised salaries,,,,,
The Royal Borough of Kensington and Chelsea,RBKC,,Statutory and Corporate Items,Statutory Year End Accounting,,Resourcing Group ,1235269,,,,21/09/2021,2200196071,"1,428.48",,Capitalised salaries,,,,,
The Royal Borough of Kensington and Chelsea,RBKC,,Statutory and Corporate Items,Statutory Year End Accounting,,Resourcing Group ,1235269,,,,21/09/2021,2200196074,"1,030.40",,Capitalised salaries,,,,,
The Royal Borough of Kensington and Chelsea,RBKC,,Statutory and Corporate Items,Statutory Year End Accounting,,Reyooz Ltd,1282129,,,,12/08/2021,2200188689,"3,015.30",,Payments to sub contractor,,,,,
The Royal Borough of Kensington and Chelsea,RBKC,,Statutory and Corporate Items,Statutory Year End Accounting,,Rhino Sensory UK Ltd,1231256,,,,22/09/2021,2200196289,"10,018.60",,Payments to main contractor,,,,,
The Royal Borough of Kensington and Chelsea,RBKC,,Statutory and Corporate Items,Statutory Year End Accounting,,Rider Levett Bucknall UK Ltd,1274167,,,,01/07/2021,2200179914,"9,757.00",,Professional Fees : Non Legal,,,,,
The Royal Borough of Kensington and Chelsea,RBKC,,Statutory and Corporate Items,Statutory Year End Accounting,,Rider Levett Bucknall UK Ltd,1274167,,,,07/07/2021,2200180948,"5,936.00",,Professional Fees : Non Legal,,,,,
The Royal Borough of Kensington and Chelsea,RBKC,,Statutory and Corporate Items,Statutory Year End Accounting,,Rider Levett Bucknall UK Ltd,1274167,,,,08/07/2021,2200181181,"5,752.83",,Professional Fees : Non Legal,,,,,
The Royal Borough of Kensington and Chelsea,RBKC,,Statutory and Corporate Items,Statutory Year End Accounting,,Rider Levett Bucknall UK Ltd,1274167,,,,03/08/2021,2200186449,"5,753.00",,Professional Fees : Non Legal,,,,,
The Royal Borough of Kensington and Chelsea,RBKC,,Statutory and Corporate Items,Statutory Year End Accounting,,Rider Levett Bucknall UK Ltd,1274167,,,,03/08/2021,2200186500,"5,660.50",,Professional Fees : Non Legal,,,,,
The Royal Borough of Kensington and Chelsea,RBKC,,Statutory and Corporate Items,Statutory Year End Accounting,,Rider Levett Bucknall UK Ltd,1274167,,,,03/08/2021,2200186501,"3,440.00",,Professional Fees : Non Legal,,,,,
The Royal Borough of Kensington and Chelsea,RBKC,,Statutory and Corporate Items,Statutory Year End Accounting,,Rider Levett Bucknall UK Ltd,1274167,,,,04/08/2021,2200186734,"10,657.80",,Professional Fees : Non Legal,,,,,
The Royal Borough of Kensington and Chelsea,RBKC,,Statutory and Corporate Items,Statutory Year End Accounting,,Rider Levett Bucknall UK Ltd,1274167,,,,27/08/2021,2200191628,"2,968.00",,Professional Fees : Non Legal,,,,,
The Royal Borough of Kensington and Chelsea,RBKC,,Statutory and Corporate Items,Statutory Year End Accounting,,Rider Levett Bucknall UK Ltd,1274167,,,,02/09/2021,2200192517,"5,752.83",,Professional Fees : Non Legal,,,,,
The Royal Borough of Kensington and Chelsea,RBKC,,Statutory and Corporate Items,Statutory Year End Accounting,,Ridge And Partners LLP ,1231273,,,,02/08/2021,2200186212,"3,660.00",,Payments to main contractor,,,,,
The Royal Borough of Kensington and Chelsea,RBKC,,Statutory and Corporate Items,Statutory Year End Accounting,,Ridge And Partners LLP ,1231273,,,,27/08/2021,2200191558,"1,800.00",,Payments to main contractor,,,,,
The Royal Borough of Kensington and Chelsea,RBKC,,Statutory and Corporate Items,Statutory Year End Accounting,,Ridge And Partners LLP ,1231273,,,,01/09/2021,2200192090,"3,800.00",,Payments to sub contractor,,,,,
The Royal Borough of Kensington and Chelsea,RBKC,,Statutory and Corporate Items,Statutory Year End Accounting,,Ridge And Partners LLP ,1231273,,,,01/09/2021,2200192091,"2,640.00",,Payments to sub contractor,,,,,
The Royal Borough of Kensington and Chelsea,RBKC,,Statutory and Corporate Items,Statutory Year End Accounting,,Ridge And Partners LLP ,1231273,,,,01/09/2021,2200192092,600,,Payments to main contractor,,,,,
The Royal Borough of Kensington and Chelsea,RBKC,,Statutory and Corporate Items,Statutory Year End Accounting,,Rixon Rixon and Murray Ltd,1280917,,,,21/07/2021,2200184007,"3,750.00",,Other Consultants,,,,,
The Royal Borough of Kensington and Chelsea,RBKC,,Statutory and Corporate Items,Statutory Year End Accounting,,Redact Details,1265790,,,,04/08/2021,2200186815,"3,000.00",,Planned Maintenance (CM),,,,,
The Royal Borough of Kensington and Chelsea,RBKC,,Statutory and Corporate Items,Statutory Year End Accounting,,Redact Details,1265790,,,,18/08/2021,2200190004,"3,000.00",,Planned Maintenance (CM),,,,,
The Royal Borough of Kensington and Chelsea,RBKC,,Statutory and Corporate Items,Statutory Year End Accounting,,Redact Details,1265790,,,,03/09/2021,2200192789,"3,000.00",,Planned Maintenance (CM),,,,,
The Royal Borough of Kensington and Chelsea,RBKC,,Statutory and Corporate Items,Statutory Year End Accounting,,Room Collective UK Ltd,1280724,,,,02/07/2021,2200180064,"8,246.00",,Health and Safety Alterations,,,,,
The Royal Borough of Kensington and Chelsea,RBKC,,Statutory and Corporate Items,Statutory Year End Accounting,,Ruskins Trees & Landscapes Ltd,1280471,,,,22/07/2021,2200184206,"1,345.00",,Payments to sub contractor,,,,,
The Royal Borough of Kensington and Chelsea,RBKC,,Statutory and Corporate Items,Statutory Year End Accounting,,S W Security Ltd ,1235300,,,,05/07/2021,2200180331,"3,378.00",,Payments to main contractor,,,,,
The Royal Borough of Kensington and Chelsea,RBKC,,Statutory and Corporate Items,Statutory Year End Accounting,,S W Security Ltd ,1235300,,,,16/08/2021,2200189345,"7,804.00",,Payments to main contractor,,,,,
The Royal Borough of Kensington and Chelsea,RBKC,,Statutory and Corporate Items,Statutory Year End Accounting,,S W Security Ltd ,1235300,,,,16/08/2021,2200189346,"9,823.00",,Payments to main contractor,,,,,
The Royal Borough of Kensington and Chelsea,RBKC,,Statutory and Corporate Items,Statutory Year End Accounting,,S W Security Ltd ,1235300,,,,27/08/2021,2200191627,770,,Payments to main contractor,,,,,
The Royal Borough of Kensington and Chelsea,RBKC,,Statutory and Corporate Items,Statutory Year End Accounting,,S W Security Ltd ,1235300,,,,31/08/2021,2200191998,"115,906.66",,Payments to main contractor,,,,,
The Royal Borough of Kensington and Chelsea,RBKC,,Statutory and Corporate Items,Statutory Year End Accounting,,S W Security Ltd ,1235300,,,,01/09/2021,2200192143,"1,021.00",,Professional Fees : Non Legal,,,,,
The Royal Borough of Kensington and Chelsea,RBKC,,Statutory and Corporate Items,Statutory Year End Accounting,,S W Security Ltd ,1235300,,,,01/09/2021,2200192244,"3,946.00",,Payments to main contractor,,,,,
The Royal Borough of Kensington and Chelsea,RBKC,,Statutory and Corporate Items,Statutory Year End Accounting,,S W Security Ltd ,1235300,,,,01/09/2021,2200192264,"3,635.00",,Payments to main contractor,,,,,
The Royal Borough of Kensington and Chelsea,RBKC,,Statutory and Corporate Items,Statutory Year End Accounting,,S W Security Ltd ,1235300,,,,21/09/2021,2200196124,"2,992.00",,Payments to main contractor,,,,,
The Royal Borough of Kensington and Chelsea,RBKC,,Statutory and Corporate Items,Statutory Year End Accounting,,T/A 24/7 Healthcare,1275052,,,,06/07/2021,2200180641,"4,453.10",,Payments to main contractor,,,,,
The Royal Borough of Kensington and Chelsea,RBKC,,Statutory and Corporate Items,Statutory Year End Accounting,,SG Structures Consulting Structural,1280783,,,,01/07/2021,2200179771,"1,275.00",,Other Consultants,,,,,
The Royal Borough of Kensington and Chelsea,RBKC,,Statutory and Corporate Items,Statutory Year End Accounting,,SAFETY BUYER UK LTD,1280740,,,,09/08/2021,2200187753,"2,206.93",,Payments to main contractor,,,,,
The Royal Borough of Kensington and Chelsea,RBKC,,Statutory and Corporate Items,Statutory Year End Accounting,,Santia Asbestos Management Ltd ,1255345,,,,28/07/2021,2200185385,867,,Creditors Control : AP GRIR,,,,,
The Royal Borough of Kensington and Chelsea,RBKC,,Statutory and Corporate Items,Statutory Year End Accounting,,Santia Asbestos Management Ltd ,1255345,,,,04/08/2021,2200186768,"5,420.00",,Planned Maintenance (CM),,,,,
The Royal Borough of Kensington and Chelsea,RBKC,,Statutory and Corporate Items,Statutory Year End Accounting,,Santia Asbestos Management Ltd ,1255345,,,,18/08/2021,2200190006,"10,714.00",,Planned Maintenance (CM),,,,,
The Royal Borough of Kensington and Chelsea,RBKC,,Statutory and Corporate Items,Statutory Year End Accounting,,Santia Asbestos Management Ltd ,1255345,,,,23/08/2021,2200190531,"6,463.05",,Creditors Control : AP GRIR,,,,,
The Royal Borough of Kensington and Chelsea,RBKC,,Statutory and Corporate Items,Statutory Year End Accounting,,Santia Asbestos Management Ltd ,1255345,,,,23/08/2021,2200190626,"59,040.00",,Planned Maintenance (CM),,,,,
The Royal Borough of Kensington and Chelsea,RBKC,,Statutory and Corporate Items,Statutory Year End Accounting,,Seth Stein Architects Ltd,1276379,,,,13/07/2021,2200182121,"3,500.00",,Surveyors,,,,,
The Royal Borough of Kensington and Chelsea,RBKC,,Statutory and Corporate Items,Statutory Year End Accounting,,Seth Stein Architects Ltd,1276379,,,,13/07/2021,2200182122,"2,500.00",,Surveyors,,,,,
The Royal Borough of Kensington and Chelsea,RBKC,,Statutory and Corporate Items,Statutory Year End Accounting,,Seth Stein Architects Ltd,1276379,,,,13/07/2021,2200182123,506.67,,Surveyors,,,,,
The Royal Borough of Kensington and Chelsea,RBKC,,Statutory and Corporate Items,Statutory Year End Accounting,,Seth Stein Architects Ltd,1276379,,,,13/07/2021,2200182124,506.67,,Surveyors,,,,,
The Royal Borough of Kensington and Chelsea,RBKC,,Statutory and Corporate Items,Statutory Year End Accounting,,Seth Stein Architects Ltd,1276379,,,,13/07/2021,2200182125,506.67,,Surveyors,,,,,
The Royal Borough of Kensington and Chelsea,RBKC,,Statutory and Corporate Items,Statutory Year End Accounting,,Seth Stein Architects Ltd,1276379,,,,23/07/2021,2200184481,625,,Payments to main contractor,,,,,
The Royal Borough of Kensington and Chelsea,RBKC,,Statutory and Corporate Items,Statutory Year End Accounting,,Seth Stein Architects Ltd,1276379,,,,23/07/2021,2200184485,625,,Payments to main contractor,,,,,
The Royal Borough of Kensington and Chelsea,RBKC,,Statutory and Corporate Items,Statutory Year End Accounting,,Seth Stein Architects Ltd,1276379,,,,23/07/2021,2200184486,625,,Payments to main contractor,,,,,
The Royal Borough of Kensington and Chelsea,RBKC,,Statutory and Corporate Items,Statutory Year End Accounting,,Seth Stein Architects Ltd,1276379,,,,23/07/2021,2200184493,680,,Surveyors,,,,,
The Royal Borough of Kensington and Chelsea,RBKC,,Statutory and Corporate Items,Statutory Year End Accounting,,Seth Stein Architects Ltd,1276379,,,,26/07/2021,2200184755,"2,500.00",,Surveyors,,,,,
The Royal Borough of Kensington and Chelsea,RBKC,,Statutory and Corporate Items,Statutory Year End Accounting,,Sharon Hosegood Associates,1266048,,,,01/07/2021,2200179832,800,,Other Consultants,,,,,
The Royal Borough of Kensington and Chelsea,RBKC,,Statutory and Corporate Items,Statutory Year End Accounting,,Shawscreen Products,1258953,,,,29/09/2021,2200197416,528.25,,Payments to main contractor,,,,,
The Royal Borough of Kensington and Chelsea,RBKC,,Statutory and Corporate Items,Statutory Year End Accounting,,Skilled Careers Limited,1265647,,,,02/07/2021,2200180024,961.2,,Capitalised salaries,,,,,
The Royal Borough of Kensington and Chelsea,RBKC,,Statutory and Corporate Items,Statutory Year End Accounting,,Skilled Careers Limited,1265647,,,,02/07/2021,2200180026,838.4,,Capitalised salaries,,,,,
The Royal Borough of Kensington and Chelsea,RBKC,,Statutory and Corporate Items,Statutory Year End Accounting,,Skilled Careers Limited,1265647,,,,08/07/2021,2200181172,961.2,,Capitalised salaries,,,,,
The Royal Borough of Kensington and Chelsea,RBKC,,Statutory and Corporate Items,Statutory Year End Accounting,,Skilled Careers Limited,1265647,,,,08/07/2021,2200181173,"1,048.00",,Capitalised salaries,,,,,
The Royal Borough of Kensington and Chelsea,RBKC,,Statutory and Corporate Items,Statutory Year End Accounting,,Skilled Careers Limited,1265647,,,,22/07/2021,2200184343,961.2,,Capitalised salaries,,,,,
The Royal Borough of Kensington and Chelsea,RBKC,,Statutory and Corporate Items,Statutory Year End Accounting,,Skilled Careers Limited,1265647,,,,22/07/2021,2200184351,961.2,,Capitalised salaries,,,,,
The Royal Borough of Kensington and Chelsea,RBKC,,Statutory and Corporate Items,Statutory Year End Accounting,,Skilled Careers Limited,1265647,,,,29/07/2021,2200185743,961.2,,Capitalised salaries,,,,,
The Royal Borough of Kensington and Chelsea,RBKC,,Statutory and Corporate Items,Statutory Year End Accounting,,Skilled Careers Limited,1265647,,,,12/08/2021,2200188750,961.2,,Capitalised salaries,,,,,
The Royal Borough of Kensington and Chelsea,RBKC,,Statutory and Corporate Items,Statutory Year End Accounting,,Skilled Careers Limited,1265647,,,,12/08/2021,2200188751,"1,048.00",,Capitalised salaries,,,,,
The Royal Borough of Kensington and Chelsea,RBKC,,Statutory and Corporate Items,Statutory Year End Accounting,,Skilled Careers Limited,1265647,,,,12/08/2021,2200188756,961.2,,Capitalised salaries,,,,,
The Royal Borough of Kensington and Chelsea,RBKC,,Statutory and Corporate Items,Statutory Year End Accounting,,Skilled Careers Limited,1265647,,,,19/08/2021,2200190196,"1,048.00",,Capitalised salaries,,,,,
The Royal Borough of Kensington and Chelsea,RBKC,,Statutory and Corporate Items,Statutory Year End Accounting,,Skilled Careers Limited,1265647,,,,01/09/2021,2200192207,961.2,,Capitalised salaries,,,,,
The Royal Borough of Kensington and Chelsea,RBKC,,Statutory and Corporate Items,Statutory Year End Accounting,,Skilled Careers Limited,1265647,,,,01/09/2021,2200192208,"1,048.00",,Capitalised salaries,,,,,
The Royal Borough of Kensington and Chelsea,RBKC,,Statutory and Corporate Items,Statutory Year End Accounting,,Skilled Careers Limited,1265647,,,,03/09/2021,2200192772,961.2,,Capitalised salaries,,,,,
The Royal Borough of Kensington and Chelsea,RBKC,,Statutory and Corporate Items,Statutory Year End Accounting,,Skilled Careers Limited,1265647,,,,06/09/2021,2200193271,"1,048.00",,Capitalised salaries,,,,,
The Royal Borough of Kensington and Chelsea,RBKC,,Statutory and Corporate Items,Statutory Year End Accounting,,Skilled Careers Limited,1265647,,,,21/09/2021,2200196042,768.96,,Capitalised salaries,,,,,
The Royal Borough of Kensington and Chelsea,RBKC,,Statutory and Corporate Items,Statutory Year End Accounting,,Skilled Careers Limited,1265647,,,,21/09/2021,2200196044,838.4,,Capitalised salaries,,,,,
The Royal Borough of Kensington and Chelsea,RBKC,,Statutory and Corporate Items,Statutory Year End Accounting,,Skilled Careers Limited,1265647,,,,21/09/2021,2200196056,961.2,,Capitalised salaries,,,,,
The Royal Borough of Kensington and Chelsea,RBKC,,Statutory and Corporate Items,Statutory Year End Accounting,,Skilled Careers Limited,1265647,,,,21/09/2021,2200196067,"1,048.00",,Capitalised salaries,,,,,
The Royal Borough of Kensington and Chelsea,RBKC,,Statutory and Corporate Items,Statutory Year End Accounting,,Skilled Careers Limited,1265647,,,,21/09/2021,2200196069,961.2,,Capitalised salaries,,,,,
The Royal Borough of Kensington and Chelsea,RBKC,,Statutory and Corporate Items,Statutory Year End Accounting,,Spatial Dimensions Limited,1274706,,,,21/07/2021,2200184009,"2,595.00",,Other Consultants,,,,,
The Royal Borough of Kensington and Chelsea,RBKC,,Statutory and Corporate Items,Statutory Year End Accounting,,Spatial Dimensions Limited,1274706,,,,21/07/2021,2200184010,795,,Other Consultants,,,,,
The Royal Borough of Kensington and Chelsea,RBKC,,Statutory and Corporate Items,Statutory Year End Accounting,,St Barnabas & St Philip Primary School,1232829,,,,07/07/2021,3110325251,"1,574.73",,Computer Equipment,,,,,
The Royal Borough of Kensington and Chelsea,RBKC,,Statutory and Corporate Items,Statutory Year End Accounting,,St. Thomas More School ,1236115,,,,05/07/2021,3110323024,"4,780.50",,Computer Equipment,,,,,
The Royal Borough of Kensington and Chelsea,RBKC,,Statutory and Corporate Items,Statutory Year End Accounting,,Stace Llp,1263964,,,,08/07/2021,2200181175,"10,000.00",,Special Maintenance,,,,,
The Royal Borough of Kensington and Chelsea,RBKC,,Statutory and Corporate Items,Statutory Year End Accounting,,Stace Llp,1263964,,,,21/07/2021,2200184047,"1,740.00",,Special Maintenance,,,,,
The Royal Borough of Kensington and Chelsea,RBKC,,Statutory and Corporate Items,Statutory Year End Accounting,,Stace Llp,1263964,,,,21/07/2021,2200184052,"1,194.00",,Special Maintenance,,,,,
The Royal Borough of Kensington and Chelsea,RBKC,,Statutory and Corporate Items,Statutory Year End Accounting,,Stace Llp,1263964,,,,21/07/2021,2200184053,"11,940.00",,Special Maintenance,,,,,
The Royal Borough of Kensington and Chelsea,RBKC,,Statutory and Corporate Items,Statutory Year End Accounting,,Stace Llp,1263964,,,,21/07/2021,2200184055,"3,960.00",,Special Maintenance,,,,,
The Royal Borough of Kensington and Chelsea,RBKC,,Statutory and Corporate Items,Statutory Year End Accounting,,Stace Llp,1263964,,,,30/09/2021,2200197780,"10,000.00",,Special Maintenance,,,,,
The Royal Borough of Kensington and Chelsea,RBKC,,Statutory and Corporate Items,Statutory Year End Accounting,,Stace Llp,1263964,,,,30/09/2021,2200197781,"7,500.00",,Special Maintenance,,,,,
The Royal Borough of Kensington and Chelsea,RBKC,,Statutory and Corporate Items,Statutory Year End Accounting,,Studio Bednarski Limited,1275610,,,,08/07/2021,2200181202,"1,035.00",,Construction : enhancements,,,,,
The Royal Borough of Kensington and Chelsea,RBKC,,Statutory and Corporate Items,Statutory Year End Accounting,,Suez Recycling and Recovery UK Ltd ,1235441,,,,06/07/2021,2200180619,"237,804.00",,Purchase of Vehicles,,,,,
The Royal Borough of Kensington and Chelsea,RBKC,,Statutory and Corporate Items,Statutory Year End Accounting,,Suez Recycling and Recovery UK Ltd ,1235441,,,,10/08/2021,2200188030,"20,999.00",,Purchase of Vehicles,,,,,
The Royal Borough of Kensington and Chelsea,RBKC,,Statutory and Corporate Items,Statutory Year End Accounting,,Allied Protection Ltd ,1231167,,,,26/07/2021,2200184831,"4,926.87",,Payments to main contractor,,,,,
The Royal Borough of Kensington and Chelsea,RBKC,,Statutory and Corporate Items,Statutory Year End Accounting,,Allied Protection Ltd ,1231167,,,,13/09/2021,2200194427,"4,926.87",,Payments to main contractor,,,,,
The Royal Borough of Kensington and Chelsea,RBKC,,Statutory and Corporate Items,Statutory Year End Accounting,,Allied Protection Ltd ,1231167,,,,24/09/2021,2200196601,"4,597.03",,Payments to main contractor,,,,,
The Royal Borough of Kensington and Chelsea,RBKC,,Statutory and Corporate Items,Statutory Year End Accounting,,Sutton Projects Ltd,1256140,,,,28/07/2021,2200185362,"11,165.00",,Planned Maintenance (CM),,,,,
The Royal Borough of Kensington and Chelsea,RBKC,,Statutory and Corporate Items,Statutory Year End Accounting,,Symetri Limited,1281010,,,,21/07/2021,2200184008,"5,770.00",,Computer Software,,,,,
The Royal Borough of Kensington and Chelsea,RBKC,,Statutory and Corporate Items,Statutory Year End Accounting,,TBRE Associates Ltd,1269736,,,,16/07/2021,2200183130,"3,990.00",,Professional Fees : Non Legal,,,,,
The Royal Borough of Kensington and Chelsea,RBKC,,Statutory and Corporate Items,Statutory Year End Accounting,,TBRE Associates Ltd,1269736,,,,12/08/2021,2200188544,500,,Professional Fees : Non Legal,,,,,
The Royal Borough of Kensington and Chelsea,RBKC,,Statutory and Corporate Items,Statutory Year End Accounting,,TBRE Associates Ltd,1269736,,,,16/08/2021,2200189384,"4,148.00",,Professional Fees : Non Legal,,,,,
The Royal Borough of Kensington and Chelsea,RBKC,,Statutory and Corporate Items,Statutory Year End Accounting,,TBRE Associates Ltd,1269736,,,,25/08/2021,2200191064,"5,730.00",,Professional Fees : Non Legal,,,,,
The Royal Borough of Kensington and Chelsea,RBKC,,Statutory and Corporate Items,Statutory Year End Accounting,,TGA Consulting Engineers LLP,1258323,,,,19/08/2021,2200190138,"3,124.00",,Payments to main contractor,,,,,
The Royal Borough of Kensington and Chelsea,RBKC,,Statutory and Corporate Items,Statutory Year End Accounting,,TRAVIS PERKINS,1256072,,,,04/08/2021,2200186764,566.79,,Special Maintenance,,,,,
The Royal Borough of Kensington and Chelsea,RBKC,,Statutory and Corporate Items,Statutory Year End Accounting,,TRAVIS PERKINS,1256072,,,,05/08/2021,2200186915,618.12,,Special Maintenance,,,,,
The Royal Borough of Kensington and Chelsea,RBKC,,Statutory and Corporate Items,Statutory Year End Accounting,,TRAVIS PERKINS,1256072,,,,05/08/2021,2200186917,622.15,,Special Maintenance,,,,,
The Royal Borough of Kensington and Chelsea,RBKC,,Statutory and Corporate Items,Statutory Year End Accounting,,TRAVIS PERKINS,1256072,,,,18/08/2021,2200189737,582,,Special Maintenance,,,,,
The Royal Borough of Kensington and Chelsea,RBKC,,Statutory and Corporate Items,Statutory Year End Accounting,,TRAVIS PERKINS,1256072,,,,18/08/2021,2200189743,"1,487.05",,Special Maintenance,,,,,
The Royal Borough of Kensington and Chelsea,RBKC,,Statutory and Corporate Items,Statutory Year End Accounting,,TRAVIS PERKINS,1256072,,,,19/08/2021,2200190197,"1,177.20",,Special Maintenance,,,,,
The Royal Borough of Kensington and Chelsea,RBKC,,Statutory and Corporate Items,Statutory Year End Accounting,,TRAVIS PERKINS,1256072,,,,19/08/2021,2200190198,"3,160.00",,Special Maintenance,,,,,
The Royal Borough of Kensington and Chelsea,RBKC,,Statutory and Corporate Items,Statutory Year End Accounting,,TRAVIS PERKINS,1256072,,,,19/08/2021,2200190200,"4,333.67",,Special Maintenance,,,,,
The Royal Borough of Kensington and Chelsea,RBKC,,Statutory and Corporate Items,Statutory Year End Accounting,,TRAVIS PERKINS,1256072,,,,19/08/2021,2200190202,626.4,,Special Maintenance,,,,,
The Royal Borough of Kensington and Chelsea,RBKC,,Statutory and Corporate Items,Statutory Year End Accounting,,TRAVIS PERKINS,1256072,,,,01/09/2021,2200192205,"2,128.00",,Special Maintenance,,,,,
The Royal Borough of Kensington and Chelsea,RBKC,,Statutory and Corporate Items,Statutory Year End Accounting,,TRAVIS PERKINS,1256072,,,,24/09/2021,2200196649,"1,088.30",,Special Maintenance,,,,,
The Royal Borough of Kensington and Chelsea,RBKC,,Statutory and Corporate Items,Statutory Year End Accounting,,TRAVIS PERKINS,1256072,,,,24/09/2021,2200196658,666.55,,Special Maintenance,,,,,
The Royal Borough of Kensington and Chelsea,RBKC,,Statutory and Corporate Items,Statutory Year End Accounting,,TRAVIS PERKINS,1256072,,,,24/09/2021,2200196669,577.7,,Special Maintenance,,,,,
The Royal Borough of Kensington and Chelsea,RBKC,,Statutory and Corporate Items,Statutory Year End Accounting,,Tate Fencing Ltd ,1231604,,,,06/07/2021,2200180515,"1,842.82",,Creditors Control : AP GRIR,,,,,
The Royal Borough of Kensington and Chelsea,RBKC,,Statutory and Corporate Items,Statutory Year End Accounting,,Tate Fencing Ltd ,1231604,,,,09/07/2021,2200181555,700.83,,Construction : enhancements,,,,,
The Royal Borough of Kensington and Chelsea,RBKC,,Statutory and Corporate Items,Statutory Year End Accounting,,Tempus Facilities Management Ltd ,1235468,,,,27/09/2021,2200196979,"1,877.70",,Construction : enhancements,,,,,
The Royal Borough of Kensington and Chelsea,RBKC,,Statutory and Corporate Items,Statutory Year End Accounting,,Texo Scaffolding & Construction Ltd,1266685,,,,27/07/2021,2200185200,"16,740.41",,Payments to main contractor,,,,,
The Royal Borough of Kensington and Chelsea,RBKC,,Statutory and Corporate Items,Statutory Year End Accounting,,Texo Scaffolding & Construction Ltd,1266685,,,,28/07/2021,2200185428,"15,624.38",,Payments to main contractor,,,,,
The Royal Borough of Kensington and Chelsea,RBKC,,Statutory and Corporate Items,Statutory Year End Accounting,,Texo Scaffolding & Construction Ltd,1266685,,,,28/07/2021,2200185470,"15,624.37",,Payments to main contractor,,,,,
The Royal Borough of Kensington and Chelsea,RBKC,,Statutory and Corporate Items,Statutory Year End Accounting,,Texo Scaffolding & Construction Ltd,1266685,,,,12/08/2021,2200188757,"19,530.47",,Payments to main contractor,,,,,
The Royal Borough of Kensington and Chelsea,RBKC,,Statutory and Corporate Items,Statutory Year End Accounting,,Texo Scaffolding & Construction Ltd,1266685,,,,16/08/2021,2200189240,"15,624.37",,Payments to main contractor,,,,,
The Royal Borough of Kensington and Chelsea,RBKC,,Statutory and Corporate Items,Statutory Year End Accounting,,Texo Scaffolding & Construction Ltd,1266685,,,,16/09/2021,2200195051,"16,674.38",,Payments to main contractor,,,,,
The Royal Borough of Kensington and Chelsea,RBKC,,Statutory and Corporate Items,Statutory Year End Accounting,,The Landscape Partnership Limited,1281739,,,,03/08/2021,2200186446,892,,Other Consultants,,,,,
The Royal Borough of Kensington and Chelsea,RBKC,,Statutory and Corporate Items,Statutory Year End Accounting,,The SustainabilityCompany Ltd,1276005,,,,20/07/2021,2200183927,"11,000.00",,Design Consultant,,,,,
The Royal Borough of Kensington and Chelsea,RBKC,,Statutory and Corporate Items,Statutory Year End Accounting,,The SustainabilityCompany Ltd,1276005,,,,04/08/2021,2200186810,"10,500.00",,Design Consultant,,,,,
The Royal Borough of Kensington and Chelsea,RBKC,,Statutory and Corporate Items,Statutory Year End Accounting,,Tigg Coll Architects Ltd,1275556,,,,01/07/2021,2200179806,"7,630.00",,Payments to main contractor,,,,,
The Royal Borough of Kensington and Chelsea,RBKC,,Statutory and Corporate Items,Statutory Year End Accounting,,Tigg Coll Architects Ltd,1275556,,,,01/07/2021,2200179807,"7,630.00",,Payments to main contractor,,,,,
The Royal Borough of Kensington and Chelsea,RBKC,,Statutory and Corporate Items,Statutory Year End Accounting,,Tigg Coll Architects Ltd,1275556,,,,20/08/2021,2200190353,"18,131.00",,Payments to main contractor,,,,,
The Royal Borough of Kensington and Chelsea,RBKC,,Statutory and Corporate Items,Statutory Year End Accounting,,Tigg Coll Architects Ltd,1275556,,,,15/09/2021,2200194919,"7,630.00",,Payments to main contractor,,,,,
The Royal Borough of Kensington and Chelsea,RBKC,,Statutory and Corporate Items,Statutory Year End Accounting,,Tigg Coll Architects Ltd,1275556,,,,15/09/2021,2200194921,"1,190.00",,Payments to main contractor,,,,,
The Royal Borough of Kensington and Chelsea,RBKC,,Statutory and Corporate Items,Statutory Year End Accounting,,Tigg Coll Architects Ltd,1275556,,,,15/09/2021,2200194922,"4,100.00",,Payments to main contractor,,,,,
The Royal Borough of Kensington and Chelsea,RBKC,,Statutory and Corporate Items,Statutory Year End Accounting,,Trail Services Limited,1270872,,,,01/07/2021,2200179847,"53,760.00",,Payments to main contractor,,,,,
The Royal Borough of Kensington and Chelsea,RBKC,,Statutory and Corporate Items,Statutory Year End Accounting,,Trail Services Limited,1270872,,,,22/07/2021,2200184264,"18,291.82",,Payments to main contractor,,,,,
The Royal Borough of Kensington and Chelsea,RBKC,,Statutory and Corporate Items,Statutory Year End Accounting,,Trail Services Limited,1270872,,,,13/09/2021,2200194428,"21,798.00",,Payments to main contractor,,,,,
The Royal Borough of Kensington and Chelsea,RBKC,,Statutory and Corporate Items,Statutory Year End Accounting,,Trail Services Limited,1270872,,,,20/09/2021,2200195691,"7,087.40",,Payments to main contractor,,,,,
The Royal Borough of Kensington and Chelsea,RBKC,,Statutory and Corporate Items,Statutory Year End Accounting,,Trail Services Limited,1270872,,,,20/09/2021,2200195701,"24,072.86",,Payments to main contractor,,,,,
The Royal Borough of Kensington and Chelsea,RBKC,,Statutory and Corporate Items,Statutory Year End Accounting,,Transport For London,1231876,,,,02/07/2021,2200180127,"2,340.00",,Design Consultant,,,,,
The Royal Borough of Kensington and Chelsea,RBKC,,Statutory and Corporate Items,Statutory Year End Accounting,,Tree Wise Men S.E. Ltd ,1231880,,,,30/07/2021,2200185880,558,,Payments to main contractor,,,,,
